{"text_format":"1","workbook":"xlsx","n_sheets":18,"sheets":["Credits","Modalità_di_Utilizzo","Riepilogo_Risultati","Classifica_Squadre","Classifica_PG_1","Classifica_PG_2","Classifica_PG_3","Classifica_PG_4","Classifica_PG_5","Classifica_PG_6","Parametri_Operazioni_ORG","Calcola_Classifiche_ORG","Modifica_Valutativi_ORG","Predisposizione_Valutativi_ORG","Impostazione_Soglie_ORG","Esporta_In_PDF_ORG","Esporta_In_HTML_ORG","Riepilogo_Organizzazione"],"not_rendered":{"charts":0,"images":16,"macros":1,"external_links":0,"defined_names":8,"comments":3,"pivot_tables":0},"unopened":[],"bounds":{"document_bytes":16777216,"sheet_cells":100000,"rows_first":2000,"rows_last":500,"rows_between":2000,"halvings":0,"cell_chars":16384,"cell_head_chars":4096},"cells_cut":0,"cells_raw":0,"read":"whole","date_system":"1900"}

{"sheet":"Credits","index":0,"n_rows":25,"n_cols":4,"rows_kept":25,"cut":false,"hidden":false,"merged":[[24,1,31,9]]}
[]
[null,"Foglio di  Calcolo classifiche per sistema RBB 1.1 deluxe"]
[]
[null,null,"Autori:","Andrea M.A. \"Szass Tam\" Barbera"]
[null,null,null,"Diego \"Galahad\" Barbera"]
[null,null,null,"Marco \"Pardo\" Giardino"]
[null,null,"Contatti:","andrea.ma.barbera@gmail.com"]
[null,null,null,"dbad732001@yahoo.com"]
[null,null,null,"marco.giardino.rbb@gmail.com"]
[]
[]
[null,"Versione ","Data","Modifiche"]
[null,"1.0","2009-12-01","Prima Emissione"]
[null,"1.6","2011-07-21","Correzione di Bachi"]
[null,"1.7","2011-11-06","Correzione di baco nel report risultati"]
[null,"1.8","2019-03-30","Bugfix e passaggio a xlsx"]
[]
[]
[]
[]
[]
[]
[]
[]
[null,"Questo foglio di calcolo elettronico serve per applicare il sistema di valutazione RBB 1.1 deluxe. Il foglio di calcolo è basato sulla versione creata da Diego \"Galahad\" Barbera per l'associazione Revelsh Blind Beholders e grazie ai preziosissimi suggerimenti di Andrea M.V. \"Heidrekr\" Ventuirini"]

{"sheet":"Modalità_di_Utilizzo","index":1,"n_rows":32,"n_cols":10,"rows_kept":32,"cut":false,"hidden":false,"merged":[]}
[]
[]
[null,null,"Questo foglio di calcolo è da usarsi obbligatoriamente con MS Excel, perché alcune funzionalità non sono compatibili con OpenOffice"]
[]
[null,null,"\"Come devo usare questo foglio?\""]
[]
[null,null,"Innanzitutto dipende da chi sei!"]
[]
[null,null,"Sei un giocatore e vuoi verificare il tuo piazzamento in un torneo?"]
[]
[null,null,null,null,null,"Allora sei interessato solo nelle pagine con linguette bianche!"]
[]
[null,null,null,null,null,"e per scoprire come vengono assemblati i punteggi fai riferimento alla Guida RBB 1.1 deluxe : Manuale del giocatore"]
[]
[]
[null,null,"Sei un organizzatore di torneo e devi calcolare le classifiche?"]
[]
[null,null,null,null,null,"Allora devi compilare le pagine con la linguetta azzurra"]
[]
[null,null,null,null,null,"scrivi qui",null,"Ricordati che devi compilare solo le caselle colorate di azzurro!"]
[]
[null,null,null,null,null,"OK!",null,"Errore!",null,"Alcune celle ti aiuteranno nella compilazione, cambiando colore e scritta"]
[]
[null,null,null,null,null,"…",null,"Le celle di color marrone non sono da compilare ma contengono al proprio interno dei valori utili"]
[]
[null,null,null,null,null,"…",null,"Le celle viola sono di calcoli di supporto, le puoi ignorare tranquillamente"]
[]
[]
[null,null,null,null,null,null,null,"I pulsanti blu ti permetteranno di calcolare le classifiche e ti forniranno altre preziose funzionalità"]
[]
[]
[null,null,"e per scoprire il modo migliore per calcolare le classifiche del tuo torneo e le potenzialità di questo file fai riferimento alla Guida RBB 1.1 deluxe: Manuale degli organizzatori"]

{"sheet":"Riepilogo_Risultati","index":2,"n_rows":35,"n_cols":15,"rows_kept":35,"cut":false,"hidden":false,"merged":[[30,7,30,10],[0,7,0,10],[6,7,6,10],[12,7,12,10],[18,7,18,10],[24,7,24,10],[13,1,13,4],[0,0,1,5],[2,0,2,5],[4,1,4,4],[5,1,5,4],[6,1,6,4],[8,1,8,4],[9,1,9,4]]}
[{"$f":"Riepilogo_Organizzazione!D4","v":0},null,null,null,null,null,null,{"$f":" IF(Riepilogo_Organizzazione!$D$11<>\"\",\"Classifica miglior \" & Riepilogo_Organizzazione!$D$11,\"(PG non utilizzato)\")","v":"(PG non utilizzato)"}]
[null,null,null,null,null,null,null,null,"Nome Giocatore","Squadra","Punteggio",null,null,null,"PG1"]
["Riepilogo Risultati",null,null,null,null,null,null,{"$f":"IF(Classifica_PG_1!A9<>\"\",Classifica_PG_1!A9,\"\")","v":""},{"$f":"IF(Classifica_PG_1!B9<>\"\",Classifica_PG_1!B9,\"\")","v":""},{"$f":"IF(Classifica_PG_1!D9<>\"\",Classifica_PG_1!D9,\"\")","v":""},{"$f":"IF(Classifica_PG_1!Q9<>\"\",Classifica_PG_1!Q9,\"\")","v":""},null,null,null,{"$f":"Classifica_PG_1!AA9","v":0}]
[null,null,null,null,null,null,null,{"$f":"IF(Classifica_PG_1!A10<>\"\",Classifica_PG_1!A10,\"\")","v":""},{"$f":"IF(Classifica_PG_1!B10<>\"\",Classifica_PG_1!B10,\"\")","v":""},{"$f":"IF(Classifica_PG_1!D10<>\"\",Classifica_PG_1!D10,\"\")","v":""},{"$f":"IF(Classifica_PG_1!Q10<>\"\",Classifica_PG_1!Q10,\"\")","v":""},null,null,null,{"$f":"Classifica_PG_1!AA10","v":0}]
[null,{"$f":" \"Gruppo organizzatore: \" & Riepilogo_Organizzazione!D5","v":"Gruppo organizzatore: "},null,null,null,null,null,{"$f":"IF(Classifica_PG_1!A11<>\"\",Classifica_PG_1!A11,\"\")","v":""},{"$f":"IF(Classifica_PG_1!B11<>\"\",Classifica_PG_1!B11,\"\")","v":""},{"$f":"IF(Classifica_PG_1!D11<>\"\",Classifica_PG_1!D11,\"\")","v":""},{"$f":"IF(Classifica_PG_1!Q11<>\"\",Classifica_PG_1!Q11,\"\")","v":""},null,null,null,{"$f":"Classifica_PG_1!AA11","v":0}]
[null,{"$f":" \"Località: \" & Riepilogo_Organizzazione!D6","v":"Località: "}]
[null,{"$f":" \"Date: \" & Riepilogo_Organizzazione!D7","v":"Date: "},null,null,null,null,null,{"$f":" IF(Riepilogo_Organizzazione!$D$12<>\"\",\"Classifica miglior \" & Riepilogo_Organizzazione!$D$12,\"(PG non utilizzato)\")","v":"(PG non utilizzato)"}]
[null,null,null,null,null,null,null,null,"Nome Giocatore","Squadra","Punteggio",null,null,null,"PG2"]
[null,{"$f":" \"Numero totale squadre partecipanti: \" & MAX(Classifica_Squadre!A9:A108)","v":"Numero totale squadre partecipanti: 0"},null,null,null,null,null,{"$f":"IF(Classifica_PG_2!A9<>\"\",Classifica_PG_2!A9,\"\")","v":""},{"$f":"IF(Classifica_PG_2!B9<>\"\",Classifica_PG_2!B9,\"\")","v":""},{"$f":"IF(Classifica_PG_2!D9<>\"\",Classifica_PG_2!D9,\"\")","v":""},{"$f":"IF(Classifica_PG_2!Q9<>\"\",Classifica_PG_2!Q9,\"\")","v":""},null,null,null,{"$f":"Classifica_PG_2!AA9","v":0}]
[null,{"$f":" \"Numero totale giocatori partecipanti: \" & (MAX(Classifica_PG_1!A9:A108) +MAX(Classifica_PG_2!A9:A108)+MAX(Classifica_PG_3!A9:A108) +MAX(Classifica_PG_4!A9:A108) +MAX(Classifica_PG_5!A9:A108) +MAX(Classifica_PG_6!A9:A108)  )","v":"Numero totale giocatori partecipanti: 0"},null,null,null,null,null,{"$f":"IF(Classifica_PG_2!A10<>\"\",Classifica_PG_2!A10,\"\")","v":""},{"$f":"IF(Classifica_PG_2!B10<>\"\",Classifica_PG_2!B10,\"\")","v":""},{"$f":"IF(Classifica_PG_2!D10<>\"\",Classifica_PG_2!D10,\"\")","v":""},{"$f":"IF(Classifica_PG_2!Q10<>\"\",Classifica_PG_2!Q10,\"\")","v":""},null,null,null,{"$f":"Classifica_PG_2!AA10","v":0}]
[null,null,null,null,null,null,null,{"$f":"IF(Classifica_PG_2!A11<>\"\",Classifica_PG_2!A11,\"\")","v":""},{"$f":"IF(Classifica_PG_2!B11<>\"\",Classifica_PG_2!B11,\"\")","v":""},{"$f":"IF(Classifica_PG_2!D11<>\"\",Classifica_PG_2!D11,\"\")","v":""},{"$f":"IF(Classifica_PG_2!Q11<>\"\",Classifica_PG_2!Q11,\"\")","v":""},null,null,null,{"$f":"Classifica_PG_2!AA11","v":0}]
[]
[null,null,null,null,null,null,null,{"$f":" IF(Riepilogo_Organizzazione!$D$13<>\"\",\"Classifica miglior \" & Riepilogo_Organizzazione!$D$13,\"(PG non utilizzato)\")","v":"(PG non utilizzato)"}]
[null,"Classifica a squadre",null,null,null,null,null,null,"Nome Giocatore","Squadra","Punteggio",null,"Squadre",null,"PG3"]
[null,null,"Nome Squadra","MR","Punteggio",null,null,{"$f":"IF(Classifica_PG_3!A9<>\"\",Classifica_PG_3!A9,\"\")","v":""},{"$f":"IF(Classifica_PG_3!B9<>\"\",Classifica_PG_3!B9,\"\")","v":""},{"$f":"IF(Classifica_PG_3!D9<>\"\",Classifica_PG_3!D9,\"\")","v":""},{"$f":"IF(Classifica_PG_3!Q9<>\"\",Classifica_PG_3!Q9,\"\")","v":""},null,null,null,{"$f":"Classifica_PG_3!AA9","v":0}]
[null,{"$f":"IF(Classifica_Squadre!A9<>\"\",Classifica_Squadre!A9,\"\")","v":""},{"$f":"IF(Classifica_Squadre!B9<>\"\",Classifica_Squadre!B9,\"\")","v":""},{"$f":"IF(Classifica_Squadre!M9<>\"\",Classifica_Squadre!M9,\"\")","v":""},{"$f":"IF(Classifica_Squadre!L9<>\"\",Classifica_Squadre!L9,\"\")","v":""},null,null,{"$f":"IF(Classifica_PG_3!A10<>\"\",Classifica_PG_3!A10,\"\")","v":""},{"$f":"IF(Classifica_PG_3!B10<>\"\",Classifica_PG_3!B10,\"\")","v":""},{"$f":"IF(Classifica_PG_3!D10<>\"\",Classifica_PG_3!D10,\"\")","v":""},{"$f":"IF(Classifica_PG_3!Q10<>\"\",Classifica_PG_3!Q10,\"\")","v":""},null,{"$f":"Classifica_Squadre!AC9","v":0},null,{"$f":"Classifica_PG_3!AA10","v":0}]
[null,{"$f":"IF(Classifica_Squadre!A10<>\"\",Classifica_Squadre!A10,\"\")","v":""},{"$f":"IF(Classifica_Squadre!B10<>\"\",Classifica_Squadre!B10,\"\")","v":""},{"$f":"IF(Classifica_Squadre!M10<>\"\",Classifica_Squadre!M10,\"\")","v":""},{"$f":"IF(Classifica_Squadre!L10<>\"\",Classifica_Squadre!L10,\"\")","v":""},null,null,{"$f":"IF(Classifica_PG_3!A11<>\"\",Classifica_PG_3!A11,\"\")","v":""},{"$f":"IF(Classifica_PG_3!B11<>\"\",Classifica_PG_3!B11,\"\")","v":""},{"$f":"IF(Classifica_PG_3!D11<>\"\",Classifica_PG_3!D11,\"\")","v":""},{"$f":"IF(Classifica_PG_3!Q11<>\"\",Classifica_PG_3!Q11,\"\")","v":""},null,{"$f":"Classifica_Squadre!AC10","v":0},null,{"$f":"Classifica_PG_3!AA11","v":0}]
[null,{"$f":"IF(Classifica_Squadre!A11<>\"\",Classifica_Squadre!A11,\"\")","v":""},{"$f":"IF(Classifica_Squadre!B11<>\"\",Classifica_Squadre!B11,\"\")","v":""},{"$f":"IF(Classifica_Squadre!M11<>\"\",Classifica_Squadre!M11,\"\")","v":""},{"$f":"IF(Classifica_Squadre!L11<>\"\",Classifica_Squadre!L11,\"\")","v":""},null,null,null,null,null,null,null,{"$f":"Classifica_Squadre!AC11","v":0}]
[null,{"$f":"IF(Classifica_Squadre!A12<>\"\",Classifica_Squadre!A12,\"\")","v":""},{"$f":"IF(Classifica_Squadre!B12<>\"\",Classifica_Squadre!B12,\"\")","v":""},{"$f":"IF(Classifica_Squadre!M12<>\"\",Classifica_Squadre!M12,\"\")","v":""},{"$f":"IF(Classifica_Squadre!L12<>\"\",Classifica_Squadre!L12,\"\")","v":""},null,null,{"$f":" IF(Riepilogo_Organizzazione!$D$14<>\"\",\"Classifica miglior \" & Riepilogo_Organizzazione!$D$14,\"(PG non utilizzato)\")","v":"(PG non utilizzato)"},null,null,null,null,{"$f":"Classifica_Squadre!AC12","v":0}]
[null,{"$f":"IF(Classifica_Squadre!A13<>\"\",Classifica_Squadre!A13,\"\")","v":""},{"$f":"IF(Classifica_Squadre!B13<>\"\",Classifica_Squadre!B13,\"\")","v":""},{"$f":"IF(Classifica_Squadre!M13<>\"\",Classifica_Squadre!M13,\"\")","v":""},{"$f":"IF(Classifica_Squadre!L13<>\"\",Classifica_Squadre!L13,\"\")","v":""},null,null,null,"Nome Giocatore","Squadra","Punteggio",null,{"$f":"Classifica_Squadre!AC13","v":0},null,"PG4"]
[null,{"$f":"IF(Classifica_Squadre!A14<>\"\",Classifica_Squadre!A14,\"\")","v":""},{"$f":"IF(Classifica_Squadre!B14<>\"\",Classifica_Squadre!B14,\"\")","v":""},{"$f":"IF(Classifica_Squadre!M14<>\"\",Classifica_Squadre!M14,\"\")","v":""},{"$f":"IF(Classifica_Squadre!L14<>\"\",Classifica_Squadre!L14,\"\")","v":""},null,null,{"$f":"IF(Classifica_PG_4!A9<>\"\",Classifica_PG_4!A9,\"\")","v":""},{"$f":"IF(Classifica_PG_4!B9<>\"\",Classifica_PG_4!B9,\"\")","v":""},{"$f":"IF(Classifica_PG_4!D9<>\"\",Classifica_PG_4!D9,\"\")","v":""},{"$f":"IF(Classifica_PG_4!Q9<>\"\",Classifica_PG_4!Q9,\"\")","v":""},null,{"$f":"Classifica_Squadre!AC14","v":0},null,{"$f":"Classifica_PG_4!AA9","v":0}]
[null,{"$f":"IF(Classifica_Squadre!A15<>\"\",Classifica_Squadre!A15,\"\")","v":""},{"$f":"IF(Classifica_Squadre!B15<>\"\",Classifica_Squadre!B15,\"\")","v":""},{"$f":"IF(Classifica_Squadre!M15<>\"\",Classifica_Squadre!M15,\"\")","v":""},{"$f":"IF(Classifica_Squadre!L15<>\"\",Classifica_Squadre!L15,\"\")","v":""},null,null,{"$f":"IF(Classifica_PG_4!A10<>\"\",Classifica_PG_4!A10,\"\")","v":""},{"$f":"IF(Classifica_PG_4!B10<>\"\",Classifica_PG_4!B10,\"\")","v":""},{"$f":"IF(Classifica_PG_4!D10<>\"\",Classifica_PG_4!D10,\"\")","v":""},{"$f":"IF(Classifica_PG_4!Q10<>\"\",Classifica_PG_4!Q10,\"\")","v":""},null,{"$f":"Classifica_Squadre!AC15","v":0},null,{"$f":"Classifica_PG_4!AA10","v":0}]
[null,{"$f":"IF(Classifica_Squadre!A16<>\"\",Classifica_Squadre!A16,\"\")","v":""},{"$f":"IF(Classifica_Squadre!B16<>\"\",Classifica_Squadre!B16,\"\")","v":""},{"$f":"IF(Classifica_Squadre!M16<>\"\",Classifica_Squadre!M16,\"\")","v":""},{"$f":"IF(Classifica_Squadre!L16<>\"\",Classifica_Squadre!L16,\"\")","v":""},null,null,{"$f":"IF(Classifica_PG_4!A11<>\"\",Classifica_PG_4!A11,\"\")","v":""},{"$f":"IF(Classifica_PG_4!B11<>\"\",Classifica_PG_4!B11,\"\")","v":""},{"$f":"IF(Classifica_PG_4!D11<>\"\",Classifica_PG_4!D11,\"\")","v":""},{"$f":"IF(Classifica_PG_4!Q11<>\"\",Classifica_PG_4!Q11,\"\")","v":""},null,{"$f":"Classifica_Squadre!AC16","v":0},null,{"$f":"Classifica_PG_4!AA11","v":0}]
[null,{"$f":"IF(Classifica_Squadre!A17<>\"\",Classifica_Squadre!A17,\"\")","v":""},{"$f":"IF(Classifica_Squadre!B17<>\"\",Classifica_Squadre!B17,\"\")","v":""},{"$f":"IF(Classifica_Squadre!M17<>\"\",Classifica_Squadre!M17,\"\")","v":""},{"$f":"IF(Classifica_Squadre!L17<>\"\",Classifica_Squadre!L17,\"\")","v":""},null,null,null,null,null,null,null,{"$f":"Classifica_Squadre!AC17","v":0}]
[null,{"$f":"IF(Classifica_Squadre!A18<>\"\",Classifica_Squadre!A18,\"\")","v":""},{"$f":"IF(Classifica_Squadre!B18<>\"\",Classifica_Squadre!B18,\"\")","v":""},{"$f":"IF(Classifica_Squadre!M18<>\"\",Classifica_Squadre!M18,\"\")","v":""},{"$f":"IF(Classifica_Squadre!L18<>\"\",Classifica_Squadre!L18,\"\")","v":""},null,null,{"$f":" IF(Riepilogo_Organizzazione!$D$15<>\"\",\"Classifica miglior \" & Riepilogo_Organizzazione!$D$15,\"(PG non utilizzato)\")","v":"(PG non utilizzato)"},null,null,null,null,{"$f":"Classifica_Squadre!AC18","v":0}]
[null,{"$f":"IF(Classifica_Squadre!A19<>\"\",Classifica_Squadre!A19,\"\")","v":""},{"$f":"IF(Classifica_Squadre!B19<>\"\",Classifica_Squadre!B19,\"\")","v":""},{"$f":"IF(Classifica_Squadre!M19<>\"\",Classifica_Squadre!M19,\"\")","v":""},{"$f":"IF(Classifica_Squadre!L19<>\"\",Classifica_Squadre!L19,\"\")","v":""},null,null,null,"Nome Giocatore","Squadra","Punteggio",null,{"$f":"Classifica_Squadre!AC19","v":0},null,"PG5"]
[null,{"$f":"IF(Classifica_Squadre!A20<>\"\",Classifica_Squadre!A20,\"\")","v":""},{"$f":"IF(Classifica_Squadre!B20<>\"\",Classifica_Squadre!B20,\"\")","v":""},{"$f":"IF(Classifica_Squadre!M20<>\"\",Classifica_Squadre!M20,\"\")","v":""},{"$f":"IF(Classifica_Squadre!L20<>\"\",Classifica_Squadre!L20,\"\")","v":""},null,null,{"$f":"IF(Classifica_PG_5!A9<>\"\",Classifica_PG_5!A9,\"\")","v":""},{"$f":"IF(Classifica_PG_5!B9<>\"\",Classifica_PG_5!B9,\"\")","v":""},{"$f":"IF(Classifica_PG_5!D9<>\"\",Classifica_PG_5!D9,\"\")","v":""},{"$f":"IF(Classifica_PG_5!Q9<>\"\",Classifica_PG_5!Q9,\"\")","v":""},null,{"$f":"Classifica_Squadre!AC20","v":0},null,{"$f":"Classifica_PG_5!AA9","v":0}]
[null,{"$f":"IF(Classifica_Squadre!A21<>\"\",Classifica_Squadre!A21,\"\")","v":""},{"$f":"IF(Classifica_Squadre!B21<>\"\",Classifica_Squadre!B21,\"\")","v":""},{"$f":"IF(Classifica_Squadre!M21<>\"\",Classifica_Squadre!M21,\"\")","v":""},{"$f":"IF(Classifica_Squadre!L21<>\"\",Classifica_Squadre!L21,\"\")","v":""},null,null,{"$f":"IF(Classifica_PG_5!A10<>\"\",Classifica_PG_5!A10,\"\")","v":""},{"$f":"IF(Classifica_PG_5!B10<>\"\",Classifica_PG_5!B10,\"\")","v":""},{"$f":"IF(Classifica_PG_5!D10<>\"\",Classifica_PG_5!D10,\"\")","v":""},{"$f":"IF(Classifica_PG_5!Q10<>\"\",Classifica_PG_5!Q10,\"\")","v":""},null,{"$f":"Classifica_Squadre!AC21","v":0},null,{"$f":"Classifica_PG_5!AA10","v":0}]
[null,{"$f":"IF(Classifica_Squadre!A22<>\"\",Classifica_Squadre!A22,\"\")","v":""},{"$f":"IF(Classifica_Squadre!B22<>\"\",Classifica_Squadre!B22,\"\")","v":""},{"$f":"IF(Classifica_Squadre!M22<>\"\",Classifica_Squadre!M22,\"\")","v":""},{"$f":"IF(Classifica_Squadre!L22<>\"\",Classifica_Squadre!L22,\"\")","v":""},null,null,{"$f":"IF(Classifica_PG_5!A11<>\"\",Classifica_PG_5!A11,\"\")","v":""},{"$f":"IF(Classifica_PG_5!B11<>\"\",Classifica_PG_5!B11,\"\")","v":""},{"$f":"IF(Classifica_PG_5!D11<>\"\",Classifica_PG_5!D11,\"\")","v":""},{"$f":"IF(Classifica_PG_5!Q11<>\"\",Classifica_PG_5!Q11,\"\")","v":""},null,{"$f":"Classifica_Squadre!AC22","v":0},null,{"$f":"Classifica_PG_5!AA11","v":0}]
[null,{"$f":"IF(Classifica_Squadre!A23<>\"\",Classifica_Squadre!A23,\"\")","v":""},{"$f":"IF(Classifica_Squadre!B23<>\"\",Classifica_Squadre!B23,\"\")","v":""},{"$f":"IF(Classifica_Squadre!M23<>\"\",Classifica_Squadre!M23,\"\")","v":""},{"$f":"IF(Classifica_Squadre!L23<>\"\",Classifica_Squadre!L23,\"\")","v":""},null,null,null,null,null,null,null,{"$f":"Classifica_Squadre!AC23","v":0}]
[null,{"$f":"IF(Classifica_Squadre!A24<>\"\",Classifica_Squadre!A24,\"\")","v":""},{"$f":"IF(Classifica_Squadre!B24<>\"\",Classifica_Squadre!B24,\"\")","v":""},{"$f":"IF(Classifica_Squadre!M24<>\"\",Classifica_Squadre!M24,\"\")","v":""},{"$f":"IF(Classifica_Squadre!L24<>\"\",Classifica_Squadre!L24,\"\")","v":""},null,null,{"$f":" IF(Riepilogo_Organizzazione!$D$16<>\"\",\"Classifica miglior \" & Riepilogo_Organizzazione!$D$16,\"(PG non utilizzato)\")","v":"(PG non utilizzato)"},null,null,null,null,{"$f":"Classifica_Squadre!AC24","v":0}]
[null,{"$f":"IF(Classifica_Squadre!A25<>\"\",Classifica_Squadre!A25,\"\")","v":""},{"$f":"IF(Classifica_Squadre!B25<>\"\",Classifica_Squadre!B25,\"\")","v":""},{"$f":"IF(Classifica_Squadre!M25<>\"\",Classifica_Squadre!M25,\"\")","v":""},{"$f":"IF(Classifica_Squadre!L25<>\"\",Classifica_Squadre!L25,\"\")","v":""},null,null,null,"Nome Giocatore","Squadra","Punteggio",null,{"$f":"Classifica_Squadre!AC25","v":0},null,"PG6"]
[null,{"$f":"IF(Classifica_Squadre!A26<>\"\",Classifica_Squadre!A26,\"\")","v":""},{"$f":"IF(Classifica_Squadre!B26<>\"\",Classifica_Squadre!B26,\"\")","v":""},{"$f":"IF(Classifica_Squadre!M26<>\"\",Classifica_Squadre!M26,\"\")","v":""},{"$f":"IF(Classifica_Squadre!L26<>\"\",Classifica_Squadre!L26,\"\")","v":""},null,null,{"$f":"IF(Classifica_PG_6!A9<>\"\",Classifica_PG_6!A9,\"\")","v":""},{"$f":"IF(Classifica_PG_6!B9<>\"\",Classifica_PG_6!B9,\"\")","v":""},{"$f":"IF(Classifica_PG_6!D9<>\"\",Classifica_PG_6!D9,\"\")","v":""},{"$f":"IF(Classifica_PG_6!Q9<>\"\",Classifica_PG_6!Q9,\"\")","v":""},null,{"$f":"Classifica_Squadre!AC26","v":0},null,{"$f":"Classifica_PG_6!AA9","v":0}]
[null,{"$f":"IF(Classifica_Squadre!A27<>\"\",Classifica_Squadre!A27,\"\")","v":""},{"$f":"IF(Classifica_Squadre!B27<>\"\",Classifica_Squadre!B27,\"\")","v":""},{"$f":"IF(Classifica_Squadre!M27<>\"\",Classifica_Squadre!M27,\"\")","v":""},{"$f":"IF(Classifica_Squadre!L27<>\"\",Classifica_Squadre!L27,\"\")","v":""},null,null,{"$f":"IF(Classifica_PG_6!A10<>\"\",Classifica_PG_6!A10,\"\")","v":""},{"$f":"IF(Classifica_PG_6!B10<>\"\",Classifica_PG_6!B10,\"\")","v":""},{"$f":"IF(Classifica_PG_6!D10<>\"\",Classifica_PG_6!D10,\"\")","v":""},{"$f":"IF(Classifica_PG_6!Q10<>\"\",Classifica_PG_6!Q10,\"\")","v":""},null,{"$f":"Classifica_Squadre!AC27","v":0},null,{"$f":"Classifica_PG_6!AA10","v":0}]
[null,{"$f":"IF(Classifica_Squadre!A28<>\"\",Classifica_Squadre!A28,\"\")","v":""},{"$f":"IF(Classifica_Squadre!B28<>\"\",Classifica_Squadre!B28,\"\")","v":""},{"$f":"IF(Classifica_Squadre!M28<>\"\",Classifica_Squadre!M28,\"\")","v":""},{"$f":"IF(Classifica_Squadre!L28<>\"\",Classifica_Squadre!L28,\"\")","v":""},null,null,{"$f":"IF(Classifica_PG_6!A11<>\"\",Classifica_PG_6!A11,\"\")","v":""},{"$f":"IF(Classifica_PG_6!B11<>\"\",Classifica_PG_6!B11,\"\")","v":""},{"$f":"IF(Classifica_PG_6!D11<>\"\",Classifica_PG_6!D11,\"\")","v":""},{"$f":"IF(Classifica_PG_6!Q11<>\"\",Classifica_PG_6!Q11,\"\")","v":""},null,{"$f":"Classifica_Squadre!AC28","v":0},null,{"$f":"Classifica_PG_6!AA11","v":0}]

{"sheet":"Classifica_Squadre","index":3,"n_rows":108,"n_cols":29,"rows_kept":108,"cut":false,"hidden":false,"merged":[[3,1,4,2],[3,3,3,11],[4,3,4,11],[6,6,7,8],[6,0,7,0],[6,4,7,4],[6,3,7,3],[6,2,7,2],[6,5,7,5],[6,21,6,26],[6,18,7,18],[6,16,7,16],[6,13,7,13],[6,1,7,1],[6,19,7,19],[6,14,7,14],[6,15,7,15],[6,11,7,11],[6,12,7,12]]}
[]
[]
[]
[null,"Classifica a squadre",null,{"$f":"CONCATENATE(Riepilogo_Organizzazione!$D$4,\" - \",Riepilogo_Organizzazione!$D$5)","v":" - "},null,null,null,null,null,null,null,null,null,{"$f":"Riepilogo_Organizzazione!$D$20/100","v":0},"Peso dell'AA"]
[null,null,null,{"$f":"CONCATENATE(Riepilogo_Organizzazione!$D$6,\" - \",Riepilogo_Organizzazione!$D$7)","v":" - "},null,null,null,null,null,null,null,null,null,{"$f":"Riepilogo_Organizzazione!$D$21/100","v":0},"Peso della VPG media"]
[]
["Posiz.","Nome Squadra","AA \"assoluta\"","media VPG \"assoluta\"","(VPG singole)","AA \"utile\"","media VPG \"utile\"",null,null,null,null,"punt. totale","MR","Provenienza","n° gioc.","master","comaster",null,"Nome File","Errori di compilazione?",null,"VPG del giocatore numero…",null,null,null,null,null,null,"Evidenziazione delle celle"]
[null,null,null,null,null,null,null,null,null,null,null,null,null,null,null,null,null,null,null,null,null,1,2,3,4,5,6]
[null,null,null,null,null,null,null,null,null,null,null,null,null,null,null,null,null,null,null,null,null,null,null,null,null,null,null,null,{"$f":"IF(AND(S9<>\"\",MOD(ROW(S9),2)=0),1,0)","v":0}]
[null,null,null,null,null,null,null,null,null,null,null,null,null,null,null,null,null,null,null,null,null,null,null,null,null,null,null,null,{"$f":"IF(AND(S10<>\"\",MOD(ROW(S10),2)=0),1,0)","v":0}]
[null,null,null,null,null,null,null,null,null,null,null,null,null,null,null,null,null,null,null,null,null,null,null,null,null,null,null,null,0]
[null,null,null,null,null,null,null,null,null,null,null,null,null,null,null,null,null,null,null,null,null,null,null,null,null,null,null,null,0]
[null,null,null,null,null,null,null,null,null,null,null,null,null,null,null,null,null,null,null,null,null,null,null,null,null,null,null,null,0]
[null,null,null,null,null,null,null,null,null,null,null,null,null,null,null,null,null,null,null,null,null,null,null,null,null,null,null,null,0]
[null,null,null,null,null,null,null,null,null,null,null,null,null,null,null,null,null,null,null,null,null,null,null,null,null,null,null,null,0]
[null,null,null,null,null,null,null,null,null,null,null,null,null,null,null,null,null,null,null,null,null,null,null,null,null,null,null,null,0]
[null,null,null,null,null,null,null,null,null,null,null,null,null,null,null,null,null,null,null,null,null,null,null,null,null,null,null,null,0]
[null,null,null,null,null,null,null,null,null,null,null,null,null,null,null,null,null,null,null,null,null,null,null,null,null,null,null,null,0]
[null,null,null,null,null,null,null,null,null,null,null,null,null,null,null,null,null,null,null,null,null,null,null,null,null,null,null,null,0]
[null,null,null,null,null,null,null,null,null,null,null,null,null,null,null,null,null,null,null,null,null,null,null,null,null,null,null,null,0]
[null,null,null,null,null,null,null,null,null,null,null,null,null,null,null,null,null,null,null,null,null,null,null,null,null,null,null,null,0]
[null,null,null,null,null,null,null,null,null,null,null,null,null,null,null,null,null,null,null,null,null,null,null,null,null,null,null,null,0]
[null,null,null,null,null,null,null,null,null,null,null,null,null,null,null,null,null,null,null,null,null,null,null,null,null,null,null,null,0]
[null,null,null,null,null,null,null,null,null,null,null,null,null,null,null,null,null,null,null,null,null,null,null,null,null,null,null,null,0]
[null,null,null,null,null,null,null,null,null,null,null,null,null,null,null,null,null,null,null,null,null,null,null,null,null,null,null,null,0]
[null,null,null,null,null,null,null,null,null,null,null,null,null,null,null,null,null,null,null,null,null,null,null,null,null,null,null,null,0]
[null,null,null,null,null,null,null,null,null,null,null,null,null,null,null,null,null,null,null,null,null,null,null,null,null,null,null,null,0]
[null,null,null,null,null,null,null,null,null,null,null,null,null,null,null,null,null,null,null,null,null,null,null,null,null,null,null,null,0]
[null,null,null,null,null,null,null,null,null,null,null,null,null,null,null,null,null,null,null,null,null,null,null,null,null,null,null,null,0]
[null,null,null,null,null,null,null,null,null,null,null,null,null,null,null,null,null,null,null,null,null,null,null,null,null,null,null,null,0]
[null,null,null,null,null,null,null,null,null,null,null,null,null,null,null,null,null,null,null,null,null,null,null,null,null,null,null,null,0]
[null,null,null,null,null,null,null,null,null,null,null,null,null,null,null,null,null,null,null,null,null,null,null,null,null,null,null,null,0]
[null,null,null,null,null,null,null,null,null,null,null,null,null,null,null,null,null,null,null,null,null,null,null,null,null,null,null,null,0]
[null,null,null,null,null,null,null,null,null,null,null,null,null,null,null,null,null,null,null,null,null,null,null,null,null,null,null,null,0]
[null,null,null,null,null,null,null,null,null,null,null,null,null,null,null,null,null,null,null,null,null,null,null,null,null,null,null,null,0]
[null,null,null,null,null,null,null,null,null,null,null,null,null,null,null,null,null,null,null,null,null,null,null,null,null,null,null,null,0]
[null,null,null,null,null,null,null,null,null,null,null,null,null,null,null,null,null,null,null,null,null,null,null,null,null,null,null,null,0]
[null,null,null,null,null,null,null,null,null,null,null,null,null,null,null,null,null,null,null,null,null,null,null,null,null,null,null,null,0]
[null,null,null,null,null,null,null,null,null,null,null,null,null,null,null,null,null,null,null,null,null,null,null,null,null,null,null,null,0]
[null,null,null,null,null,null,null,null,null,null,null,null,null,null,null,null,null,null,null,null,null,null,null,null,null,null,null,null,0]
[null,null,null,null,null,null,null,null,null,null,null,null,null,null,null,null,null,null,null,null,null,null,null,null,null,null,null,null,0]
[null,null,null,null,null,null,null,null,null,null,null,null,null,null,null,null,null,null,null,null,null,null,null,null,null,null,null,null,0]
[null,null,null,null,null,null,null,null,null,null,null,null,null,null,null,null,null,null,null,null,null,null,null,null,null,null,null,null,0]
[null,null,null,null,null,null,null,null,null,null,null,null,null,null,null,null,null,null,null,null,null,null,null,null,null,null,null,null,0]
[null,null,null,null,null,null,null,null,null,null,null,null,null,null,null,null,null,null,null,null,null,null,null,null,null,null,null,null,0]
[null,null,null,null,null,null,null,null,null,null,null,null,null,null,null,null,null,null,null,null,null,null,null,null,null,null,null,null,0]
[null,null,null,null,null,null,null,null,null,null,null,null,null,null,null,null,null,null,null,null,null,null,null,null,null,null,null,null,0]
[null,null,null,null,null,null,null,null,null,null,null,null,null,null,null,null,null,null,null,null,null,null,null,null,null,null,null,null,0]
[null,null,null,null,null,null,null,null,null,null,null,null,null,null,null,null,null,null,null,null,null,null,null,null,null,null,null,null,0]
[null,null,null,null,null,null,null,null,null,null,null,null,null,null,null,null,null,null,null,null,null,null,null,null,null,null,null,null,0]
[null,null,null,null,null,null,null,null,null,null,null,null,null,null,null,null,null,null,null,null,null,null,null,null,null,null,null,null,0]
[null,null,null,null,null,null,null,null,null,null,null,null,null,null,null,null,null,null,null,null,null,null,null,null,null,null,null,null,0]
[null,null,null,null,null,null,null,null,null,null,null,null,null,null,null,null,null,null,null,null,null,null,null,null,null,null,null,null,0]
[null,null,null,null,null,null,null,null,null,null,null,null,null,null,null,null,null,null,null,null,null,null,null,null,null,null,null,null,0]
[null,null,null,null,null,null,null,null,null,null,null,null,null,null,null,null,null,null,null,null,null,null,null,null,null,null,null,null,0]
[null,null,null,null,null,null,null,null,null,null,null,null,null,null,null,null,null,null,null,null,null,null,null,null,null,null,null,null,0]
[null,null,null,null,null,null,null,null,null,null,null,null,null,null,null,null,null,null,null,null,null,null,null,null,null,null,null,null,0]
[null,null,null,null,null,null,null,null,null,null,null,null,null,null,null,null,null,null,null,null,null,null,null,null,null,null,null,null,0]
[null,null,null,null,null,null,null,null,null,null,null,null,null,null,null,null,null,null,null,null,null,null,null,null,null,null,null,null,0]
[null,null,null,null,null,null,null,null,null,null,null,null,null,null,null,null,null,null,null,null,null,null,null,null,null,null,null,null,0]
[null,null,null,null,null,null,null,null,null,null,null,null,null,null,null,null,null,null,null,null,null,null,null,null,null,null,null,null,0]
[null,null,null,null,null,null,null,null,null,null,null,null,null,null,null,null,null,null,null,null,null,null,null,null,null,null,null,null,0]
[null,null,null,null,null,null,null,null,null,null,null,null,null,null,null,null,null,null,null,null,null,null,null,null,null,null,null,null,0]
[null,null,null,null,null,null,null,null,null,null,null,null,null,null,null,null,null,null,null,null,null,null,null,null,null,null,null,null,0]
[null,null,null,null,null,null,null,null,null,null,null,null,null,null,null,null,null,null,null,null,null,null,null,null,null,null,null,null,0]
[null,null,null,null,null,null,null,null,null,null,null,null,null,null,null,null,null,null,null,null,null,null,null,null,null,null,null,null,0]
[null,null,null,null,null,null,null,null,null,null,null,null,null,null,null,null,null,null,null,null,null,null,null,null,null,null,null,null,0]
[null,null,null,null,null,null,null,null,null,null,null,null,null,null,null,null,null,null,null,null,null,null,null,null,null,null,null,null,0]
[null,null,null,null,null,null,null,null,null,null,null,null,null,null,null,null,null,null,null,null,null,null,null,null,null,null,null,null,0]
[null,null,null,null,null,null,null,null,null,null,null,null,null,null,null,null,null,null,null,null,null,null,null,null,null,null,null,null,0]
[null,null,null,null,null,null,null,null,null,null,null,null,null,null,null,null,null,null,null,null,null,null,null,null,null,null,null,null,0]
[null,null,null,null,null,null,null,null,null,null,null,null,null,null,null,null,null,null,null,null,null,null,null,null,null,null,null,null,0]
[null,null,null,null,null,null,null,null,null,null,null,null,null,null,null,null,null,null,null,null,null,null,null,null,null,null,null,null,0]
[null,null,null,null,null,null,null,null,null,null,null,null,null,null,null,null,null,null,null,null,null,null,null,null,null,null,null,null,{"$f":"IF(AND(S74<>\"\",MOD(ROW(S74),2)=0),1,0)","v":0}]
[null,null,null,null,null,null,null,null,null,null,null,null,null,null,null,null,null,null,null,null,null,null,null,null,null,null,null,null,0]
[null,null,null,null,null,null,null,null,null,null,null,null,null,null,null,null,null,null,null,null,null,null,null,null,null,null,null,null,0]
[null,null,null,null,null,null,null,null,null,null,null,null,null,null,null,null,null,null,null,null,null,null,null,null,null,null,null,null,0]
[null,null,null,null,null,null,null,null,null,null,null,null,null,null,null,null,null,null,null,null,null,null,null,null,null,null,null,null,0]
[null,null,null,null,null,null,null,null,null,null,null,null,null,null,null,null,null,null,null,null,null,null,null,null,null,null,null,null,0]
[null,null,null,null,null,null,null,null,null,null,null,null,null,null,null,null,null,null,null,null,null,null,null,null,null,null,null,null,0]
[null,null,null,null,null,null,null,null,null,null,null,null,null,null,null,null,null,null,null,null,null,null,null,null,null,null,null,null,0]
[null,null,null,null,null,null,null,null,null,null,null,null,null,null,null,null,null,null,null,null,null,null,null,null,null,null,null,null,0]
[null,null,null,null,null,null,null,null,null,null,null,null,null,null,null,null,null,null,null,null,null,null,null,null,null,null,null,null,0]
[null,null,null,null,null,null,null,null,null,null,null,null,null,null,null,null,null,null,null,null,null,null,null,null,null,null,null,null,0]
[null,null,null,null,null,null,null,null,null,null,null,null,null,null,null,null,null,null,null,null,null,null,null,null,null,null,null,null,0]
[null,null,null,null,null,null,null,null,null,null,null,null,null,null,null,null,null,null,null,null,null,null,null,null,null,null,null,null,0]
[null,null,null,null,null,null,null,null,null,null,null,null,null,null,null,null,null,null,null,null,null,null,null,null,null,null,null,null,0]
[null,null,null,null,null,null,null,null,null,null,null,null,null,null,null,null,null,null,null,null,null,null,null,null,null,null,null,null,0]
[null,null,null,null,null,null,null,null,null,null,null,null,null,null,null,null,null,null,null,null,null,null,null,null,null,null,null,null,0]
[null,null,null,null,null,null,null,null,null,null,null,null,null,null,null,null,null,null,null,null,null,null,null,null,null,null,null,null,0]
[null,null,null,null,null,null,null,null,null,null,null,null,null,null,null,null,null,null,null,null,null,null,null,null,null,null,null,null,0]
[null,null,null,null,null,null,null,null,null,null,null,null,null,null,null,null,null,null,null,null,null,null,null,null,null,null,null,null,0]
[null,null,null,null,null,null,null,null,null,null,null,null,null,null,null,null,null,null,null,null,null,null,null,null,null,null,null,null,0]
[null,null,null,null,null,null,null,null,null,null,null,null,null,null,null,null,null,null,null,null,null,null,null,null,null,null,null,null,0]
[null,null,null,null,null,null,null,null,null,null,null,null,null,null,null,null,null,null,null,null,null,null,null,null,null,null,null,null,0]
[null,null,null,null,null,null,null,null,null,null,null,null,null,null,null,null,null,null,null,null,null,null,null,null,null,null,null,null,0]
[null,null,null,null,null,null,null,null,null,null,null,null,null,null,null,null,null,null,null,null,null,null,null,null,null,null,null,null,0]
[null,null,null,null,null,null,null,null,null,null,null,null,null,null,null,null,null,null,null,null,null,null,null,null,null,null,null,null,0]
[null,null,null,null,null,null,null,null,null,null,null,null,null,null,null,null,null,null,null,null,null,null,null,null,null,null,null,null,0]
[null,null,null,null,null,null,null,null,null,null,null,null,null,null,null,null,null,null,null,null,null,null,null,null,null,null,null,null,0]
[null,null,null,null,null,null,null,null,null,null,null,null,null,null,null,null,null,null,null,null,null,null,null,null,null,null,null,null,0]
[null,null,null,null,null,null,null,null,null,null,null,null,null,null,null,null,null,null,null,null,null,null,null,null,null,null,null,null,0]
[null,null,null,null,null,null,null,null,null,null,null,null,null,null,null,null,null,null,null,null,null,null,null,null,null,null,null,null,0]
[null,null,null,null,null,null,null,null,null,null,null,null,null,null,null,null,null,null,null,null,null,null,null,null,null,null,null,null,0]
[null,null,null,null,null,null,null,null,null,null,null,null,null,null,null,null,null,null,null,null,null,null,null,null,null,null,null,null,0]
[null,null,null,null,null,null,null,null,null,null,null,null,null,null,null,null,null,null,null,null,null,null,null,null,null,null,null,null,0]
[null,null,null,null,null,null,null,null,null,null,null,null,null,null,null,null,null,null,null,null,null,null,null,null,null,null,null,null,0]
[null,null,null,null,null,null,null,null,null,null,null,null,null,null,null,null,null,null,null,null,null,null,null,null,null,null,null,null,0]

{"sheet":"Classifica_PG_1","index":4,"n_rows":108,"n_cols":27,"rows_kept":108,"cut":false,"hidden":false,"merged":[[1,13,1,14],[2,13,2,14],[1,1,3,5],[6,8,7,8],[6,14,7,14],[5,6,7,6],[6,10,7,10],[5,23,7,23],[5,24,7,24],[5,0,7,0],[5,1,7,1],[5,2,7,2],[5,3,7,3],[5,4,7,4],[5,5,7,5],[6,19,7,19],[6,21,7,21],[6,17,7,17],[5,7,7,7],[6,16,7,16],[6,12,7,12],[5,8,5,16],[5,17,5,21]]}
[]
[null,{"$f":"CONCATENATE(\"Classifica del PG: \",Riepilogo_Organizzazione!$D$11)","v":"Classifica del PG: "},null,null,null,null,null,{"$f":"Riepilogo_Organizzazione!D23","v":0},"Peso della VSP nel punteggio",null,null,null,null,{"$f":"Riepilogo_Organizzazione!D42/100","v":0},null,"Peso della VSP nella VPG"]
[null,null,null,null,null,null,null,{"$f":"Riepilogo_Organizzazione!D24","v":0},"Peso della QB nel punteggio",null,null,null,null,{"$f":"Riepilogo_Organizzazione!D43/100","v":0},null,"Peso della QB nella VPG"]
[null,null,null,null,null,null,null,{"$f":"Riepilogo_Organizzazione!D25","v":0},"Peso dell'AA nel punteggio"]
[]
["Posiz.","Nome e cognome giocatore","ID giocatore","Squadra di appartenenza","Franch.","VSP \"assoluta\"","QB \"assoluta\"","AA \"assoluta\"","Calcolo del punteggio del personaggio",null,null,null,null,null,null,null,null,"Calcolo della VPG",null,null,null,null,null,"Cognome","Nome"]
[null,null,null,null,null,null,null,null,"VSP \"utile\"",null,"QB \"utile\"",null,"AA \"utile\"",null,null,null,"punt. totale","VSP \"utile\"",null,"QB \"utile\"",null,"totale VPG",null,null,null,null,"Evidenziazione celle"]
[]
[null,null,null,null,null,null,null,null,null,null,null,null,null,null,null,null,null,null,null,null,null,null,null,null,null,null,{"$f":"IF(AND(R9<>\"\",MOD(ROW(R9),2)=0),1,0)","v":0}]
[null,null,null,null,null,null,null,null,null,null,null,null,null,null,null,null,null,null,null,null,null,null,null,null,null,null,{"$f":"IF(AND(R10<>\"\",MOD(ROW(R10),2)=0),1,0)","v":0}]
[null,null,null,null,null,null,null,null,null,null,null,null,null,null,null,null,null,null,null,null,null,null,null,null,null,null,0]
[null,null,null,null,null,null,null,null,null,null,null,null,null,null,null,null,null,null,null,null,null,null,null,null,null,null,0]
[null,null,null,null,null,null,null,null,null,null,null,null,null,null,null,null,null,null,null,null,null,null,null,null,null,null,0]
[null,null,null,null,null,null,null,null,null,null,null,null,null,null,null,null,null,null,null,null,null,null,null,null,null,null,0]
[null,null,null,null,null,null,null,null,null,null,null,null,null,null,null,null,null,null,null,null,null,null,null,null,null,null,0]
[null,null,null,null,null,null,null,null,null,null,null,null,null,null,null,null,null,null,null,null,null,null,null,null,null,null,0]
[null,null,null,null,null,null,null,null,null,null,null,null,null,null,null,null,null,null,null,null,null,null,null,null,null,null,0]
[null,null,null,null,null,null,null,null,null,null,null,null,null,null,null,null,null,null,null,null,null,null,null,null,null,null,0]
[null,null,null,null,null,null,null,null,null,null,null,null,null,null,null,null,null,null,null,null,null,null,null,null,null,null,0]
[null,null,null,null,null,null,null,null,null,null,null,null,null,null,null,null,null,null,null,null,null,null,null,null,null,null,0]
[null,null,null,null,null,null,null,null,null,null,null,null,null,null,null,null,null,null,null,null,null,null,null,null,null,null,0]
[null,null,null,null,null,null,null,null,null,null,null,null,null,null,null,null,null,null,null,null,null,null,null,null,null,null,0]
[null,null,null,null,null,null,null,null,null,null,null,null,null,null,null,null,null,null,null,null,null,null,null,null,null,null,0]
[null,null,null,null,null,null,null,null,null,null,null,null,null,null,null,null,null,null,null,null,null,null,null,null,null,null,0]
[null,null,null,null,null,null,null,null,null,null,null,null,null,null,null,null,null,null,null,null,null,null,null,null,null,null,0]
[null,null,null,null,null,null,null,null,null,null,null,null,null,null,null,null,null,null,null,null,null,null,null,null,null,null,0]
[null,null,null,null,null,null,null,null,null,null,null,null,null,null,null,null,null,null,null,null,null,null,null,null,null,null,0]
[null,null,null,null,null,null,null,null,null,null,null,null,null,null,null,null,null,null,null,null,null,null,null,null,null,null,0]
[null,null,null,null,null,null,null,null,null,null,null,null,null,null,null,null,null,null,null,null,null,null,null,null,null,null,0]
[null,null,null,null,null,null,null,null,null,null,null,null,null,null,null,null,null,null,null,null,null,null,null,null,null,null,0]
[null,null,null,null,null,null,null,null,null,null,null,null,null,null,null,null,null,null,null,null,null,null,null,null,null,null,0]
[null,null,null,null,null,null,null,null,null,null,null,null,null,null,null,null,null,null,null,null,null,null,null,null,null,null,0]
[null,null,null,null,null,null,null,null,null,null,null,null,null,null,null,null,null,null,null,null,null,null,null,null,null,null,0]
[null,null,null,null,null,null,null,null,null,null,null,null,null,null,null,null,null,null,null,null,null,null,null,null,null,null,0]
[null,null,null,null,null,null,null,null,null,null,null,null,null,null,null,null,null,null,null,null,null,null,null,null,null,null,0]
[null,null,null,null,null,null,null,null,null,null,null,null,null,null,null,null,null,null,null,null,null,null,null,null,null,null,0]
[null,null,null,null,null,null,null,null,null,null,null,null,null,null,null,null,null,null,null,null,null,null,null,null,null,null,0]
[null,null,null,null,null,null,null,null,null,null,null,null,null,null,null,null,null,null,null,null,null,null,null,null,null,null,0]
[null,null,null,null,null,null,null,null,null,null,null,null,null,null,null,null,null,null,null,null,null,null,null,null,null,null,0]
[null,null,null,null,null,null,null,null,null,null,null,null,null,null,null,null,null,null,null,null,null,null,null,null,null,null,0]
[null,null,null,null,null,null,null,null,null,null,null,null,null,null,null,null,null,null,null,null,null,null,null,null,null,null,0]
[null,null,null,null,null,null,null,null,null,null,null,null,null,null,null,null,null,null,null,null,null,null,null,null,null,null,0]
[null,null,null,null,null,null,null,null,null,null,null,null,null,null,null,null,null,null,null,null,null,null,null,null,null,null,0]
[null,null,null,null,null,null,null,null,null,null,null,null,null,null,null,null,null,null,null,null,null,null,null,null,null,null,0]
[null,null,null,null,null,null,null,null,null,null,null,null,null,null,null,null,null,null,null,null,null,null,null,null,null,null,0]
[null,null,null,null,null,null,null,null,null,null,null,null,null,null,null,null,null,null,null,null,null,null,null,null,null,null,0]
[null,null,null,null,null,null,null,null,null,null,null,null,null,null,null,null,null,null,null,null,null,null,null,null,null,null,0]
[null,null,null,null,null,null,null,null,null,null,null,null,null,null,null,null,null,null,null,null,null,null,null,null,null,null,0]
[null,null,null,null,null,null,null,null,null,null,null,null,null,null,null,null,null,null,null,null,null,null,null,null,null,null,0]
[null,null,null,null,null,null,null,null,null,null,null,null,null,null,null,null,null,null,null,null,null,null,null,null,null,null,0]
[null,null,null,null,null,null,null,null,null,null,null,null,null,null,null,null,null,null,null,null,null,null,null,null,null,null,0]
[null,null,null,null,null,null,null,null,null,null,null,null,null,null,null,null,null,null,null,null,null,null,null,null,null,null,0]
[null,null,null,null,null,null,null,null,null,null,null,null,null,null,null,null,null,null,null,null,null,null,null,null,null,null,0]
[null,null,null,null,null,null,null,null,null,null,null,null,null,null,null,null,null,null,null,null,null,null,null,null,null,null,0]
[null,null,null,null,null,null,null,null,null,null,null,null,null,null,null,null,null,null,null,null,null,null,null,null,null,null,0]
[null,null,null,null,null,null,null,null,null,null,null,null,null,null,null,null,null,null,null,null,null,null,null,null,null,null,0]
[null,null,null,null,null,null,null,null,null,null,null,null,null,null,null,null,null,null,null,null,null,null,null,null,null,null,0]
[null,null,null,null,null,null,null,null,null,null,null,null,null,null,null,null,null,null,null,null,null,null,null,null,null,null,0]
[null,null,null,null,null,null,null,null,null,null,null,null,null,null,null,null,null,null,null,null,null,null,null,null,null,null,0]
[null,null,null,null,null,null,null,null,null,null,null,null,null,null,null,null,null,null,null,null,null,null,null,null,null,null,0]
[null,null,null,null,null,null,null,null,null,null,null,null,null,null,null,null,null,null,null,null,null,null,null,null,null,null,0]
[null,null,null,null,null,null,null,null,null,null,null,null,null,null,null,null,null,null,null,null,null,null,null,null,null,null,0]
[null,null,null,null,null,null,null,null,null,null,null,null,null,null,null,null,null,null,null,null,null,null,null,null,null,null,0]
[null,null,null,null,null,null,null,null,null,null,null,null,null,null,null,null,null,null,null,null,null,null,null,null,null,null,0]
[null,null,null,null,null,null,null,null,null,null,null,null,null,null,null,null,null,null,null,null,null,null,null,null,null,null,0]
[null,null,null,null,null,null,null,null,null,null,null,null,null,null,null,null,null,null,null,null,null,null,null,null,null,null,0]
[null,null,null,null,null,null,null,null,null,null,null,null,null,null,null,null,null,null,null,null,null,null,null,null,null,null,0]
[null,null,null,null,null,null,null,null,null,null,null,null,null,null,null,null,null,null,null,null,null,null,null,null,null,null,0]
[null,null,null,null,null,null,null,null,null,null,null,null,null,null,null,null,null,null,null,null,null,null,null,null,null,null,0]
[null,null,null,null,null,null,null,null,null,null,null,null,null,null,null,null,null,null,null,null,null,null,null,null,null,null,0]
[null,null,null,null,null,null,null,null,null,null,null,null,null,null,null,null,null,null,null,null,null,null,null,null,null,null,0]
[null,null,null,null,null,null,null,null,null,null,null,null,null,null,null,null,null,null,null,null,null,null,null,null,null,null,0]
[null,null,null,null,null,null,null,null,null,null,null,null,null,null,null,null,null,null,null,null,null,null,null,null,null,null,0]
[null,null,null,null,null,null,null,null,null,null,null,null,null,null,null,null,null,null,null,null,null,null,null,null,null,null,{"$f":"IF(AND(R74<>\"\",MOD(ROW(R74),2)=0),1,0)","v":0}]
[null,null,null,null,null,null,null,null,null,null,null,null,null,null,null,null,null,null,null,null,null,null,null,null,null,null,0]
[null,null,null,null,null,null,null,null,null,null,null,null,null,null,null,null,null,null,null,null,null,null,null,null,null,null,0]
[null,null,null,null,null,null,null,null,null,null,null,null,null,null,null,null,null,null,null,null,null,null,null,null,null,null,0]
[null,null,null,null,null,null,null,null,null,null,null,null,null,null,null,null,null,null,null,null,null,null,null,null,null,null,0]
[null,null,null,null,null,null,null,null,null,null,null,null,null,null,null,null,null,null,null,null,null,null,null,null,null,null,0]
[null,null,null,null,null,null,null,null,null,null,null,null,null,null,null,null,null,null,null,null,null,null,null,null,null,null,0]
[null,null,null,null,null,null,null,null,null,null,null,null,null,null,null,null,null,null,null,null,null,null,null,null,null,null,0]
[null,null,null,null,null,null,null,null,null,null,null,null,null,null,null,null,null,null,null,null,null,null,null,null,null,null,0]
[null,null,null,null,null,null,null,null,null,null,null,null,null,null,null,null,null,null,null,null,null,null,null,null,null,null,0]
[null,null,null,null,null,null,null,null,null,null,null,null,null,null,null,null,null,null,null,null,null,null,null,null,null,null,0]
[null,null,null,null,null,null,null,null,null,null,null,null,null,null,null,null,null,null,null,null,null,null,null,null,null,null,0]
[null,null,null,null,null,null,null,null,null,null,null,null,null,null,null,null,null,null,null,null,null,null,null,null,null,null,0]
[null,null,null,null,null,null,null,null,null,null,null,null,null,null,null,null,null,null,null,null,null,null,null,null,null,null,0]
[null,null,null,null,null,null,null,null,null,null,null,null,null,null,null,null,null,null,null,null,null,null,null,null,null,null,0]
[null,null,null,null,null,null,null,null,null,null,null,null,null,null,null,null,null,null,null,null,null,null,null,null,null,null,0]
[null,null,null,null,null,null,null,null,null,null,null,null,null,null,null,null,null,null,null,null,null,null,null,null,null,null,0]
[null,null,null,null,null,null,null,null,null,null,null,null,null,null,null,null,null,null,null,null,null,null,null,null,null,null,0]
[null,null,null,null,null,null,null,null,null,null,null,null,null,null,null,null,null,null,null,null,null,null,null,null,null,null,0]
[null,null,null,null,null,null,null,null,null,null,null,null,null,null,null,null,null,null,null,null,null,null,null,null,null,null,0]
[null,null,null,null,null,null,null,null,null,null,null,null,null,null,null,null,null,null,null,null,null,null,null,null,null,null,0]
[null,null,null,null,null,null,null,null,null,null,null,null,null,null,null,null,null,null,null,null,null,null,null,null,null,null,0]
[null,null,null,null,null,null,null,null,null,null,null,null,null,null,null,null,null,null,null,null,null,null,null,null,null,null,0]
[null,null,null,null,null,null,null,null,null,null,null,null,null,null,null,null,null,null,null,null,null,null,null,null,null,null,0]
[null,null,null,null,null,null,null,null,null,null,null,null,null,null,null,null,null,null,null,null,null,null,null,null,null,null,0]
[null,null,null,null,null,null,null,null,null,null,null,null,null,null,null,null,null,null,null,null,null,null,null,null,null,null,0]
[null,null,null,null,null,null,null,null,null,null,null,null,null,null,null,null,null,null,null,null,null,null,null,null,null,null,0]
[null,null,null,null,null,null,null,null,null,null,null,null,null,null,null,null,null,null,null,null,null,null,null,null,null,null,0]
[null,null,null,null,null,null,null,null,null,null,null,null,null,null,null,null,null,null,null,null,null,null,null,null,null,null,0]
[null,null,null,null,null,null,null,null,null,null,null,null,null,null,null,null,null,null,null,null,null,null,null,null,null,null,0]
[null,null,null,null,null,null,null,null,null,null,null,null,null,null,null,null,null,null,null,null,null,null,null,null,null,null,0]
[null,null,null,null,null,null,null,null,null,null,null,null,null,null,null,null,null,null,null,null,null,null,null,null,null,null,0]
[null,null,null,null,null,null,null,null,null,null,null,null,null,null,null,null,null,null,null,null,null,null,null,null,null,null,0]
[null,null,null,null,null,null,null,null,null,null,null,null,null,null,null,null,null,null,null,null,null,null,null,null,null,null,0]
[null,null,null,null,null,null,null,null,null,null,null,null,null,null,null,null,null,null,null,null,null,null,null,null,null,null,0]

{"sheet":"Classifica_PG_2","index":5,"n_rows":108,"n_cols":30,"rows_kept":108,"cut":false,"hidden":false,"merged":[[5,23,7,23],[5,24,7,24],[6,8,7,8],[6,10,7,10],[6,12,7,12],[6,14,7,14],[6,16,7,16],[6,17,7,17],[6,19,7,19],[6,21,7,21],[5,17,5,21],[1,1,3,5],[1,13,1,14],[2,13,2,14],[5,6,7,6],[5,7,7,7],[5,8,5,16],[5,5,7,5],[5,0,7,0],[5,1,7,1],[5,2,7,2],[5,3,7,3],[5,4,7,4]]}
[]
[null,{"$f":"CONCATENATE(\"Classifica del PG: \",Riepilogo_Organizzazione!$D$12)","v":"Classifica del PG: "},null,null,null,null,null,{"$f":"Riepilogo_Organizzazione!D26","v":0},"Peso della VSP nel punteggio",null,null,null,null,{"$f":"Riepilogo_Organizzazione!D44/100","v":0},null,"Peso della VSP nella VPG",null,null,null,null,null,null,null,null,null,null,null,null,{"$f":"IF(Riepilogo_Organizzazione!D11<>\"\",0,1)","v":1},"PG non utilizzato"]
[null,null,null,null,null,null,null,{"$f":"Riepilogo_Organizzazione!D27","v":0},"Peso della QB nel punteggio",null,null,null,null,{"$f":"Riepilogo_Organizzazione!D45/100","v":0},null,"Peso della QB nella VPG"]
[null,null,null,null,null,null,null,{"$f":"Riepilogo_Organizzazione!D28","v":0},"Peso dell'AA nel punteggio"]
[]
["Posiz.","Nome e cognome giocatore","ID giocatore","Squadra di appartenenza","Franch.","VSP \"assoluta\"","QB \"assoluta\"","AA \"assoluta\"","Calcolo del punteggio del personaggio",null,null,null,null,null,null,null,null,"Calcolo della VPG",null,null,null,null,null,"Cognome","Nome"]
[null,null,null,null,null,null,null,null,"VSP \"utile\"",null,"QB \"utile\"",null,"AA \"utile\"",null,null,null,"punt. totale","VSP \"utile\"",null,"QB \"utile\"",null,"totale VPG",null,null,null,null,"Evidenziazione celle"]
[]
[null,null,null,null,null,null,null,null,null,null,null,null,null,null,null,null,null,null,null,null,null,null,null,null,null,null,{"$f":"IF(AND(R9<>\"\",MOD(ROW(R9),2)=0),1,0)","v":0}]
[null,null,null,null,null,null,null,null,null,null,null,null,null,null,null,null,null,null,null,null,null,null,null,null,null,null,{"$f":"IF(AND(R10<>\"\",MOD(ROW(R10),2)=0),1,0)","v":0}]
[null,null,null,null,null,null,null,null,null,null,null,null,null,null,null,null,null,null,null,null,null,null,null,null,null,null,0]
[null,null,null,null,null,null,null,null,null,null,null,null,null,null,null,null,null,null,null,null,null,null,null,null,null,null,0]
[null,null,null,null,null,null,null,null,null,null,null,null,null,null,null,null,null,null,null,null,null,null,null,null,null,null,0]
[null,null,null,null,null,null,null,null,null,null,null,null,null,null,null,null,null,null,null,null,null,null,null,null,null,null,0]
[null,null,null,null,null,null,null,null,null,null,null,null,null,null,null,null,null,null,null,null,null,null,null,null,null,null,0]
[null,null,null,null,null,null,null,null,null,null,null,null,null,null,null,null,null,null,null,null,null,null,null,null,null,null,0]
[null,null,null,null,null,null,null,null,null,null,null,null,null,null,null,null,null,null,null,null,null,null,null,null,null,null,0]
[null,null,null,null,null,null,null,null,null,null,null,null,null,null,null,null,null,null,null,null,null,null,null,null,null,null,0]
[null,null,null,null,null,null,null,null,null,null,null,null,null,null,null,null,null,null,null,null,null,null,null,null,null,null,0]
[null,null,null,null,null,null,null,null,null,null,null,null,null,null,null,null,null,null,null,null,null,null,null,null,null,null,0]
[null,null,null,null,null,null,null,null,null,null,null,null,null,null,null,null,null,null,null,null,null,null,null,null,null,null,0]
[null,null,null,null,null,null,null,null,null,null,null,null,null,null,null,null,null,null,null,null,null,null,null,null,null,null,0]
[null,null,null,null,null,null,null,null,null,null,null,null,null,null,null,null,null,null,null,null,null,null,null,null,null,null,0]
[null,null,null,null,null,null,null,null,null,null,null,null,null,null,null,null,null,null,null,null,null,null,null,null,null,null,0]
[null,null,null,null,null,null,null,null,null,null,null,null,null,null,null,null,null,null,null,null,null,null,null,null,null,null,0]
[null,null,null,null,null,null,null,null,null,null,null,null,null,null,null,null,null,null,null,null,null,null,null,null,null,null,0]
[null,null,null,null,null,null,null,null,null,null,null,null,null,null,null,null,null,null,null,null,null,null,null,null,null,null,0]
[null,null,null,null,null,null,null,null,null,null,null,null,null,null,null,null,null,null,null,null,null,null,null,null,null,null,0]
[null,null,null,null,null,null,null,null,null,null,null,null,null,null,null,null,null,null,null,null,null,null,null,null,null,null,0]
[null,null,null,null,null,null,null,null,null,null,null,null,null,null,null,null,null,null,null,null,null,null,null,null,null,null,0]
[null,null,null,null,null,null,null,null,null,null,null,null,null,null,null,null,null,null,null,null,null,null,null,null,null,null,0]
[null,null,null,null,null,null,null,null,null,null,null,null,null,null,null,null,null,null,null,null,null,null,null,null,null,null,0]
[null,null,null,null,null,null,null,null,null,null,null,null,null,null,null,null,null,null,null,null,null,null,null,null,null,null,0]
[null,null,null,null,null,null,null,null,null,null,null,null,null,null,null,null,null,null,null,null,null,null,null,null,null,null,0]
[null,null,null,null,null,null,null,null,null,null,null,null,null,null,null,null,null,null,null,null,null,null,null,null,null,null,0]
[null,null,null,null,null,null,null,null,null,null,null,null,null,null,null,null,null,null,null,null,null,null,null,null,null,null,0]
[null,null,null,null,null,null,null,null,null,null,null,null,null,null,null,null,null,null,null,null,null,null,null,null,null,null,0]
[null,null,null,null,null,null,null,null,null,null,null,null,null,null,null,null,null,null,null,null,null,null,null,null,null,null,0]
[null,null,null,null,null,null,null,null,null,null,null,null,null,null,null,null,null,null,null,null,null,null,null,null,null,null,0]
[null,null,null,null,null,null,null,null,null,null,null,null,null,null,null,null,null,null,null,null,null,null,null,null,null,null,0]
[null,null,null,null,null,null,null,null,null,null,null,null,null,null,null,null,null,null,null,null,null,null,null,null,null,null,0]
[null,null,null,null,null,null,null,null,null,null,null,null,null,null,null,null,null,null,null,null,null,null,null,null,null,null,0]
[null,null,null,null,null,null,null,null,null,null,null,null,null,null,null,null,null,null,null,null,null,null,null,null,null,null,0]
[null,null,null,null,null,null,null,null,null,null,null,null,null,null,null,null,null,null,null,null,null,null,null,null,null,null,0]
[null,null,null,null,null,null,null,null,null,null,null,null,null,null,null,null,null,null,null,null,null,null,null,null,null,null,0]
[null,null,null,null,null,null,null,null,null,null,null,null,null,null,null,null,null,null,null,null,null,null,null,null,null,null,0]
[null,null,null,null,null,null,null,null,null,null,null,null,null,null,null,null,null,null,null,null,null,null,null,null,null,null,0]
[null,null,null,null,null,null,null,null,null,null,null,null,null,null,null,null,null,null,null,null,null,null,null,null,null,null,0]
[null,null,null,null,null,null,null,null,null,null,null,null,null,null,null,null,null,null,null,null,null,null,null,null,null,null,0]
[null,null,null,null,null,null,null,null,null,null,null,null,null,null,null,null,null,null,null,null,null,null,null,null,null,null,0]
[null,null,null,null,null,null,null,null,null,null,null,null,null,null,null,null,null,null,null,null,null,null,null,null,null,null,0]
[null,null,null,null,null,null,null,null,null,null,null,null,null,null,null,null,null,null,null,null,null,null,null,null,null,null,0]
[null,null,null,null,null,null,null,null,null,null,null,null,null,null,null,null,null,null,null,null,null,null,null,null,null,null,0]
[null,null,null,null,null,null,null,null,null,null,null,null,null,null,null,null,null,null,null,null,null,null,null,null,null,null,0]
[null,null,null,null,null,null,null,null,null,null,null,null,null,null,null,null,null,null,null,null,null,null,null,null,null,null,0]
[null,null,null,null,null,null,null,null,null,null,null,null,null,null,null,null,null,null,null,null,null,null,null,null,null,null,0]
[null,null,null,null,null,null,null,null,null,null,null,null,null,null,null,null,null,null,null,null,null,null,null,null,null,null,0]
[null,null,null,null,null,null,null,null,null,null,null,null,null,null,null,null,null,null,null,null,null,null,null,null,null,null,0]
[null,null,null,null,null,null,null,null,null,null,null,null,null,null,null,null,null,null,null,null,null,null,null,null,null,null,0]
[null,null,null,null,null,null,null,null,null,null,null,null,null,null,null,null,null,null,null,null,null,null,null,null,null,null,0]
[null,null,null,null,null,null,null,null,null,null,null,null,null,null,null,null,null,null,null,null,null,null,null,null,null,null,0]
[null,null,null,null,null,null,null,null,null,null,null,null,null,null,null,null,null,null,null,null,null,null,null,null,null,null,0]
[null,null,null,null,null,null,null,null,null,null,null,null,null,null,null,null,null,null,null,null,null,null,null,null,null,null,0]
[null,null,null,null,null,null,null,null,null,null,null,null,null,null,null,null,null,null,null,null,null,null,null,null,null,null,0]
[null,null,null,null,null,null,null,null,null,null,null,null,null,null,null,null,null,null,null,null,null,null,null,null,null,null,0]
[null,null,null,null,null,null,null,null,null,null,null,null,null,null,null,null,null,null,null,null,null,null,null,null,null,null,0]
[null,null,null,null,null,null,null,null,null,null,null,null,null,null,null,null,null,null,null,null,null,null,null,null,null,null,0]
[null,null,null,null,null,null,null,null,null,null,null,null,null,null,null,null,null,null,null,null,null,null,null,null,null,null,0]
[null,null,null,null,null,null,null,null,null,null,null,null,null,null,null,null,null,null,null,null,null,null,null,null,null,null,0]
[null,null,null,null,null,null,null,null,null,null,null,null,null,null,null,null,null,null,null,null,null,null,null,null,null,null,0]
[null,null,null,null,null,null,null,null,null,null,null,null,null,null,null,null,null,null,null,null,null,null,null,null,null,null,0]
[null,null,null,null,null,null,null,null,null,null,null,null,null,null,null,null,null,null,null,null,null,null,null,null,null,null,0]
[null,null,null,null,null,null,null,null,null,null,null,null,null,null,null,null,null,null,null,null,null,null,null,null,null,null,0]
[null,null,null,null,null,null,null,null,null,null,null,null,null,null,null,null,null,null,null,null,null,null,null,null,null,null,{"$f":"IF(AND(R74<>\"\",MOD(ROW(R74),2)=0),1,0)","v":0}]
[null,null,null,null,null,null,null,null,null,null,null,null,null,null,null,null,null,null,null,null,null,null,null,null,null,null,0]
[null,null,null,null,null,null,null,null,null,null,null,null,null,null,null,null,null,null,null,null,null,null,null,null,null,null,0]
[null,null,null,null,null,null,null,null,null,null,null,null,null,null,null,null,null,null,null,null,null,null,null,null,null,null,0]
[null,null,null,null,null,null,null,null,null,null,null,null,null,null,null,null,null,null,null,null,null,null,null,null,null,null,0]
[null,null,null,null,null,null,null,null,null,null,null,null,null,null,null,null,null,null,null,null,null,null,null,null,null,null,0]
[null,null,null,null,null,null,null,null,null,null,null,null,null,null,null,null,null,null,null,null,null,null,null,null,null,null,0]
[null,null,null,null,null,null,null,null,null,null,null,null,null,null,null,null,null,null,null,null,null,null,null,null,null,null,0]
[null,null,null,null,null,null,null,null,null,null,null,null,null,null,null,null,null,null,null,null,null,null,null,null,null,null,0]
[null,null,null,null,null,null,null,null,null,null,null,null,null,null,null,null,null,null,null,null,null,null,null,null,null,null,0]
[null,null,null,null,null,null,null,null,null,null,null,null,null,null,null,null,null,null,null,null,null,null,null,null,null,null,0]
[null,null,null,null,null,null,null,null,null,null,null,null,null,null,null,null,null,null,null,null,null,null,null,null,null,null,0]
[null,null,null,null,null,null,null,null,null,null,null,null,null,null,null,null,null,null,null,null,null,null,null,null,null,null,0]
[null,null,null,null,null,null,null,null,null,null,null,null,null,null,null,null,null,null,null,null,null,null,null,null,null,null,0]
[null,null,null,null,null,null,null,null,null,null,null,null,null,null,null,null,null,null,null,null,null,null,null,null,null,null,0]
[null,null,null,null,null,null,null,null,null,null,null,null,null,null,null,null,null,null,null,null,null,null,null,null,null,null,0]
[null,null,null,null,null,null,null,null,null,null,null,null,null,null,null,null,null,null,null,null,null,null,null,null,null,null,0]
[null,null,null,null,null,null,null,null,null,null,null,null,null,null,null,null,null,null,null,null,null,null,null,null,null,null,0]
[null,null,null,null,null,null,null,null,null,null,null,null,null,null,null,null,null,null,null,null,null,null,null,null,null,null,0]
[null,null,null,null,null,null,null,null,null,null,null,null,null,null,null,null,null,null,null,null,null,null,null,null,null,null,0]
[null,null,null,null,null,null,null,null,null,null,null,null,null,null,null,null,null,null,null,null,null,null,null,null,null,null,0]
[null,null,null,null,null,null,null,null,null,null,null,null,null,null,null,null,null,null,null,null,null,null,null,null,null,null,0]
[null,null,null,null,null,null,null,null,null,null,null,null,null,null,null,null,null,null,null,null,null,null,null,null,null,null,0]
[null,null,null,null,null,null,null,null,null,null,null,null,null,null,null,null,null,null,null,null,null,null,null,null,null,null,0]
[null,null,null,null,null,null,null,null,null,null,null,null,null,null,null,null,null,null,null,null,null,null,null,null,null,null,0]
[null,null,null,null,null,null,null,null,null,null,null,null,null,null,null,null,null,null,null,null,null,null,null,null,null,null,0]
[null,null,null,null,null,null,null,null,null,null,null,null,null,null,null,null,null,null,null,null,null,null,null,null,null,null,0]
[null,null,null,null,null,null,null,null,null,null,null,null,null,null,null,null,null,null,null,null,null,null,null,null,null,null,0]
[null,null,null,null,null,null,null,null,null,null,null,null,null,null,null,null,null,null,null,null,null,null,null,null,null,null,0]
[null,null,null,null,null,null,null,null,null,null,null,null,null,null,null,null,null,null,null,null,null,null,null,null,null,null,0]
[null,null,null,null,null,null,null,null,null,null,null,null,null,null,null,null,null,null,null,null,null,null,null,null,null,null,0]
[null,null,null,null,null,null,null,null,null,null,null,null,null,null,null,null,null,null,null,null,null,null,null,null,null,null,0]
[null,null,null,null,null,null,null,null,null,null,null,null,null,null,null,null,null,null,null,null,null,null,null,null,null,null,0]
[null,null,null,null,null,null,null,null,null,null,null,null,null,null,null,null,null,null,null,null,null,null,null,null,null,null,0]
[null,null,null,null,null,null,null,null,null,null,null,null,null,null,null,null,null,null,null,null,null,null,null,null,null,null,0]

{"sheet":"Classifica_PG_3","index":6,"n_rows":108,"n_cols":30,"rows_kept":108,"cut":false,"hidden":false,"merged":[[5,23,7,23],[5,24,7,24],[6,8,7,8],[6,10,7,10],[6,12,7,12],[6,14,7,14],[6,16,7,16],[6,17,7,17],[6,19,7,19],[6,21,7,21],[5,17,5,21],[1,1,3,5],[1,13,1,14],[2,13,2,14],[5,6,7,6],[5,7,7,7],[5,8,5,16],[5,5,7,5],[5,0,7,0],[5,1,7,1],[5,2,7,2],[5,3,7,3],[5,4,7,4]]}
[]
[null,{"$f":"CONCATENATE(\"Classifica del PG: \",Riepilogo_Organizzazione!$D$13)","v":"Classifica del PG: "},null,null,null,null,null,{"$f":"Riepilogo_Organizzazione!D29","v":0},"Peso della VSP nel punteggio",null,null,null,null,{"$f":"Riepilogo_Organizzazione!D46/100","v":0},null,"Peso della VSP nella VPG",null,null,null,null,null,null,null,null,null,null,null,null,{"$f":"IF(Riepilogo_Organizzazione!D11<>\"\",0,1)","v":1},"PG non utilizzato"]
[null,null,null,null,null,null,null,{"$f":"Riepilogo_Organizzazione!D30","v":0},"Peso della QB nel punteggio",null,null,null,null,{"$f":"Riepilogo_Organizzazione!D47/100","v":0},null,"Peso della QB nella VPG"]
[null,null,null,null,null,null,null,{"$f":"Riepilogo_Organizzazione!D31","v":0},"Peso dell'AA nel punteggio"]
[]
["Posiz.","Nome e cognome giocatore","ID giocatore","Squadra di appartenenza","Franch.","VSP \"assoluta\"","QB \"assoluta\"","AA \"assoluta\"","Calcolo del punteggio del personaggio",null,null,null,null,null,null,null,null,"Calcolo della VPG",null,null,null,null,null,"Cognome","Nome"]
[null,null,null,null,null,null,null,null,"VSP \"utile\"",null,"QB \"utile\"",null,"AA \"utile\"",null,null,null,"punt. totale","VSP \"utile\"",null,"QB \"utile\"",null,"totale VPG",null,null,null,null,"Evidenziazione celle"]
[]
[null,null,null,null,null,null,null,null,null,null,null,null,null,null,null,null,null,null,null,null,null,null,null,null,null,null,{"$f":"IF(AND(R9<>\"\",MOD(ROW(R9),2)=0),1,0)","v":0}]
[null,null,null,null,null,null,null,null,null,null,null,null,null,null,null,null,null,null,null,null,null,null,null,null,null,null,{"$f":"IF(AND(R10<>\"\",MOD(ROW(R10),2)=0),1,0)","v":0}]
[null,null,null,null,null,null,null,null,null,null,null,null,null,null,null,null,null,null,null,null,null,null,null,null,null,null,0]
[null,null,null,null,null,null,null,null,null,null,null,null,null,null,null,null,null,null,null,null,null,null,null,null,null,null,0]
[null,null,null,null,null,null,null,null,null,null,null,null,null,null,null,null,null,null,null,null,null,null,null,null,null,null,0]
[null,null,null,null,null,null,null,null,null,null,null,null,null,null,null,null,null,null,null,null,null,null,null,null,null,null,0]
[null,null,null,null,null,null,null,null,null,null,null,null,null,null,null,null,null,null,null,null,null,null,null,null,null,null,0]
[null,null,null,null,null,null,null,null,null,null,null,null,null,null,null,null,null,null,null,null,null,null,null,null,null,null,0]
[null,null,null,null,null,null,null,null,null,null,null,null,null,null,null,null,null,null,null,null,null,null,null,null,null,null,0]
[null,null,null,null,null,null,null,null,null,null,null,null,null,null,null,null,null,null,null,null,null,null,null,null,null,null,0]
[null,null,null,null,null,null,null,null,null,null,null,null,null,null,null,null,null,null,null,null,null,null,null,null,null,null,0]
[null,null,null,null,null,null,null,null,null,null,null,null,null,null,null,null,null,null,null,null,null,null,null,null,null,null,0]
[null,null,null,null,null,null,null,null,null,null,null,null,null,null,null,null,null,null,null,null,null,null,null,null,null,null,0]
[null,null,null,null,null,null,null,null,null,null,null,null,null,null,null,null,null,null,null,null,null,null,null,null,null,null,0]
[null,null,null,null,null,null,null,null,null,null,null,null,null,null,null,null,null,null,null,null,null,null,null,null,null,null,0]
[null,null,null,null,null,null,null,null,null,null,null,null,null,null,null,null,null,null,null,null,null,null,null,null,null,null,0]
[null,null,null,null,null,null,null,null,null,null,null,null,null,null,null,null,null,null,null,null,null,null,null,null,null,null,0]
[null,null,null,null,null,null,null,null,null,null,null,null,null,null,null,null,null,null,null,null,null,null,null,null,null,null,0]
[null,null,null,null,null,null,null,null,null,null,null,null,null,null,null,null,null,null,null,null,null,null,null,null,null,null,0]
[null,null,null,null,null,null,null,null,null,null,null,null,null,null,null,null,null,null,null,null,null,null,null,null,null,null,0]
[null,null,null,null,null,null,null,null,null,null,null,null,null,null,null,null,null,null,null,null,null,null,null,null,null,null,0]
[null,null,null,null,null,null,null,null,null,null,null,null,null,null,null,null,null,null,null,null,null,null,null,null,null,null,0]
[null,null,null,null,null,null,null,null,null,null,null,null,null,null,null,null,null,null,null,null,null,null,null,null,null,null,0]
[null,null,null,null,null,null,null,null,null,null,null,null,null,null,null,null,null,null,null,null,null,null,null,null,null,null,0]
[null,null,null,null,null,null,null,null,null,null,null,null,null,null,null,null,null,null,null,null,null,null,null,null,null,null,0]
[null,null,null,null,null,null,null,null,null,null,null,null,null,null,null,null,null,null,null,null,null,null,null,null,null,null,0]
[null,null,null,null,null,null,null,null,null,null,null,null,null,null,null,null,null,null,null,null,null,null,null,null,null,null,0]
[null,null,null,null,null,null,null,null,null,null,null,null,null,null,null,null,null,null,null,null,null,null,null,null,null,null,0]
[null,null,null,null,null,null,null,null,null,null,null,null,null,null,null,null,null,null,null,null,null,null,null,null,null,null,0]
[null,null,null,null,null,null,null,null,null,null,null,null,null,null,null,null,null,null,null,null,null,null,null,null,null,null,0]
[null,null,null,null,null,null,null,null,null,null,null,null,null,null,null,null,null,null,null,null,null,null,null,null,null,null,0]
[null,null,null,null,null,null,null,null,null,null,null,null,null,null,null,null,null,null,null,null,null,null,null,null,null,null,0]
[null,null,null,null,null,null,null,null,null,null,null,null,null,null,null,null,null,null,null,null,null,null,null,null,null,null,0]
[null,null,null,null,null,null,null,null,null,null,null,null,null,null,null,null,null,null,null,null,null,null,null,null,null,null,0]
[null,null,null,null,null,null,null,null,null,null,null,null,null,null,null,null,null,null,null,null,null,null,null,null,null,null,0]
[null,null,null,null,null,null,null,null,null,null,null,null,null,null,null,null,null,null,null,null,null,null,null,null,null,null,0]
[null,null,null,null,null,null,null,null,null,null,null,null,null,null,null,null,null,null,null,null,null,null,null,null,null,null,0]
[null,null,null,null,null,null,null,null,null,null,null,null,null,null,null,null,null,null,null,null,null,null,null,null,null,null,0]
[null,null,null,null,null,null,null,null,null,null,null,null,null,null,null,null,null,null,null,null,null,null,null,null,null,null,0]
[null,null,null,null,null,null,null,null,null,null,null,null,null,null,null,null,null,null,null,null,null,null,null,null,null,null,0]
[null,null,null,null,null,null,null,null,null,null,null,null,null,null,null,null,null,null,null,null,null,null,null,null,null,null,0]
[null,null,null,null,null,null,null,null,null,null,null,null,null,null,null,null,null,null,null,null,null,null,null,null,null,null,0]
[null,null,null,null,null,null,null,null,null,null,null,null,null,null,null,null,null,null,null,null,null,null,null,null,null,null,0]
[null,null,null,null,null,null,null,null,null,null,null,null,null,null,null,null,null,null,null,null,null,null,null,null,null,null,0]
[null,null,null,null,null,null,null,null,null,null,null,null,null,null,null,null,null,null,null,null,null,null,null,null,null,null,0]
[null,null,null,null,null,null,null,null,null,null,null,null,null,null,null,null,null,null,null,null,null,null,null,null,null,null,0]
[null,null,null,null,null,null,null,null,null,null,null,null,null,null,null,null,null,null,null,null,null,null,null,null,null,null,0]
[null,null,null,null,null,null,null,null,null,null,null,null,null,null,null,null,null,null,null,null,null,null,null,null,null,null,0]
[null,null,null,null,null,null,null,null,null,null,null,null,null,null,null,null,null,null,null,null,null,null,null,null,null,null,0]
[null,null,null,null,null,null,null,null,null,null,null,null,null,null,null,null,null,null,null,null,null,null,null,null,null,null,0]
[null,null,null,null,null,null,null,null,null,null,null,null,null,null,null,null,null,null,null,null,null,null,null,null,null,null,0]
[null,null,null,null,null,null,null,null,null,null,null,null,null,null,null,null,null,null,null,null,null,null,null,null,null,null,0]
[null,null,null,null,null,null,null,null,null,null,null,null,null,null,null,null,null,null,null,null,null,null,null,null,null,null,0]
[null,null,null,null,null,null,null,null,null,null,null,null,null,null,null,null,null,null,null,null,null,null,null,null,null,null,0]
[null,null,null,null,null,null,null,null,null,null,null,null,null,null,null,null,null,null,null,null,null,null,null,null,null,null,0]
[null,null,null,null,null,null,null,null,null,null,null,null,null,null,null,null,null,null,null,null,null,null,null,null,null,null,0]
[null,null,null,null,null,null,null,null,null,null,null,null,null,null,null,null,null,null,null,null,null,null,null,null,null,null,0]
[null,null,null,null,null,null,null,null,null,null,null,null,null,null,null,null,null,null,null,null,null,null,null,null,null,null,0]
[null,null,null,null,null,null,null,null,null,null,null,null,null,null,null,null,null,null,null,null,null,null,null,null,null,null,0]
[null,null,null,null,null,null,null,null,null,null,null,null,null,null,null,null,null,null,null,null,null,null,null,null,null,null,0]
[null,null,null,null,null,null,null,null,null,null,null,null,null,null,null,null,null,null,null,null,null,null,null,null,null,null,0]
[null,null,null,null,null,null,null,null,null,null,null,null,null,null,null,null,null,null,null,null,null,null,null,null,null,null,0]
[null,null,null,null,null,null,null,null,null,null,null,null,null,null,null,null,null,null,null,null,null,null,null,null,null,null,0]
[null,null,null,null,null,null,null,null,null,null,null,null,null,null,null,null,null,null,null,null,null,null,null,null,null,null,0]
[null,null,null,null,null,null,null,null,null,null,null,null,null,null,null,null,null,null,null,null,null,null,null,null,null,null,0]
[null,null,null,null,null,null,null,null,null,null,null,null,null,null,null,null,null,null,null,null,null,null,null,null,null,null,{"$f":"IF(AND(R74<>\"\",MOD(ROW(R74),2)=0),1,0)","v":0}]
[null,null,null,null,null,null,null,null,null,null,null,null,null,null,null,null,null,null,null,null,null,null,null,null,null,null,0]
[null,null,null,null,null,null,null,null,null,null,null,null,null,null,null,null,null,null,null,null,null,null,null,null,null,null,0]
[null,null,null,null,null,null,null,null,null,null,null,null,null,null,null,null,null,null,null,null,null,null,null,null,null,null,0]
[null,null,null,null,null,null,null,null,null,null,null,null,null,null,null,null,null,null,null,null,null,null,null,null,null,null,0]
[null,null,null,null,null,null,null,null,null,null,null,null,null,null,null,null,null,null,null,null,null,null,null,null,null,null,0]
[null,null,null,null,null,null,null,null,null,null,null,null,null,null,null,null,null,null,null,null,null,null,null,null,null,null,0]
[null,null,null,null,null,null,null,null,null,null,null,null,null,null,null,null,null,null,null,null,null,null,null,null,null,null,0]
[null,null,null,null,null,null,null,null,null,null,null,null,null,null,null,null,null,null,null,null,null,null,null,null,null,null,0]
[null,null,null,null,null,null,null,null,null,null,null,null,null,null,null,null,null,null,null,null,null,null,null,null,null,null,0]
[null,null,null,null,null,null,null,null,null,null,null,null,null,null,null,null,null,null,null,null,null,null,null,null,null,null,0]
[null,null,null,null,null,null,null,null,null,null,null,null,null,null,null,null,null,null,null,null,null,null,null,null,null,null,0]
[null,null,null,null,null,null,null,null,null,null,null,null,null,null,null,null,null,null,null,null,null,null,null,null,null,null,0]
[null,null,null,null,null,null,null,null,null,null,null,null,null,null,null,null,null,null,null,null,null,null,null,null,null,null,0]
[null,null,null,null,null,null,null,null,null,null,null,null,null,null,null,null,null,null,null,null,null,null,null,null,null,null,0]
[null,null,null,null,null,null,null,null,null,null,null,null,null,null,null,null,null,null,null,null,null,null,null,null,null,null,0]
[null,null,null,null,null,null,null,null,null,null,null,null,null,null,null,null,null,null,null,null,null,null,null,null,null,null,0]
[null,null,null,null,null,null,null,null,null,null,null,null,null,null,null,null,null,null,null,null,null,null,null,null,null,null,0]
[null,null,null,null,null,null,null,null,null,null,null,null,null,null,null,null,null,null,null,null,null,null,null,null,null,null,0]
[null,null,null,null,null,null,null,null,null,null,null,null,null,null,null,null,null,null,null,null,null,null,null,null,null,null,0]
[null,null,null,null,null,null,null,null,null,null,null,null,null,null,null,null,null,null,null,null,null,null,null,null,null,null,0]
[null,null,null,null,null,null,null,null,null,null,null,null,null,null,null,null,null,null,null,null,null,null,null,null,null,null,0]
[null,null,null,null,null,null,null,null,null,null,null,null,null,null,null,null,null,null,null,null,null,null,null,null,null,null,0]
[null,null,null,null,null,null,null,null,null,null,null,null,null,null,null,null,null,null,null,null,null,null,null,null,null,null,0]
[null,null,null,null,null,null,null,null,null,null,null,null,null,null,null,null,null,null,null,null,null,null,null,null,null,null,0]
[null,null,null,null,null,null,null,null,null,null,null,null,null,null,null,null,null,null,null,null,null,null,null,null,null,null,0]
[null,null,null,null,null,null,null,null,null,null,null,null,null,null,null,null,null,null,null,null,null,null,null,null,null,null,0]
[null,null,null,null,null,null,null,null,null,null,null,null,null,null,null,null,null,null,null,null,null,null,null,null,null,null,0]
[null,null,null,null,null,null,null,null,null,null,null,null,null,null,null,null,null,null,null,null,null,null,null,null,null,null,0]
[null,null,null,null,null,null,null,null,null,null,null,null,null,null,null,null,null,null,null,null,null,null,null,null,null,null,0]
[null,null,null,null,null,null,null,null,null,null,null,null,null,null,null,null,null,null,null,null,null,null,null,null,null,null,0]
[null,null,null,null,null,null,null,null,null,null,null,null,null,null,null,null,null,null,null,null,null,null,null,null,null,null,0]
[null,null,null,null,null,null,null,null,null,null,null,null,null,null,null,null,null,null,null,null,null,null,null,null,null,null,0]
[null,null,null,null,null,null,null,null,null,null,null,null,null,null,null,null,null,null,null,null,null,null,null,null,null,null,0]
[null,null,null,null,null,null,null,null,null,null,null,null,null,null,null,null,null,null,null,null,null,null,null,null,null,null,0]

{"sheet":"Classifica_PG_4","index":7,"n_rows":108,"n_cols":30,"rows_kept":108,"cut":false,"hidden":false,"merged":[[5,23,7,23],[5,24,7,24],[6,8,7,8],[6,10,7,10],[6,12,7,12],[6,14,7,14],[6,16,7,16],[6,17,7,17],[6,19,7,19],[6,21,7,21],[5,17,5,21],[1,1,3,5],[1,13,1,14],[2,13,2,14],[5,6,7,6],[5,7,7,7],[5,8,5,16],[5,5,7,5],[5,0,7,0],[5,1,7,1],[5,2,7,2],[5,3,7,3],[5,4,7,4]]}
[]
[null,{"$f":"CONCATENATE(\"Classifica del PG: \",Riepilogo_Organizzazione!$D$14)","v":"Classifica del PG: "},null,null,null,null,null,{"$f":"Riepilogo_Organizzazione!D32","v":0},"Peso della VSP nel punteggio",null,null,null,null,{"$f":"Riepilogo_Organizzazione!D48/100","v":0},null,"Peso della VSP nella VPG",null,null,null,null,null,null,null,null,null,null,null,null,{"$f":"IF(Riepilogo_Organizzazione!D11<>\"\",0,1)","v":1},"PG non utilizzato"]
[null,null,null,null,null,null,null,{"$f":"Riepilogo_Organizzazione!D33","v":0},"Peso della QB nel punteggio",null,null,null,null,{"$f":"Riepilogo_Organizzazione!D49/100","v":0},null,"Peso della QB nella VPG"]
[null,null,null,null,null,null,null,{"$f":"Riepilogo_Organizzazione!D34","v":0},"Peso dell'AA nel punteggio"]
[]
["Posiz.","Nome e cognome giocatore","ID giocatore","Squadra di appartenenza","Franch.","VSP \"assoluta\"","QB \"assoluta\"","AA \"assoluta\"","Calcolo del punteggio del personaggio",null,null,null,null,null,null,null,null,"Calcolo della VPG",null,null,null,null,null,"Cognome","Nome"]
[null,null,null,null,null,null,null,null,"VSP \"utile\"",null,"QB \"utile\"",null,"AA \"utile\"",null,null,null,"punt. totale","VSP \"utile\"",null,"QB \"utile\"",null,"totale VPG",null,null,null,null,"Evidenziazione celle"]
[]
[null,null,null,null,null,null,null,null,null,null,null,null,null,null,null,null,null,null,null,null,null,null,null,null,null,null,{"$f":"IF(AND(R9<>\"\",MOD(ROW(R9),2)=0),1,0)","v":0}]
[null,null,null,null,null,null,null,null,null,null,null,null,null,null,null,null,null,null,null,null,null,null,null,null,null,null,{"$f":"IF(AND(R10<>\"\",MOD(ROW(R10),2)=0),1,0)","v":0}]
[null,null,null,null,null,null,null,null,null,null,null,null,null,null,null,null,null,null,null,null,null,null,null,null,null,null,0]
[null,null,null,null,null,null,null,null,null,null,null,null,null,null,null,null,null,null,null,null,null,null,null,null,null,null,0]
[null,null,null,null,null,null,null,null,null,null,null,null,null,null,null,null,null,null,null,null,null,null,null,null,null,null,0]
[null,null,null,null,null,null,null,null,null,null,null,null,null,null,null,null,null,null,null,null,null,null,null,null,null,null,0]
[null,null,null,null,null,null,null,null,null,null,null,null,null,null,null,null,null,null,null,null,null,null,null,null,null,null,0]
[null,null,null,null,null,null,null,null,null,null,null,null,null,null,null,null,null,null,null,null,null,null,null,null,null,null,0]
[null,null,null,null,null,null,null,null,null,null,null,null,null,null,null,null,null,null,null,null,null,null,null,null,null,null,0]
[null,null,null,null,null,null,null,null,null,null,null,null,null,null,null,null,null,null,null,null,null,null,null,null,null,null,0]
[null,null,null,null,null,null,null,null,null,null,null,null,null,null,null,null,null,null,null,null,null,null,null,null,null,null,0]
[null,null,null,null,null,null,null,null,null,null,null,null,null,null,null,null,null,null,null,null,null,null,null,null,null,null,0]
[null,null,null,null,null,null,null,null,null,null,null,null,null,null,null,null,null,null,null,null,null,null,null,null,null,null,0]
[null,null,null,null,null,null,null,null,null,null,null,null,null,null,null,null,null,null,null,null,null,null,null,null,null,null,0]
[null,null,null,null,null,null,null,null,null,null,null,null,null,null,null,null,null,null,null,null,null,null,null,null,null,null,0]
[null,null,null,null,null,null,null,null,null,null,null,null,null,null,null,null,null,null,null,null,null,null,null,null,null,null,0]
[null,null,null,null,null,null,null,null,null,null,null,null,null,null,null,null,null,null,null,null,null,null,null,null,null,null,0]
[null,null,null,null,null,null,null,null,null,null,null,null,null,null,null,null,null,null,null,null,null,null,null,null,null,null,0]
[null,null,null,null,null,null,null,null,null,null,null,null,null,null,null,null,null,null,null,null,null,null,null,null,null,null,0]
[null,null,null,null,null,null,null,null,null,null,null,null,null,null,null,null,null,null,null,null,null,null,null,null,null,null,0]
[null,null,null,null,null,null,null,null,null,null,null,null,null,null,null,null,null,null,null,null,null,null,null,null,null,null,0]
[null,null,null,null,null,null,null,null,null,null,null,null,null,null,null,null,null,null,null,null,null,null,null,null,null,null,0]
[null,null,null,null,null,null,null,null,null,null,null,null,null,null,null,null,null,null,null,null,null,null,null,null,null,null,0]
[null,null,null,null,null,null,null,null,null,null,null,null,null,null,null,null,null,null,null,null,null,null,null,null,null,null,0]
[null,null,null,null,null,null,null,null,null,null,null,null,null,null,null,null,null,null,null,null,null,null,null,null,null,null,0]
[null,null,null,null,null,null,null,null,null,null,null,null,null,null,null,null,null,null,null,null,null,null,null,null,null,null,0]
[null,null,null,null,null,null,null,null,null,null,null,null,null,null,null,null,null,null,null,null,null,null,null,null,null,null,0]
[null,null,null,null,null,null,null,null,null,null,null,null,null,null,null,null,null,null,null,null,null,null,null,null,null,null,0]
[null,null,null,null,null,null,null,null,null,null,null,null,null,null,null,null,null,null,null,null,null,null,null,null,null,null,0]
[null,null,null,null,null,null,null,null,null,null,null,null,null,null,null,null,null,null,null,null,null,null,null,null,null,null,0]
[null,null,null,null,null,null,null,null,null,null,null,null,null,null,null,null,null,null,null,null,null,null,null,null,null,null,0]
[null,null,null,null,null,null,null,null,null,null,null,null,null,null,null,null,null,null,null,null,null,null,null,null,null,null,0]
[null,null,null,null,null,null,null,null,null,null,null,null,null,null,null,null,null,null,null,null,null,null,null,null,null,null,0]
[null,null,null,null,null,null,null,null,null,null,null,null,null,null,null,null,null,null,null,null,null,null,null,null,null,null,0]
[null,null,null,null,null,null,null,null,null,null,null,null,null,null,null,null,null,null,null,null,null,null,null,null,null,null,0]
[null,null,null,null,null,null,null,null,null,null,null,null,null,null,null,null,null,null,null,null,null,null,null,null,null,null,0]
[null,null,null,null,null,null,null,null,null,null,null,null,null,null,null,null,null,null,null,null,null,null,null,null,null,null,0]
[null,null,null,null,null,null,null,null,null,null,null,null,null,null,null,null,null,null,null,null,null,null,null,null,null,null,0]
[null,null,null,null,null,null,null,null,null,null,null,null,null,null,null,null,null,null,null,null,null,null,null,null,null,null,0]
[null,null,null,null,null,null,null,null,null,null,null,null,null,null,null,null,null,null,null,null,null,null,null,null,null,null,0]
[null,null,null,null,null,null,null,null,null,null,null,null,null,null,null,null,null,null,null,null,null,null,null,null,null,null,0]
[null,null,null,null,null,null,null,null,null,null,null,null,null,null,null,null,null,null,null,null,null,null,null,null,null,null,0]
[null,null,null,null,null,null,null,null,null,null,null,null,null,null,null,null,null,null,null,null,null,null,null,null,null,null,0]
[null,null,null,null,null,null,null,null,null,null,null,null,null,null,null,null,null,null,null,null,null,null,null,null,null,null,0]
[null,null,null,null,null,null,null,null,null,null,null,null,null,null,null,null,null,null,null,null,null,null,null,null,null,null,0]
[null,null,null,null,null,null,null,null,null,null,null,null,null,null,null,null,null,null,null,null,null,null,null,null,null,null,0]
[null,null,null,null,null,null,null,null,null,null,null,null,null,null,null,null,null,null,null,null,null,null,null,null,null,null,0]
[null,null,null,null,null,null,null,null,null,null,null,null,null,null,null,null,null,null,null,null,null,null,null,null,null,null,0]
[null,null,null,null,null,null,null,null,null,null,null,null,null,null,null,null,null,null,null,null,null,null,null,null,null,null,0]
[null,null,null,null,null,null,null,null,null,null,null,null,null,null,null,null,null,null,null,null,null,null,null,null,null,null,0]
[null,null,null,null,null,null,null,null,null,null,null,null,null,null,null,null,null,null,null,null,null,null,null,null,null,null,0]
[null,null,null,null,null,null,null,null,null,null,null,null,null,null,null,null,null,null,null,null,null,null,null,null,null,null,0]
[null,null,null,null,null,null,null,null,null,null,null,null,null,null,null,null,null,null,null,null,null,null,null,null,null,null,0]
[null,null,null,null,null,null,null,null,null,null,null,null,null,null,null,null,null,null,null,null,null,null,null,null,null,null,0]
[null,null,null,null,null,null,null,null,null,null,null,null,null,null,null,null,null,null,null,null,null,null,null,null,null,null,0]
[null,null,null,null,null,null,null,null,null,null,null,null,null,null,null,null,null,null,null,null,null,null,null,null,null,null,0]
[null,null,null,null,null,null,null,null,null,null,null,null,null,null,null,null,null,null,null,null,null,null,null,null,null,null,0]
[null,null,null,null,null,null,null,null,null,null,null,null,null,null,null,null,null,null,null,null,null,null,null,null,null,null,0]
[null,null,null,null,null,null,null,null,null,null,null,null,null,null,null,null,null,null,null,null,null,null,null,null,null,null,0]
[null,null,null,null,null,null,null,null,null,null,null,null,null,null,null,null,null,null,null,null,null,null,null,null,null,null,0]
[null,null,null,null,null,null,null,null,null,null,null,null,null,null,null,null,null,null,null,null,null,null,null,null,null,null,0]
[null,null,null,null,null,null,null,null,null,null,null,null,null,null,null,null,null,null,null,null,null,null,null,null,null,null,0]
[null,null,null,null,null,null,null,null,null,null,null,null,null,null,null,null,null,null,null,null,null,null,null,null,null,null,0]
[null,null,null,null,null,null,null,null,null,null,null,null,null,null,null,null,null,null,null,null,null,null,null,null,null,null,0]
[null,null,null,null,null,null,null,null,null,null,null,null,null,null,null,null,null,null,null,null,null,null,null,null,null,null,0]
[null,null,null,null,null,null,null,null,null,null,null,null,null,null,null,null,null,null,null,null,null,null,null,null,null,null,{"$f":"IF(AND(R74<>\"\",MOD(ROW(R74),2)=0),1,0)","v":0}]
[null,null,null,null,null,null,null,null,null,null,null,null,null,null,null,null,null,null,null,null,null,null,null,null,null,null,0]
[null,null,null,null,null,null,null,null,null,null,null,null,null,null,null,null,null,null,null,null,null,null,null,null,null,null,0]
[null,null,null,null,null,null,null,null,null,null,null,null,null,null,null,null,null,null,null,null,null,null,null,null,null,null,0]
[null,null,null,null,null,null,null,null,null,null,null,null,null,null,null,null,null,null,null,null,null,null,null,null,null,null,0]
[null,null,null,null,null,null,null,null,null,null,null,null,null,null,null,null,null,null,null,null,null,null,null,null,null,null,0]
[null,null,null,null,null,null,null,null,null,null,null,null,null,null,null,null,null,null,null,null,null,null,null,null,null,null,0]
[null,null,null,null,null,null,null,null,null,null,null,null,null,null,null,null,null,null,null,null,null,null,null,null,null,null,0]
[null,null,null,null,null,null,null,null,null,null,null,null,null,null,null,null,null,null,null,null,null,null,null,null,null,null,0]
[null,null,null,null,null,null,null,null,null,null,null,null,null,null,null,null,null,null,null,null,null,null,null,null,null,null,0]
[null,null,null,null,null,null,null,null,null,null,null,null,null,null,null,null,null,null,null,null,null,null,null,null,null,null,0]
[null,null,null,null,null,null,null,null,null,null,null,null,null,null,null,null,null,null,null,null,null,null,null,null,null,null,0]
[null,null,null,null,null,null,null,null,null,null,null,null,null,null,null,null,null,null,null,null,null,null,null,null,null,null,0]
[null,null,null,null,null,null,null,null,null,null,null,null,null,null,null,null,null,null,null,null,null,null,null,null,null,null,0]
[null,null,null,null,null,null,null,null,null,null,null,null,null,null,null,null,null,null,null,null,null,null,null,null,null,null,0]
[null,null,null,null,null,null,null,null,null,null,null,null,null,null,null,null,null,null,null,null,null,null,null,null,null,null,0]
[null,null,null,null,null,null,null,null,null,null,null,null,null,null,null,null,null,null,null,null,null,null,null,null,null,null,0]
[null,null,null,null,null,null,null,null,null,null,null,null,null,null,null,null,null,null,null,null,null,null,null,null,null,null,0]
[null,null,null,null,null,null,null,null,null,null,null,null,null,null,null,null,null,null,null,null,null,null,null,null,null,null,0]
[null,null,null,null,null,null,null,null,null,null,null,null,null,null,null,null,null,null,null,null,null,null,null,null,null,null,0]
[null,null,null,null,null,null,null,null,null,null,null,null,null,null,null,null,null,null,null,null,null,null,null,null,null,null,0]
[null,null,null,null,null,null,null,null,null,null,null,null,null,null,null,null,null,null,null,null,null,null,null,null,null,null,0]
[null,null,null,null,null,null,null,null,null,null,null,null,null,null,null,null,null,null,null,null,null,null,null,null,null,null,0]
[null,null,null,null,null,null,null,null,null,null,null,null,null,null,null,null,null,null,null,null,null,null,null,null,null,null,0]
[null,null,null,null,null,null,null,null,null,null,null,null,null,null,null,null,null,null,null,null,null,null,null,null,null,null,0]
[null,null,null,null,null,null,null,null,null,null,null,null,null,null,null,null,null,null,null,null,null,null,null,null,null,null,0]
[null,null,null,null,null,null,null,null,null,null,null,null,null,null,null,null,null,null,null,null,null,null,null,null,null,null,0]
[null,null,null,null,null,null,null,null,null,null,null,null,null,null,null,null,null,null,null,null,null,null,null,null,null,null,0]
[null,null,null,null,null,null,null,null,null,null,null,null,null,null,null,null,null,null,null,null,null,null,null,null,null,null,0]
[null,null,null,null,null,null,null,null,null,null,null,null,null,null,null,null,null,null,null,null,null,null,null,null,null,null,0]
[null,null,null,null,null,null,null,null,null,null,null,null,null,null,null,null,null,null,null,null,null,null,null,null,null,null,0]
[null,null,null,null,null,null,null,null,null,null,null,null,null,null,null,null,null,null,null,null,null,null,null,null,null,null,0]
[null,null,null,null,null,null,null,null,null,null,null,null,null,null,null,null,null,null,null,null,null,null,null,null,null,null,0]
[null,null,null,null,null,null,null,null,null,null,null,null,null,null,null,null,null,null,null,null,null,null,null,null,null,null,0]
[null,null,null,null,null,null,null,null,null,null,null,null,null,null,null,null,null,null,null,null,null,null,null,null,null,null,0]

{"sheet":"Classifica_PG_5","index":8,"n_rows":108,"n_cols":30,"rows_kept":108,"cut":false,"hidden":false,"merged":[[5,23,7,23],[5,24,7,24],[6,8,7,8],[6,10,7,10],[6,12,7,12],[6,14,7,14],[6,16,7,16],[6,17,7,17],[6,19,7,19],[6,21,7,21],[5,17,5,21],[1,1,3,5],[1,13,1,14],[2,13,2,14],[5,6,7,6],[5,7,7,7],[5,8,5,16],[5,5,7,5],[5,0,7,0],[5,1,7,1],[5,2,7,2],[5,3,7,3],[5,4,7,4]]}
[]
[null,{"$f":"CONCATENATE(\"Classifica del PG: \",Riepilogo_Organizzazione!$D$15)","v":"Classifica del PG: "},null,null,null,null,null,{"$f":"Riepilogo_Organizzazione!D35","v":0},"Peso della VSP nel punteggio",null,null,null,null,{"$f":"Riepilogo_Organizzazione!D50/100","v":0},null,"Peso della VSP nella VPG",null,null,null,null,null,null,null,null,null,null,null,null,{"$f":"IF(Riepilogo_Organizzazione!D11<>\"\",0,1)","v":1},"PG non utilizzato"]
[null,null,null,null,null,null,null,{"$f":"Riepilogo_Organizzazione!D36","v":0},"Peso della QB nel punteggio",null,null,null,null,{"$f":"Riepilogo_Organizzazione!D51/100","v":0},null,"Peso della QB nella VPG"]
[null,null,null,null,null,null,null,{"$f":"Riepilogo_Organizzazione!D37","v":0},"Peso dell'AA nel punteggio"]
[]
["Posiz.","Nome e cognome giocatore","ID giocatore","Squadra di appartenenza","Franch.","VSP \"assoluta\"","QB \"assoluta\"","AA \"assoluta\"","Calcolo del punteggio del personaggio",null,null,null,null,null,null,null,null,"Calcolo della VPG",null,null,null,null,null,"Cognome","Nome"]
[null,null,null,null,null,null,null,null,"VSP \"utile\"",null,"QB \"utile\"",null,"AA \"utile\"",null,null,null,"punt. totale","VSP \"utile\"",null,"QB \"utile\"",null,"totale VPG",null,null,null,null,"Evidenziazione celle"]
[]
[null,null,null,null,null,null,null,null,null,null,null,null,null,null,null,null,null,null,null,null,null,null,null,null,null,null,{"$f":"IF(AND(R9<>\"\",MOD(ROW(R9),2)=0),1,0)","v":0}]
[null,null,null,null,null,null,null,null,null,null,null,null,null,null,null,null,null,null,null,null,null,null,null,null,null,null,{"$f":"IF(AND(R10<>\"\",MOD(ROW(R10),2)=0),1,0)","v":0}]
[null,null,null,null,null,null,null,null,null,null,null,null,null,null,null,null,null,null,null,null,null,null,null,null,null,null,0]
[null,null,null,null,null,null,null,null,null,null,null,null,null,null,null,null,null,null,null,null,null,null,null,null,null,null,0]
[null,null,null,null,null,null,null,null,null,null,null,null,null,null,null,null,null,null,null,null,null,null,null,null,null,null,0]
[null,null,null,null,null,null,null,null,null,null,null,null,null,null,null,null,null,null,null,null,null,null,null,null,null,null,0]
[null,null,null,null,null,null,null,null,null,null,null,null,null,null,null,null,null,null,null,null,null,null,null,null,null,null,0]
[null,null,null,null,null,null,null,null,null,null,null,null,null,null,null,null,null,null,null,null,null,null,null,null,null,null,0]
[null,null,null,null,null,null,null,null,null,null,null,null,null,null,null,null,null,null,null,null,null,null,null,null,null,null,0]
[null,null,null,null,null,null,null,null,null,null,null,null,null,null,null,null,null,null,null,null,null,null,null,null,null,null,0]
[null,null,null,null,null,null,null,null,null,null,null,null,null,null,null,null,null,null,null,null,null,null,null,null,null,null,0]
[null,null,null,null,null,null,null,null,null,null,null,null,null,null,null,null,null,null,null,null,null,null,null,null,null,null,0]
[null,null,null,null,null,null,null,null,null,null,null,null,null,null,null,null,null,null,null,null,null,null,null,null,null,null,0]
[null,null,null,null,null,null,null,null,null,null,null,null,null,null,null,null,null,null,null,null,null,null,null,null,null,null,0]
[null,null,null,null,null,null,null,null,null,null,null,null,null,null,null,null,null,null,null,null,null,null,null,null,null,null,0]
[null,null,null,null,null,null,null,null,null,null,null,null,null,null,null,null,null,null,null,null,null,null,null,null,null,null,0]
[null,null,null,null,null,null,null,null,null,null,null,null,null,null,null,null,null,null,null,null,null,null,null,null,null,null,0]
[null,null,null,null,null,null,null,null,null,null,null,null,null,null,null,null,null,null,null,null,null,null,null,null,null,null,0]
[null,null,null,null,null,null,null,null,null,null,null,null,null,null,null,null,null,null,null,null,null,null,null,null,null,null,0]
[null,null,null,null,null,null,null,null,null,null,null,null,null,null,null,null,null,null,null,null,null,null,null,null,null,null,0]
[null,null,null,null,null,null,null,null,null,null,null,null,null,null,null,null,null,null,null,null,null,null,null,null,null,null,0]
[null,null,null,null,null,null,null,null,null,null,null,null,null,null,null,null,null,null,null,null,null,null,null,null,null,null,0]
[null,null,null,null,null,null,null,null,null,null,null,null,null,null,null,null,null,null,null,null,null,null,null,null,null,null,0]
[null,null,null,null,null,null,null,null,null,null,null,null,null,null,null,null,null,null,null,null,null,null,null,null,null,null,0]
[null,null,null,null,null,null,null,null,null,null,null,null,null,null,null,null,null,null,null,null,null,null,null,null,null,null,0]
[null,null,null,null,null,null,null,null,null,null,null,null,null,null,null,null,null,null,null,null,null,null,null,null,null,null,0]
[null,null,null,null,null,null,null,null,null,null,null,null,null,null,null,null,null,null,null,null,null,null,null,null,null,null,0]
[null,null,null,null,null,null,null,null,null,null,null,null,null,null,null,null,null,null,null,null,null,null,null,null,null,null,0]
[null,null,null,null,null,null,null,null,null,null,null,null,null,null,null,null,null,null,null,null,null,null,null,null,null,null,0]
[null,null,null,null,null,null,null,null,null,null,null,null,null,null,null,null,null,null,null,null,null,null,null,null,null,null,0]
[null,null,null,null,null,null,null,null,null,null,null,null,null,null,null,null,null,null,null,null,null,null,null,null,null,null,0]
[null,null,null,null,null,null,null,null,null,null,null,null,null,null,null,null,null,null,null,null,null,null,null,null,null,null,0]
[null,null,null,null,null,null,null,null,null,null,null,null,null,null,null,null,null,null,null,null,null,null,null,null,null,null,0]
[null,null,null,null,null,null,null,null,null,null,null,null,null,null,null,null,null,null,null,null,null,null,null,null,null,null,0]
[null,null,null,null,null,null,null,null,null,null,null,null,null,null,null,null,null,null,null,null,null,null,null,null,null,null,0]
[null,null,null,null,null,null,null,null,null,null,null,null,null,null,null,null,null,null,null,null,null,null,null,null,null,null,0]
[null,null,null,null,null,null,null,null,null,null,null,null,null,null,null,null,null,null,null,null,null,null,null,null,null,null,0]
[null,null,null,null,null,null,null,null,null,null,null,null,null,null,null,null,null,null,null,null,null,null,null,null,null,null,0]
[null,null,null,null,null,null,null,null,null,null,null,null,null,null,null,null,null,null,null,null,null,null,null,null,null,null,0]
[null,null,null,null,null,null,null,null,null,null,null,null,null,null,null,null,null,null,null,null,null,null,null,null,null,null,0]
[null,null,null,null,null,null,null,null,null,null,null,null,null,null,null,null,null,null,null,null,null,null,null,null,null,null,0]
[null,null,null,null,null,null,null,null,null,null,null,null,null,null,null,null,null,null,null,null,null,null,null,null,null,null,0]
[null,null,null,null,null,null,null,null,null,null,null,null,null,null,null,null,null,null,null,null,null,null,null,null,null,null,0]
[null,null,null,null,null,null,null,null,null,null,null,null,null,null,null,null,null,null,null,null,null,null,null,null,null,null,0]
[null,null,null,null,null,null,null,null,null,null,null,null,null,null,null,null,null,null,null,null,null,null,null,null,null,null,0]
[null,null,null,null,null,null,null,null,null,null,null,null,null,null,null,null,null,null,null,null,null,null,null,null,null,null,0]
[null,null,null,null,null,null,null,null,null,null,null,null,null,null,null,null,null,null,null,null,null,null,null,null,null,null,0]
[null,null,null,null,null,null,null,null,null,null,null,null,null,null,null,null,null,null,null,null,null,null,null,null,null,null,0]
[null,null,null,null,null,null,null,null,null,null,null,null,null,null,null,null,null,null,null,null,null,null,null,null,null,null,0]
[null,null,null,null,null,null,null,null,null,null,null,null,null,null,null,null,null,null,null,null,null,null,null,null,null,null,0]
[null,null,null,null,null,null,null,null,null,null,null,null,null,null,null,null,null,null,null,null,null,null,null,null,null,null,0]
[null,null,null,null,null,null,null,null,null,null,null,null,null,null,null,null,null,null,null,null,null,null,null,null,null,null,0]
[null,null,null,null,null,null,null,null,null,null,null,null,null,null,null,null,null,null,null,null,null,null,null,null,null,null,0]
[null,null,null,null,null,null,null,null,null,null,null,null,null,null,null,null,null,null,null,null,null,null,null,null,null,null,0]
[null,null,null,null,null,null,null,null,null,null,null,null,null,null,null,null,null,null,null,null,null,null,null,null,null,null,0]
[null,null,null,null,null,null,null,null,null,null,null,null,null,null,null,null,null,null,null,null,null,null,null,null,null,null,0]
[null,null,null,null,null,null,null,null,null,null,null,null,null,null,null,null,null,null,null,null,null,null,null,null,null,null,0]
[null,null,null,null,null,null,null,null,null,null,null,null,null,null,null,null,null,null,null,null,null,null,null,null,null,null,0]
[null,null,null,null,null,null,null,null,null,null,null,null,null,null,null,null,null,null,null,null,null,null,null,null,null,null,0]
[null,null,null,null,null,null,null,null,null,null,null,null,null,null,null,null,null,null,null,null,null,null,null,null,null,null,0]
[null,null,null,null,null,null,null,null,null,null,null,null,null,null,null,null,null,null,null,null,null,null,null,null,null,null,0]
[null,null,null,null,null,null,null,null,null,null,null,null,null,null,null,null,null,null,null,null,null,null,null,null,null,null,0]
[null,null,null,null,null,null,null,null,null,null,null,null,null,null,null,null,null,null,null,null,null,null,null,null,null,null,0]
[null,null,null,null,null,null,null,null,null,null,null,null,null,null,null,null,null,null,null,null,null,null,null,null,null,null,0]
[null,null,null,null,null,null,null,null,null,null,null,null,null,null,null,null,null,null,null,null,null,null,null,null,null,null,0]
[null,null,null,null,null,null,null,null,null,null,null,null,null,null,null,null,null,null,null,null,null,null,null,null,null,null,{"$f":"IF(AND(R74<>\"\",MOD(ROW(R74),2)=0),1,0)","v":0}]
[null,null,null,null,null,null,null,null,null,null,null,null,null,null,null,null,null,null,null,null,null,null,null,null,null,null,0]
[null,null,null,null,null,null,null,null,null,null,null,null,null,null,null,null,null,null,null,null,null,null,null,null,null,null,0]
[null,null,null,null,null,null,null,null,null,null,null,null,null,null,null,null,null,null,null,null,null,null,null,null,null,null,0]
[null,null,null,null,null,null,null,null,null,null,null,null,null,null,null,null,null,null,null,null,null,null,null,null,null,null,0]
[null,null,null,null,null,null,null,null,null,null,null,null,null,null,null,null,null,null,null,null,null,null,null,null,null,null,0]
[null,null,null,null,null,null,null,null,null,null,null,null,null,null,null,null,null,null,null,null,null,null,null,null,null,null,0]
[null,null,null,null,null,null,null,null,null,null,null,null,null,null,null,null,null,null,null,null,null,null,null,null,null,null,0]
[null,null,null,null,null,null,null,null,null,null,null,null,null,null,null,null,null,null,null,null,null,null,null,null,null,null,0]
[null,null,null,null,null,null,null,null,null,null,null,null,null,null,null,null,null,null,null,null,null,null,null,null,null,null,0]
[null,null,null,null,null,null,null,null,null,null,null,null,null,null,null,null,null,null,null,null,null,null,null,null,null,null,0]
[null,null,null,null,null,null,null,null,null,null,null,null,null,null,null,null,null,null,null,null,null,null,null,null,null,null,0]
[null,null,null,null,null,null,null,null,null,null,null,null,null,null,null,null,null,null,null,null,null,null,null,null,null,null,0]
[null,null,null,null,null,null,null,null,null,null,null,null,null,null,null,null,null,null,null,null,null,null,null,null,null,null,0]
[null,null,null,null,null,null,null,null,null,null,null,null,null,null,null,null,null,null,null,null,null,null,null,null,null,null,0]
[null,null,null,null,null,null,null,null,null,null,null,null,null,null,null,null,null,null,null,null,null,null,null,null,null,null,0]
[null,null,null,null,null,null,null,null,null,null,null,null,null,null,null,null,null,null,null,null,null,null,null,null,null,null,0]
[null,null,null,null,null,null,null,null,null,null,null,null,null,null,null,null,null,null,null,null,null,null,null,null,null,null,0]
[null,null,null,null,null,null,null,null,null,null,null,null,null,null,null,null,null,null,null,null,null,null,null,null,null,null,0]
[null,null,null,null,null,null,null,null,null,null,null,null,null,null,null,null,null,null,null,null,null,null,null,null,null,null,0]
[null,null,null,null,null,null,null,null,null,null,null,null,null,null,null,null,null,null,null,null,null,null,null,null,null,null,0]
[null,null,null,null,null,null,null,null,null,null,null,null,null,null,null,null,null,null,null,null,null,null,null,null,null,null,0]
[null,null,null,null,null,null,null,null,null,null,null,null,null,null,null,null,null,null,null,null,null,null,null,null,null,null,0]
[null,null,null,null,null,null,null,null,null,null,null,null,null,null,null,null,null,null,null,null,null,null,null,null,null,null,0]
[null,null,null,null,null,null,null,null,null,null,null,null,null,null,null,null,null,null,null,null,null,null,null,null,null,null,0]
[null,null,null,null,null,null,null,null,null,null,null,null,null,null,null,null,null,null,null,null,null,null,null,null,null,null,0]
[null,null,null,null,null,null,null,null,null,null,null,null,null,null,null,null,null,null,null,null,null,null,null,null,null,null,0]
[null,null,null,null,null,null,null,null,null,null,null,null,null,null,null,null,null,null,null,null,null,null,null,null,null,null,0]
[null,null,null,null,null,null,null,null,null,null,null,null,null,null,null,null,null,null,null,null,null,null,null,null,null,null,0]
[null,null,null,null,null,null,null,null,null,null,null,null,null,null,null,null,null,null,null,null,null,null,null,null,null,null,0]
[null,null,null,null,null,null,null,null,null,null,null,null,null,null,null,null,null,null,null,null,null,null,null,null,null,null,0]
[null,null,null,null,null,null,null,null,null,null,null,null,null,null,null,null,null,null,null,null,null,null,null,null,null,null,0]
[null,null,null,null,null,null,null,null,null,null,null,null,null,null,null,null,null,null,null,null,null,null,null,null,null,null,0]
[null,null,null,null,null,null,null,null,null,null,null,null,null,null,null,null,null,null,null,null,null,null,null,null,null,null,0]
[null,null,null,null,null,null,null,null,null,null,null,null,null,null,null,null,null,null,null,null,null,null,null,null,null,null,0]

{"sheet":"Classifica_PG_6","index":9,"n_rows":108,"n_cols":30,"rows_kept":108,"cut":false,"hidden":false,"merged":[[5,23,7,23],[5,24,7,24],[6,8,7,8],[6,10,7,10],[6,12,7,12],[6,14,7,14],[6,16,7,16],[6,17,7,17],[6,19,7,19],[6,21,7,21],[5,17,5,21],[1,1,3,5],[1,13,1,14],[2,13,2,14],[5,6,7,6],[5,7,7,7],[5,8,5,16],[5,5,7,5],[5,0,7,0],[5,1,7,1],[5,2,7,2],[5,3,7,3],[5,4,7,4]]}
[]
[null,{"$f":"CONCATENATE(\"Classifica del PG: \",Riepilogo_Organizzazione!$D$16)","v":"Classifica del PG: "},null,null,null,null,null,{"$f":"Riepilogo_Organizzazione!D38","v":0},"Peso della VSP nel punteggio",null,null,null,null,{"$f":"Riepilogo_Organizzazione!D52/100","v":0},null,"Peso della VSP nella VPG",null,null,null,null,null,null,null,null,null,null,null,null,{"$f":"IF(Riepilogo_Organizzazione!D11<>\"\",0,1)","v":1},"PG non utilizzato"]
[null,null,null,null,null,null,null,{"$f":"Riepilogo_Organizzazione!D39","v":0},"Peso della QB nel punteggio",null,null,null,null,{"$f":"Riepilogo_Organizzazione!D53/100","v":0},null,"Peso della QB nella VPG"]
[null,null,null,null,null,null,null,{"$f":"Riepilogo_Organizzazione!D40","v":0},"Peso dell'AA nel punteggio"]
[]
["Posiz.","Nome e cognome giocatore","ID giocatore","Squadra di appartenenza","Franch.","VSP \"assoluta\"","QB \"assoluta\"","AA \"assoluta\"","Calcolo del punteggio del personaggio",null,null,null,null,null,null,null,null,"Calcolo della VPG",null,null,null,null,null,"Cognome","Nome"]
[null,null,null,null,null,null,null,null,"VSP \"utile\"",null,"QB \"utile\"",null,"AA \"utile\"",null,null,null,"punt. totale","VSP \"utile\"",null,"QB \"utile\"",null,"totale VPG",null,null,null,null,"Evidenziazione celle"]
[]
[null,null,null,null,null,null,null,null,null,null,null,null,null,null,null,null,null,null,null,null,null,null,null,null,null,null,{"$f":"IF(AND(R9<>\"\",MOD(ROW(R9),2)=0),1,0)","v":0}]
[null,null,null,null,null,null,null,null,null,null,null,null,null,null,null,null,null,null,null,null,null,null,null,null,null,null,{"$f":"IF(AND(R10<>\"\",MOD(ROW(R10),2)=0),1,0)","v":0}]
[null,null,null,null,null,null,null,null,null,null,null,null,null,null,null,null,null,null,null,null,null,null,null,null,null,null,0]
[null,null,null,null,null,null,null,null,null,null,null,null,null,null,null,null,null,null,null,null,null,null,null,null,null,null,0]
[null,null,null,null,null,null,null,null,null,null,null,null,null,null,null,null,null,null,null,null,null,null,null,null,null,null,0]
[null,null,null,null,null,null,null,null,null,null,null,null,null,null,null,null,null,null,null,null,null,null,null,null,null,null,0]
[null,null,null,null,null,null,null,null,null,null,null,null,null,null,null,null,null,null,null,null,null,null,null,null,null,null,0]
[null,null,null,null,null,null,null,null,null,null,null,null,null,null,null,null,null,null,null,null,null,null,null,null,null,null,0]
[null,null,null,null,null,null,null,null,null,null,null,null,null,null,null,null,null,null,null,null,null,null,null,null,null,null,0]
[null,null,null,null,null,null,null,null,null,null,null,null,null,null,null,null,null,null,null,null,null,null,null,null,null,null,0]
[null,null,null,null,null,null,null,null,null,null,null,null,null,null,null,null,null,null,null,null,null,null,null,null,null,null,0]
[null,null,null,null,null,null,null,null,null,null,null,null,null,null,null,null,null,null,null,null,null,null,null,null,null,null,0]
[null,null,null,null,null,null,null,null,null,null,null,null,null,null,null,null,null,null,null,null,null,null,null,null,null,null,0]
[null,null,null,null,null,null,null,null,null,null,null,null,null,null,null,null,null,null,null,null,null,null,null,null,null,null,0]
[null,null,null,null,null,null,null,null,null,null,null,null,null,null,null,null,null,null,null,null,null,null,null,null,null,null,0]
[null,null,null,null,null,null,null,null,null,null,null,null,null,null,null,null,null,null,null,null,null,null,null,null,null,null,0]
[null,null,null,null,null,null,null,null,null,null,null,null,null,null,null,null,null,null,null,null,null,null,null,null,null,null,0]
[null,null,null,null,null,null,null,null,null,null,null,null,null,null,null,null,null,null,null,null,null,null,null,null,null,null,0]
[null,null,null,null,null,null,null,null,null,null,null,null,null,null,null,null,null,null,null,null,null,null,null,null,null,null,0]
[null,null,null,null,null,null,null,null,null,null,null,null,null,null,null,null,null,null,null,null,null,null,null,null,null,null,0]
[null,null,null,null,null,null,null,null,null,null,null,null,null,null,null,null,null,null,null,null,null,null,null,null,null,null,0]
[null,null,null,null,null,null,null,null,null,null,null,null,null,null,null,null,null,null,null,null,null,null,null,null,null,null,0]
[null,null,null,null,null,null,null,null,null,null,null,null,null,null,null,null,null,null,null,null,null,null,null,null,null,null,0]
[null,null,null,null,null,null,null,null,null,null,null,null,null,null,null,null,null,null,null,null,null,null,null,null,null,null,0]
[null,null,null,null,null,null,null,null,null,null,null,null,null,null,null,null,null,null,null,null,null,null,null,null,null,null,0]
[null,null,null,null,null,null,null,null,null,null,null,null,null,null,null,null,null,null,null,null,null,null,null,null,null,null,0]
[null,null,null,null,null,null,null,null,null,null,null,null,null,null,null,null,null,null,null,null,null,null,null,null,null,null,0]
[null,null,null,null,null,null,null,null,null,null,null,null,null,null,null,null,null,null,null,null,null,null,null,null,null,null,0]
[null,null,null,null,null,null,null,null,null,null,null,null,null,null,null,null,null,null,null,null,null,null,null,null,null,null,0]
[null,null,null,null,null,null,null,null,null,null,null,null,null,null,null,null,null,null,null,null,null,null,null,null,null,null,0]
[null,null,null,null,null,null,null,null,null,null,null,null,null,null,null,null,null,null,null,null,null,null,null,null,null,null,0]
[null,null,null,null,null,null,null,null,null,null,null,null,null,null,null,null,null,null,null,null,null,null,null,null,null,null,0]
[null,null,null,null,null,null,null,null,null,null,null,null,null,null,null,null,null,null,null,null,null,null,null,null,null,null,0]
[null,null,null,null,null,null,null,null,null,null,null,null,null,null,null,null,null,null,null,null,null,null,null,null,null,null,0]
[null,null,null,null,null,null,null,null,null,null,null,null,null,null,null,null,null,null,null,null,null,null,null,null,null,null,0]
[null,null,null,null,null,null,null,null,null,null,null,null,null,null,null,null,null,null,null,null,null,null,null,null,null,null,0]
[null,null,null,null,null,null,null,null,null,null,null,null,null,null,null,null,null,null,null,null,null,null,null,null,null,null,0]
[null,null,null,null,null,null,null,null,null,null,null,null,null,null,null,null,null,null,null,null,null,null,null,null,null,null,0]
[null,null,null,null,null,null,null,null,null,null,null,null,null,null,null,null,null,null,null,null,null,null,null,null,null,null,0]
[null,null,null,null,null,null,null,null,null,null,null,null,null,null,null,null,null,null,null,null,null,null,null,null,null,null,0]
[null,null,null,null,null,null,null,null,null,null,null,null,null,null,null,null,null,null,null,null,null,null,null,null,null,null,0]
[null,null,null,null,null,null,null,null,null,null,null,null,null,null,null,null,null,null,null,null,null,null,null,null,null,null,0]
[null,null,null,null,null,null,null,null,null,null,null,null,null,null,null,null,null,null,null,null,null,null,null,null,null,null,0]
[null,null,null,null,null,null,null,null,null,null,null,null,null,null,null,null,null,null,null,null,null,null,null,null,null,null,0]
[null,null,null,null,null,null,null,null,null,null,null,null,null,null,null,null,null,null,null,null,null,null,null,null,null,null,0]
[null,null,null,null,null,null,null,null,null,null,null,null,null,null,null,null,null,null,null,null,null,null,null,null,null,null,0]
[null,null,null,null,null,null,null,null,null,null,null,null,null,null,null,null,null,null,null,null,null,null,null,null,null,null,0]
[null,null,null,null,null,null,null,null,null,null,null,null,null,null,null,null,null,null,null,null,null,null,null,null,null,null,0]
[null,null,null,null,null,null,null,null,null,null,null,null,null,null,null,null,null,null,null,null,null,null,null,null,null,null,0]
[null,null,null,null,null,null,null,null,null,null,null,null,null,null,null,null,null,null,null,null,null,null,null,null,null,null,0]
[null,null,null,null,null,null,null,null,null,null,null,null,null,null,null,null,null,null,null,null,null,null,null,null,null,null,0]
[null,null,null,null,null,null,null,null,null,null,null,null,null,null,null,null,null,null,null,null,null,null,null,null,null,null,0]
[null,null,null,null,null,null,null,null,null,null,null,null,null,null,null,null,null,null,null,null,null,null,null,null,null,null,0]
[null,null,null,null,null,null,null,null,null,null,null,null,null,null,null,null,null,null,null,null,null,null,null,null,null,null,0]
[null,null,null,null,null,null,null,null,null,null,null,null,null,null,null,null,null,null,null,null,null,null,null,null,null,null,0]
[null,null,null,null,null,null,null,null,null,null,null,null,null,null,null,null,null,null,null,null,null,null,null,null,null,null,0]
[null,null,null,null,null,null,null,null,null,null,null,null,null,null,null,null,null,null,null,null,null,null,null,null,null,null,0]
[null,null,null,null,null,null,null,null,null,null,null,null,null,null,null,null,null,null,null,null,null,null,null,null,null,null,0]
[null,null,null,null,null,null,null,null,null,null,null,null,null,null,null,null,null,null,null,null,null,null,null,null,null,null,0]
[null,null,null,null,null,null,null,null,null,null,null,null,null,null,null,null,null,null,null,null,null,null,null,null,null,null,0]
[null,null,null,null,null,null,null,null,null,null,null,null,null,null,null,null,null,null,null,null,null,null,null,null,null,null,0]
[null,null,null,null,null,null,null,null,null,null,null,null,null,null,null,null,null,null,null,null,null,null,null,null,null,null,0]
[null,null,null,null,null,null,null,null,null,null,null,null,null,null,null,null,null,null,null,null,null,null,null,null,null,null,0]
[null,null,null,null,null,null,null,null,null,null,null,null,null,null,null,null,null,null,null,null,null,null,null,null,null,null,0]
[null,null,null,null,null,null,null,null,null,null,null,null,null,null,null,null,null,null,null,null,null,null,null,null,null,null,0]
[null,null,null,null,null,null,null,null,null,null,null,null,null,null,null,null,null,null,null,null,null,null,null,null,null,null,{"$f":"IF(AND(R74<>\"\",MOD(ROW(R74),2)=0),1,0)","v":0}]
[null,null,null,null,null,null,null,null,null,null,null,null,null,null,null,null,null,null,null,null,null,null,null,null,null,null,0]
[null,null,null,null,null,null,null,null,null,null,null,null,null,null,null,null,null,null,null,null,null,null,null,null,null,null,0]
[null,null,null,null,null,null,null,null,null,null,null,null,null,null,null,null,null,null,null,null,null,null,null,null,null,null,0]
[null,null,null,null,null,null,null,null,null,null,null,null,null,null,null,null,null,null,null,null,null,null,null,null,null,null,0]
[null,null,null,null,null,null,null,null,null,null,null,null,null,null,null,null,null,null,null,null,null,null,null,null,null,null,0]
[null,null,null,null,null,null,null,null,null,null,null,null,null,null,null,null,null,null,null,null,null,null,null,null,null,null,0]
[null,null,null,null,null,null,null,null,null,null,null,null,null,null,null,null,null,null,null,null,null,null,null,null,null,null,0]
[null,null,null,null,null,null,null,null,null,null,null,null,null,null,null,null,null,null,null,null,null,null,null,null,null,null,0]
[null,null,null,null,null,null,null,null,null,null,null,null,null,null,null,null,null,null,null,null,null,null,null,null,null,null,0]
[null,null,null,null,null,null,null,null,null,null,null,null,null,null,null,null,null,null,null,null,null,null,null,null,null,null,0]
[null,null,null,null,null,null,null,null,null,null,null,null,null,null,null,null,null,null,null,null,null,null,null,null,null,null,0]
[null,null,null,null,null,null,null,null,null,null,null,null,null,null,null,null,null,null,null,null,null,null,null,null,null,null,0]
[null,null,null,null,null,null,null,null,null,null,null,null,null,null,null,null,null,null,null,null,null,null,null,null,null,null,0]
[null,null,null,null,null,null,null,null,null,null,null,null,null,null,null,null,null,null,null,null,null,null,null,null,null,null,0]
[null,null,null,null,null,null,null,null,null,null,null,null,null,null,null,null,null,null,null,null,null,null,null,null,null,null,0]
[null,null,null,null,null,null,null,null,null,null,null,null,null,null,null,null,null,null,null,null,null,null,null,null,null,null,0]
[null,null,null,null,null,null,null,null,null,null,null,null,null,null,null,null,null,null,null,null,null,null,null,null,null,null,0]
[null,null,null,null,null,null,null,null,null,null,null,null,null,null,null,null,null,null,null,null,null,null,null,null,null,null,0]
[null,null,null,null,null,null,null,null,null,null,null,null,null,null,null,null,null,null,null,null,null,null,null,null,null,null,0]
[null,null,null,null,null,null,null,null,null,null,null,null,null,null,null,null,null,null,null,null,null,null,null,null,null,null,0]
[null,null,null,null,null,null,null,null,null,null,null,null,null,null,null,null,null,null,null,null,null,null,null,null,null,null,0]
[null,null,null,null,null,null,null,null,null,null,null,null,null,null,null,null,null,null,null,null,null,null,null,null,null,null,0]
[null,null,null,null,null,null,null,null,null,null,null,null,null,null,null,null,null,null,null,null,null,null,null,null,null,null,0]
[null,null,null,null,null,null,null,null,null,null,null,null,null,null,null,null,null,null,null,null,null,null,null,null,null,null,0]
[null,null,null,null,null,null,null,null,null,null,null,null,null,null,null,null,null,null,null,null,null,null,null,null,null,null,0]
[null,null,null,null,null,null,null,null,null,null,null,null,null,null,null,null,null,null,null,null,null,null,null,null,null,null,0]
[null,null,null,null,null,null,null,null,null,null,null,null,null,null,null,null,null,null,null,null,null,null,null,null,null,null,0]
[null,null,null,null,null,null,null,null,null,null,null,null,null,null,null,null,null,null,null,null,null,null,null,null,null,null,0]
[null,null,null,null,null,null,null,null,null,null,null,null,null,null,null,null,null,null,null,null,null,null,null,null,null,null,0]
[null,null,null,null,null,null,null,null,null,null,null,null,null,null,null,null,null,null,null,null,null,null,null,null,null,null,0]
[null,null,null,null,null,null,null,null,null,null,null,null,null,null,null,null,null,null,null,null,null,null,null,null,null,null,0]
[null,null,null,null,null,null,null,null,null,null,null,null,null,null,null,null,null,null,null,null,null,null,null,null,null,null,0]
[null,null,null,null,null,null,null,null,null,null,null,null,null,null,null,null,null,null,null,null,null,null,null,null,null,null,0]
[null,null,null,null,null,null,null,null,null,null,null,null,null,null,null,null,null,null,null,null,null,null,null,null,null,null,0]

{"sheet":"Parametri_Operazioni_ORG","index":10,"n_rows":82,"n_cols":14,"rows_kept":82,"cut":false,"hidden":false,"merged":[[80,10,80,11],[80,12,80,13],[79,10,79,11],[74,10,74,11],[75,10,75,11],[76,10,76,11],[78,12,78,13],[79,12,79,13],[42,10,42,11],[43,10,43,11],[44,10,44,11],[45,10,45,11],[46,10,46,11],[47,10,47,11],[77,10,77,11],[48,10,48,11],[73,10,73,11],[49,10,49,11],[50,10,50,11],[51,10,51,11],[52,10,52,11],[53,10,53,11],[69,10,69,11],[70,10,70,11],[61,10,61,11],[62,10,62,11],[63,10,63,11],[64,10,64,11],[65,10,65,11],[66,10,66,11],[78,10,78,11],[67,10,67,11],[68,10,68,11],[71,10,71,11],[72,10,72,11],[76,5,76,7],[77,5,77,7],[78,5,78,7],[79,5,79,7],[80,5,80,7],[74,8,74,9],[75,8,75,9],[76,8,76,9],[77,8,77,9],[78,8,78,9],[79,8,79,9],[80,8,80,9],[69,8,69,9],[70,8,70,9],[71,8,71,9],[72,8,72,9],[72,5,72,7],[73,5,73,7],[74,5,74,7],[75,5,75,7],[61,5,61,7],[62,5,62,7],[63,5,63,7],[64,5,64,7],[65,5,65,7],[66,5,66,7],[69,5,69,7],[70,5,70,7],[71,5,71,7],[68,5,68,7],[61,12,61,13],[62,12,62,13],[63,12,63,13],[64,12,64,13],[65,12,65,13],[76,12,76,13],[77,12,77,13],[66,12,66,13],[67,12,67,13],[68,12,68,13],[69,12,69,13],[70,12,70,13],[71,12,71,13],[72,12,72,13],[73,12,73,13],[74,12,74,13],[75,12,75,13],[59,10,59,11],[59,12,59,13],[60,5,60,7],[60,8,60,9],[60,10,60,11],[60,12,60,13],[46,5,46,7],[47,5,47,7],[48,5,48,7],[49,5,49,7],[50,5,50,7],[51,5,51,7],[52,5,52,7],[53,5,53,7],[46,8,46,9],[47,8,47,9],[48,8,48,9],[49,8,49,9],[50,8,50,9],[51,8,51,9],[52,8,52,9],[53,8,53,9],[46,12,46,13],[47,12,47,13],[56,10,56,11],[56,12,56,13],[57,5,57,7],[57,8,57,9],[57,10,57,11],[57,12,57,13],[58,5,58,7],[58,8,58,9],[58,10,58,11],[58,12,58,13],[54,10,54,11],[54,12,54,13],[42,5,42,7],[43,5,43,7],[44,5,44,7],[45,5,45,7],[55,5,55,7],[55,8,55,9],[55,10,55,11],[55,12,55,13],[42,8,42,9],[43,8,43,9],[44,8,44,9],[45,8,45,9],[42,12,42,13],[43,12,43,13],[44,12,44,13],[45,12,45,13],[48,12,48,13],[49,12,49,13],[50,12,50,13],[51,12,51,13],[52,12,52,13],[53,12,53,13],[81,10,81,11],[81,12,81,13],[35,5,35,7],[35,8,35,9],[35,10,35,11],[35,12,35,13],[37,5,37,7],[37,8,37,9],[37,10,37,11],[37,12,37,13],[38,10,38,11],[38,12,38,13],[39,8,39,9],[39,10,39,11],[39,12,39,13],[40,5,40,7],[40,8,40,9],[40,10,40,11],[40,12,40,13],[39,5,39,7],[41,10,41,11],[41,12,41,13],[54,5,54,7],[54,8,54,9],[4,3,4,4],[6,3,6,4],[10,3,10,4],[13,3,13,4],[81,5,81,7],[81,8,81,9],[38,5,38,7],[38,8,38,9],[41,5,41,7],[41,8,41,9],[56,5,56,7],[56,8,56,9],[59,5,59,7],[59,8,59,9],[67,8,67,9],[68,8,68,9],[61,8,61,9],[62,8,62,9],[73,8,73,9],[63,8,63,9],[64,8,64,9],[65,8,65,9],[66,8,66,9],[67,5,67,7]]}
[]
[null,"Parametri necessari al funzionamento dei codici",null,null,null,null,"Spiegazione"]
[]
[]
[null,"Directory e nome del template vuoto",null,null,null,null,"Spiegazione",null,{"$f":"IF(L5=0,\"OK\",\"ERRORE: Nome template non inserito o errato!\")","v":"ERRORE: Nome template non inserito o errato!"},null,null,{"$f":"IF(AND(D5<>\"\",RIGHT(D5,5)=\".xlsx\"),0,1)","v":1},null,"Controllo errore"]
[]
[null,"Directory di lettura dei valutativi",null,null,null,null,"Spiegazione",null,{"$f":"IF(L7=0,\"OK\",\"ERRORE: Directory mancante o \"\"\\\"\" non inserita!\")","v":"ERRORE: Directory mancante o \"\\\" non inserita!"},null,null,{"$f":"IF(AND(D7<>\"\",RIGHT(D7,1)=\"\\\"),0,1)","v":1},null,"Controllo errore"]
[]
[null,null,null,null,"Attenzione: dopo la directory si deve piazzare il carattere \"\\\""]
[]
[null,"Inizializzazione Torneo",null,{"$f":"IF(Riepilogo_Organizzazione!D55<>\"\",\"Torneo Inizializzato\",\"ATTENZIONE: Torneo non inizializzato!\")","v":"ATTENZIONE: Torneo non inizializzato!"},null,null,"Spiegazione",null,{"$f":"IF(L11=0,\"OK\",\"ERRORE: Torneo non inizializzato!\")","v":"ERRORE: Torneo non inizializzato!"},null,null,{"$f":"IF(Riepilogo_Organizzazione!D55<>\"\",0,1)","v":1},null,"Controllo errore"]
[]
[null,"Valutativi protetti da password (tick)",null,null,null,null,"Spiegazione"]
[null,"Password dei valutativi",null,null,null,null,"Spiegazione"]
[]
[]
[]
[null,null,null,null,null,null,"Spiegazione"]
[]
[]
[]
[null,null,null,null,null,null,"Spiegazione"]
[]
[]
[]
[]
[]
[]
[null,"Altri parametri di supporto",null,null,"Attenzione: si sconsiglia la modifica dei seguenti parametri senza averli completamente compresi! Forse è meglio rinascondere queste celle e fare finta di non averle viste…"]
[]
[null,null,"Riga di partenza lettura funzione INITIALIZE",null,{"$f":"ROW(E38)","v":38}]
[null,null,"Riga di fine lettura funzione INITIALIZE",null,{"$f":"ROW(E82)","v":82}]
[]
[]
[null,null,"Parametri della funzione di INITIALIZE"]
[null,null,null,null,"Nome Foglio di Partenza","Cella di partenza",null,null,"Foglio di destinaz.",null,"Cella di destinaz.",null,"Tipo"]
[]
[null,null,"Titolo dell'avventura",null,"Generalità_ORG","D5",null,null,"Riepilogo_Organizzazione",null,"D4",null,"STRING"]
[null,null,"Gruppo organizzatore",null,"Generalità_ORG","D6",null,null,"Riepilogo_Organizzazione",null,"D5",null,"STRING"]
[null,null,"Località",null,"Generalità_ORG","D7",null,null,"Riepilogo_Organizzazione",null,"D6",null,"STRING"]
[null,null,"Range di date",null,"Generalità_ORG","D8",null,null,"Riepilogo_Organizzazione",null,"D7",null,"STRING"]
[null,null,"Esplicitazione del turno (tick)",null,"Generalità_ORG","D9",null,null,"Riepilogo_Organizzazione",null,"D8",null,"STRING"]
[null,null,"Presenza del comaster (tick)",null,"Generalità_ORG","D18",null,null,"Riepilogo_Organizzazione",null,"D9",null,"STRING"]
[null,null,"Nome del personaggio 1",null,"Generalità_ORG","D23",null,null,"Riepilogo_Organizzazione",null,"D11",null,"STRING"]
[null,null,"Nome del personaggio 2",null,"Generalità_ORG","D26",null,null,"Riepilogo_Organizzazione",null,"D12",null,"STRING"]
[null,null,"Nome del personaggio 3",null,"Generalità_ORG","D29",null,null,"Riepilogo_Organizzazione",null,"D13",null,"STRING"]
[null,null,"Nome del personaggio 4",null,"Generalità_ORG","D32",null,null,"Riepilogo_Organizzazione",null,"D14",null,"STRING"]
[null,null,"Nome del personaggio 5",null,"Generalità_ORG","D35",null,null,"Riepilogo_Organizzazione",null,"D15",null,"STRING"]
[null,null,"Nome del personaggio 6",null,"Generalità_ORG","D38",null,null,"Riepilogo_Organizzazione",null,"D16",null,"STRING"]
[null,null,"Peso AA (per squadra)",null,"Pesi_Principali_ORG","E29",null,null,"Riepilogo_Organizzazione",null,"D20",null,"NUMBER"]
[null,null,"Peso VPG media (per squadra)",null,"Pesi_Principali_ORG","D29",null,null,"Riepilogo_Organizzazione",null,"D21",null,"NUMBER"]
[null,null,"Peso VSP per giocatore 1",null,"Pesi_Principali_ORG","G18",null,null,"Riepilogo_Organizzazione",null,"D23",null,"NUMBER"]
[null,null,"Peso QB per giocatore 1",null,"Pesi_Principali_ORG","H18",null,null,"Riepilogo_Organizzazione",null,"D24",null,"NUMBER"]
[null,null,"Peso AA per giocatore 1",null,"Pesi_Principali_ORG","I18",null,null,"Riepilogo_Organizzazione",null,"D25",null,"NUMBER"]
[null,null,"Peso VSP per giocatore 2",null,"Pesi_Principali_ORG","G19",null,null,"Riepilogo_Organizzazione",null,"D26",null,"NUMBER"]
[null,null,"Peso QB per giocatore 2",null,"Pesi_Principali_ORG","H19",null,null,"Riepilogo_Organizzazione",null,"D27",null,"NUMBER"]
[null,null,"Peso AA per giocatore 2",null,"Pesi_Principali_ORG","I19",null,null,"Riepilogo_Organizzazione",null,"D28",null,"NUMBER"]
[null,null,"Peso VSP per giocatore 3",null,"Pesi_Principali_ORG","G20",null,null,"Riepilogo_Organizzazione",null,"D29",null,"NUMBER"]
[null,null,"Peso QB per giocatore 3",null,"Pesi_Principali_ORG","H20",null,null,"Riepilogo_Organizzazione",null,"D30",null,"NUMBER"]
[null,null,"Peso AA per giocatore 3",null,"Pesi_Principali_ORG","I20",null,null,"Riepilogo_Organizzazione",null,"D31",null,"NUMBER"]
[null,null,"Peso VSP per giocatore 4",null,"Pesi_Principali_ORG","G21",null,null,"Riepilogo_Organizzazione",null,"D32",null,"NUMBER"]
[null,null,"Peso QB per giocatore 4",null,"Pesi_Principali_ORG","H21",null,null,"Riepilogo_Organizzazione",null,"D33",null,"NUMBER"]
[null,null,"Peso AA per giocatore 4",null,"Pesi_Principali_ORG","I21",null,null,"Riepilogo_Organizzazione",null,"D34",null,"NUMBER"]
[null,null,"Peso VSP per giocatore 5",null,"Pesi_Principali_ORG","G22",null,null,"Riepilogo_Organizzazione",null,"D35",null,"NUMBER"]
[null,null,"Peso QB per giocatore 5",null,"Pesi_Principali_ORG","H22",null,null,"Riepilogo_Organizzazione",null,"D36",null,"NUMBER"]
[null,null,"Peso AA per giocatore 5",null,"Pesi_Principali_ORG","I22",null,null,"Riepilogo_Organizzazione",null,"D37",null,"NUMBER"]
[null,null,"Peso VSP per giocatore 6",null,"Pesi_Principali_ORG","G23",null,null,"Riepilogo_Organizzazione",null,"D38",null,"NUMBER"]
[null,null,"Peso QB per giocatore 6",null,"Pesi_Principali_ORG","H23",null,null,"Riepilogo_Organizzazione",null,"D39",null,"NUMBER"]
[null,null,"Peso AA per giocatore 6",null,"Pesi_Principali_ORG","I23",null,null,"Riepilogo_Organizzazione",null,"D40",null,"NUMBER"]
[null,null,"Peso VSP per VPG 1",null,"Pesi_Principali_ORG","D7",null,null,"Riepilogo_Organizzazione",null,"D42",null,"NUMBER"]
[null,null,"Peso QB per VPG 1",null,"Pesi_Principali_ORG","E7",null,null,"Riepilogo_Organizzazione",null,"D43",null,"NUMBER"]
[null,null,"Peso VSP per VPG 2",null,"Pesi_Principali_ORG","D8",null,null,"Riepilogo_Organizzazione",null,"D44",null,"NUMBER"]
[null,null,"Peso QB per VPG 2",null,"Pesi_Principali_ORG","E8",null,null,"Riepilogo_Organizzazione",null,"D45",null,"NUMBER"]
[null,null,"Peso VSP per VPG 3",null,"Pesi_Principali_ORG","D9",null,null,"Riepilogo_Organizzazione",null,"D46",null,"NUMBER"]
[null,null,"Peso QB per VPG 3",null,"Pesi_Principali_ORG","E9",null,null,"Riepilogo_Organizzazione",null,"D47",null,"NUMBER"]
[null,null,"Peso VSP per VPG 4",null,"Pesi_Principali_ORG","D10",null,null,"Riepilogo_Organizzazione",null,"D48",null,"NUMBER"]
[null,null,"Peso QB per VPG 4",null,"Pesi_Principali_ORG","E10",null,null,"Riepilogo_Organizzazione",null,"D49",null,"NUMBER"]
[null,null,"Peso VSP per VPG 5",null,"Pesi_Principali_ORG","D11",null,null,"Riepilogo_Organizzazione",null,"D50",null,"NUMBER"]
[null,null,"Peso QB per VPG 5",null,"Pesi_Principali_ORG","E11",null,null,"Riepilogo_Organizzazione",null,"D51",null,"NUMBER"]
[null,null,"Peso VSP per VPG 6",null,"Pesi_Principali_ORG","D12",null,null,"Riepilogo_Organizzazione",null,"D52",null,"NUMBER"]
[null,null,"Peso QB per VPG 6",null,"Pesi_Principali_ORG","E12",null,null,"Riepilogo_Organizzazione",null,"D53",null,"NUMBER"]
[null,null,"Tick Di inizializzazione (FUORI MODIFICA)",null,null,null,null,null,"Riepilogo_Organizzazione",null,"D55",null,"STRING"]

{"sheet":"Calcola_Classifiche_ORG","index":11,"n_rows":283,"n_cols":17,"rows_kept":283,"cut":false,"hidden":false,"merged":[[281,5,281,7],[282,5,282,7],[280,8,280,9],[281,8,281,9],[282,8,282,9],[279,5,279,7],[279,8,279,9],[278,5,278,7],[278,8,278,9],[277,5,277,7],[277,8,277,9],[276,5,276,7],[276,8,276,9],[73,10,73,11],[73,12,73,13],[280,5,280,7],[274,5,274,7],[274,8,274,9],[77,5,77,7],[77,8,77,9],[77,10,77,11],[77,12,77,13],[78,5,78,7],[78,8,78,9],[78,10,78,11],[78,12,78,13],[75,5,75,7],[75,8,75,9],[75,10,75,11],[75,12,75,13],[76,5,76,7],[76,8,76,9],[76,10,76,11],[60,12,60,13],[62,12,62,13],[63,5,63,7],[63,8,63,9],[63,10,63,11],[63,12,63,13],[62,5,62,7],[62,8,62,9],[62,10,62,11],[5,4,5,8],[60,8,60,9],[60,10,60,11],[51,5,51,7],[52,5,52,7],[53,5,53,7],[54,5,54,7],[55,5,55,7],[60,5,60,7],[47,5,47,7],[49,5,49,7],[50,5,50,7],[64,12,64,13],[65,5,65,7],[65,8,65,9],[65,10,65,11],[65,12,65,13],[70,5,70,7],[70,8,70,9],[70,10,70,11],[70,12,70,13],[64,5,64,7],[64,8,64,9],[66,5,66,7],[66,8,66,9],[68,5,68,7],[68,8,68,9],[66,10,66,11],[66,12,66,13],[67,5,67,7],[67,8,67,9],[67,10,67,11],[67,12,67,13],[64,10,64,11],[71,5,71,7],[71,8,71,9],[71,10,71,11],[71,12,71,13],[68,10,68,11],[68,12,68,13],[69,5,69,7],[69,8,69,9],[69,10,69,11],[69,12,69,13],[72,5,72,7],[72,8,72,9],[72,10,72,11],[72,12,72,13],[74,5,74,7],[74,8,74,9],[74,10,74,11],[74,12,74,13],[73,5,73,7],[73,8,73,9],[76,12,76,13],[81,5,81,7],[81,8,81,9],[81,10,81,11],[81,12,81,13],[82,5,82,7],[82,8,82,9],[82,10,82,11],[82,12,82,13],[79,5,79,7],[79,8,79,9],[79,10,79,11],[79,12,79,13],[80,5,80,7],[80,8,80,9],[80,10,80,11],[80,12,80,13],[83,5,83,7],[83,8,83,9],[83,10,83,11],[83,12,83,13],[87,10,87,11],[87,12,87,13],[84,5,84,7],[84,8,84,9],[84,10,84,11],[84,12,84,13],[75,1,90,1],[62,1,74,1],[88,5,88,7],[88,8,88,9],[88,10,88,11],[88,12,88,13],[86,10,86,11],[86,12,86,13],[87,5,87,7],[87,8,87,9],[90,5,90,7],[90,8,90,9],[90,10,90,11],[90,12,90,13],[85,5,85,7],[85,8,85,9],[85,10,85,11],[85,12,85,13],[89,5,89,7],[89,8,89,9],[89,10,89,11],[89,12,89,13],[86,5,86,7],[86,8,86,9],[91,12,91,13],[92,5,92,7],[92,8,92,9],[92,10,92,11],[92,12,92,13],[93,5,93,7],[93,8,93,9],[93,10,93,11],[93,12,93,13],[91,5,91,7],[91,8,91,9],[91,10,91,11],[94,12,94,13],[95,5,95,7],[95,8,95,9],[95,10,95,11],[95,12,95,13],[96,5,96,7],[96,8,96,9],[96,10,96,11],[96,12,96,13],[94,5,94,7],[94,8,94,9],[94,10,94,11],[100,5,100,7],[100,8,100,9],[100,10,100,11],[100,12,100,13],[101,5,101,7],[101,8,101,9],[101,10,101,11],[101,12,101,13],[97,12,97,13],[98,5,98,7],[98,8,98,9],[98,10,98,11],[98,12,98,13],[99,5,99,7],[99,8,99,9],[99,10,99,11],[99,12,99,13],[97,5,97,7],[97,8,97,9],[97,10,97,11],[104,5,104,7],[104,8,104,9],[104,10,104,11],[104,12,104,13],[105,5,105,7],[105,8,105,9],[105,10,105,11],[105,12,105,13],[102,5,102,7],[102,8,102,9],[102,10,102,11],[102,12,102,13],[103,5,103,7],[103,8,103,9],[103,10,103,11],[103,12,103,13],[106,5,106,7],[106,8,106,9],[106,10,106,11],[106,12,106,13],[107,1,122,1],[107,5,107,7],[107,8,107,9],[107,10,107,11],[107,12,107,13],[108,5,108,7],[91,1,106,1],[110,5,110,7],[110,8,110,9],[110,10,110,11],[110,12,110,13],[111,5,111,7],[111,8,111,9],[111,10,111,11],[111,12,111,13],[108,8,108,9],[108,10,108,11],[108,12,108,13],[109,5,109,7],[109,8,109,9],[109,10,109,11],[109,12,109,13],[114,5,114,7],[114,8,114,9],[114,10,114,11],[114,12,114,13],[115,5,115,7],[115,8,115,9],[115,10,115,11],[115,12,115,13],[112,5,112,7],[112,8,112,9],[112,10,112,11],[112,12,112,13],[113,5,113,7],[113,8,113,9],[113,10,113,11],[113,12,113,13],[118,5,118,7],[118,8,118,9],[118,10,118,11],[118,12,118,13],[119,5,119,7],[119,8,119,9],[119,10,119,11],[119,12,119,13],[116,5,116,7],[116,8,116,9],[116,10,116,11],[116,12,116,13],[117,5,117,7],[117,8,117,9],[117,10,117,11],[117,12,117,13],[123,1,138,1],[123,5,123,7],[123,8,123,9],[123,10,123,11],[123,12,123,13],[124,5,124,7],[120,5,120,7],[120,8,120,9],[120,10,120,11],[120,12,120,13],[121,5,121,7],[121,8,121,9],[121,10,121,11],[121,12,121,13],[124,8,124,9],[124,10,124,11],[124,12,124,13],[125,5,125,7],[125,8,125,9],[125,10,125,11],[125,12,125,13],[122,5,122,7],[122,8,122,9],[122,10,122,11],[122,12,122,13],[128,5,128,7],[128,8,128,9],[128,10,128,11],[128,12,128,13],[129,5,129,7],[129,8,129,9],[129,10,129,11],[129,12,129,13],[126,5,126,7],[126,8,126,9],[126,10,126,11],[126,12,126,13],[127,5,127,7],[127,8,127,9],[127,10,127,11],[127,12,127,13],[132,5,132,7],[132,8,132,9],[132,10,132,11],[132,12,132,13],[133,5,133,7],[133,8,133,9],[133,10,133,11],[133,12,133,13],[130,5,130,7],[130,8,130,9],[130,10,130,11],[130,12,130,13],[131,5,131,7],[131,8,131,9],[131,10,131,11],[131,12,131,13],[136,5,136,7],[136,8,136,9],[136,10,136,11],[136,12,136,13],[137,5,137,7],[137,8,137,9],[137,10,137,11],[137,12,137,13],[134,5,134,7],[134,8,134,9],[134,10,134,11],[134,12,134,13],[135,5,135,7],[135,8,135,9],[135,10,135,11],[135,12,135,13],[140,8,140,9],[140,10,140,11],[140,12,140,13],[141,5,141,7],[141,8,141,9],[141,10,141,11],[141,12,141,13],[138,5,138,7],[138,8,138,9],[138,10,138,11],[138,12,138,13],[139,5,139,7],[139,8,139,9],[139,10,139,11],[139,12,139,13],[140,5,140,7],[144,5,144,7],[144,8,144,9],[144,10,144,11],[144,12,144,13],[145,5,145,7],[145,8,145,9],[145,10,145,11],[145,12,145,13],[142,5,142,7],[142,8,142,9],[142,10,142,11],[142,12,142,13],[143,5,143,7],[143,8,143,9],[143,10,143,11],[143,12,143,13],[148,5,148,7],[148,8,148,9],[148,10,148,11],[148,12,148,13],[149,5,149,7],[149,8,149,9],[149,10,149,11],[149,12,149,13],[146,5,146,7],[146,8,146,9],[146,10,146,11],[146,12,146,13],[147,5,147,7],[147,8,147,9],[147,10,147,11],[147,12,147,13],[152,5,152,7],[152,8,152,9],[152,10,152,11],[152,12,152,13],[153,5,153,7],[153,8,153,9],[153,10,153,11],[153,12,153,13],[150,5,150,7],[150,8,150,9],[150,10,150,11],[150,12,150,13],[151,5,151,7],[151,8,151,9],[151,10,151,11],[151,12,151,13],[154,5,154,7],[154,8,154,9],[154,10,154,11],[154,12,154,13],[155,1,170,1],[155,5,155,7],[155,8,155,9],[155,10,155,11],[155,12,155,13],[156,5,156,7],[139,1,154,1],[158,5,158,7],[158,8,158,9],[158,10,158,11],[158,12,158,13],[159,5,159,7],[159,8,159,9],[159,10,159,11],[159,12,159,13],[156,8,156,9],[156,10,156,11],[156,12,156,13],[157,5,157,7],[157,8,157,9],[157,10,157,11],[157,12,157,13],[162,5,162,7],[162,8,162,9],[162,10,162,11],[162,12,162,13],[163,5,163,7],[163,8,163,9],[163,10,163,11],[163,12,163,13],[160,5,160,7],[160,8,160,9],[160,10,160,11],[160,12,160,13],[161,5,161,7],[161,8,161,9],[161,10,161,11],[161,12,161,13],[166,5,166,7],[166,8,166,9],[166,10,166,11],[166,12,166,13],[167,5,167,7],[167,8,167,9],[167,10,167,11],[167,12,167,13],[164,5,164,7],[164,8,164,9],[164,10,164,11],[164,12,164,13],[165,5,165,7],[165,8,165,9],[165,10,165,11],[165,12,165,13],[170,5,170,7],[170,8,170,9],[170,10,170,11],[170,12,170,13],[174,5,174,7],[176,5,176,7],[168,5,168,7],[168,8,168,9],[168,10,168,11],[168,12,168,13],[169,5,169,7],[169,8,169,9],[169,10,169,11],[169,12,169,13],[180,10,180,11],[180,12,180,13],[181,8,181,9],[181,10,181,11],[181,12,181,13],[180,5,180,7],[181,5,181,7],[174,8,174,9],[174,10,174,11],[174,12,174,13],[176,8,176,9],[176,10,176,11],[176,12,176,13],[177,8,177,9],[177,10,177,11],[177,5,177,7],[178,5,178,7],[179,5,179,7],[177,12,177,13],[178,8,178,9],[178,10,178,11],[178,12,178,13],[179,8,179,9],[188,12,188,13],[188,14,188,15],[185,5,185,7],[185,8,185,9],[185,10,185,11],[185,12,185,13],[185,14,185,15],[181,14,181,15],[174,16,174,17],[176,16,176,17],[177,16,177,17],[178,16,178,17],[179,16,179,17],[180,16,180,17],[181,16,181,17],[174,14,174,15],[176,14,176,15],[177,14,177,15],[178,14,178,15],[179,14,179,15],[180,14,180,15],[179,10,179,11],[179,12,179,13],[180,8,180,9],[191,10,191,11],[190,5,190,7],[190,8,190,9],[190,10,190,11],[189,5,189,7],[189,8,189,9],[189,10,189,11],[188,5,188,7],[188,8,188,9],[188,10,188,11],[191,12,191,13],[192,12,192,13],[196,12,196,13],[192,14,192,15],[187,5,187,7],[187,8,187,9],[187,10,187,11],[187,12,187,13],[187,14,187,15],[189,12,189,13],[190,12,190,13],[189,14,189,15],[190,14,190,15],[191,14,191,15],[193,5,193,7],[193,8,193,9],[193,10,193,11],[193,12,193,13],[193,14,193,15],[192,5,192,7],[192,8,192,9],[192,10,192,11],[191,5,191,7],[191,8,191,9],[215,5,215,7],[215,8,215,9],[215,10,215,11],[198,5,198,7],[198,8,198,9],[198,10,198,11],[214,5,214,7],[198,12,198,13],[200,12,200,13],[201,12,201,13],[202,12,202,13],[199,5,199,7],[200,5,200,7],[200,8,200,9],[200,10,200,11],[212,5,212,7],[201,5,201,7],[201,8,201,9],[207,10,207,11],[214,8,214,9],[214,10,214,11],[208,8,208,9],[208,10,208,11],[205,10,205,11],[196,5,196,7],[196,8,196,9],[196,10,196,11],[201,10,201,11],[211,5,211,7],[211,8,211,9],[211,10,211,11],[202,5,202,7],[202,8,202,9],[202,10,202,11],[210,5,210,7],[203,5,203,7],[203,8,203,9],[203,10,203,11],[209,5,209,7],[209,8,209,9],[209,10,209,11],[204,5,204,7],[204,8,204,9],[204,10,204,11],[208,5,208,7],[205,5,205,7],[205,8,205,9],[207,8,207,9],[206,5,206,7],[206,8,206,9],[206,10,206,11],[212,8,212,9],[212,10,212,11],[210,8,210,9],[210,10,210,11],[207,5,207,7],[213,5,213,7],[213,8,213,9],[213,10,213,11],[216,5,216,7],[216,8,216,9],[219,5,219,7],[219,8,219,9],[219,10,219,11],[221,5,221,7],[221,8,221,9],[221,10,221,11],[220,5,220,7],[220,8,220,9],[217,5,217,7],[217,8,217,9],[217,10,217,11],[218,5,218,7],[218,8,218,9],[218,10,218,11],[216,10,216,11],[220,10,220,11],[222,5,222,7],[222,8,222,9],[222,10,222,11],[225,10,225,11],[226,5,226,7],[226,8,226,9],[226,10,226,11],[223,5,223,7],[223,8,223,9],[225,5,225,7],[229,5,229,7],[229,8,229,9],[229,10,229,11],[230,5,230,7],[230,8,230,9],[230,10,230,11],[223,10,223,11],[224,5,224,7],[224,8,224,9],[224,10,224,11],[228,5,228,7],[228,8,228,9],[228,10,228,11],[227,5,227,7],[227,8,227,9],[227,10,227,11],[231,8,231,9],[231,10,231,11],[236,10,236,11],[232,5,232,7],[232,8,232,9],[232,10,232,11],[233,5,233,7],[233,8,233,9],[233,10,233,11],[240,10,240,11],[241,5,241,7],[235,5,235,7],[235,8,235,9],[235,10,235,11],[236,5,236,7],[236,8,236,9],[237,5,237,7],[238,5,238,7],[257,16,257,17],[259,16,259,17],[260,16,260,17],[238,12,238,13],[239,12,239,13],[240,12,240,13],[242,12,242,13],[243,12,243,13],[238,14,238,15],[239,14,239,15],[236,14,236,15],[237,14,237,15],[240,14,240,15],[242,14,242,15],[246,5,246,7],[248,5,248,7],[243,14,243,15],[242,5,242,7],[242,8,242,9],[242,10,242,11],[246,14,246,15],[248,14,248,15],[246,10,246,11],[241,8,241,9],[241,10,241,11],[241,12,241,13],[243,5,243,7],[243,8,243,9],[243,10,243,11],[239,5,239,7],[239,8,239,9],[239,10,239,11],[240,5,240,7],[240,8,240,9],[214,14,214,15],[253,5,253,7],[215,14,215,15],[216,14,216,15],[217,14,217,15],[218,14,218,15],[219,14,219,15],[221,14,221,15],[222,14,222,15],[223,14,223,15],[251,5,251,7],[252,5,252,7],[224,14,224,15],[225,14,225,15],[226,14,226,15],[228,14,228,15],[229,14,229,15],[230,14,230,15],[231,14,231,15],[232,14,232,15],[249,5,249,7],[250,5,250,7],[233,14,233,15],[235,14,235,15],[196,14,196,15],[198,14,198,15],[200,14,200,15],[201,14,201,15],[202,14,202,15],[259,5,259,7],[259,8,259,9],[259,10,259,11],[259,12,259,13],[259,14,259,15],[203,14,203,15],[204,14,204,15],[205,14,205,15],[206,14,206,15],[208,14,208,15],[257,5,257,7],[257,8,257,9],[257,10,257,11],[257,12,257,13],[257,14,257,15],[209,14,209,15],[210,14,210,15],[211,14,211,15],[212,14,212,15],[262,12,262,13],[262,14,262,15],[249,14,249,15],[250,14,250,15],[251,14,251,15],[261,5,261,7],[261,8,261,9],[261,10,261,11],[261,12,261,13],[261,14,261,15],[253,10,253,11],[253,8,253,9],[252,14,252,15],[253,14,253,15],[254,14,254,15],[260,5,260,7],[260,8,260,9],[260,10,260,11],[260,12,260,13],[260,14,260,15],[254,5,254,7],[253,12,253,13],[250,10,250,11],[250,8,250,9],[264,12,264,13],[264,14,264,15],[268,14,268,15],[263,5,263,7],[263,8,263,9],[263,10,263,11],[263,12,263,13],[263,14,263,15],[270,5,270,7],[270,8,270,9],[270,10,270,11],[270,12,270,13],[270,14,270,15],[249,10,249,11],[249,8,249,9],[264,5,264,7],[264,8,264,9],[264,10,264,11],[254,10,254,11],[254,8,254,9],[262,5,262,7],[262,8,262,9],[262,10,262,11],[261,16,261,17],[262,16,262,17],[263,16,263,17],[264,16,264,17],[268,16,268,17],[270,16,270,17],[254,12,254,13],[246,8,246,9],[268,5,268,7],[268,8,268,9],[268,10,268,11],[268,12,268,13],[246,12,246,13],[248,12,248,13],[249,12,249,13],[248,10,248,11],[248,8,248,9],[250,12,250,13],[251,12,251,13],[252,12,252,13],[252,10,252,11],[252,8,252,9],[251,10,251,11],[251,8,251,9],[235,12,235,13],[236,12,236,13],[237,12,237,13],[237,8,237,9],[237,10,237,11],[238,8,238,9],[238,10,238,11],[199,8,199,9],[199,10,199,11],[199,12,199,13],[223,12,223,13],[220,12,220,13],[210,12,210,13],[211,12,211,13],[212,12,212,13],[214,12,214,13],[215,12,215,13],[216,12,216,13],[213,12,213,13],[203,12,203,13],[204,12,204,13],[205,12,205,13],[206,12,206,13],[208,12,208,13],[3,4,3,8],[234,5,234,7],[225,8,225,9],[234,8,234,9],[234,10,234,11],[234,12,234,13],[231,12,231,13],[232,12,232,13],[233,12,233,13],[224,12,224,13],[225,12,225,13],[226,12,226,13],[228,12,228,13],[227,12,227,13],[229,12,229,13],[230,12,230,13],[217,12,217,13],[218,12,218,13],[219,12,219,13],[221,12,221,13],[222,12,222,13],[209,12,209,13],[207,12,207,13],[231,5,231,7]]}
[]
[null,null,"Calcolo delle classifiche","Spiegazione"]
[]
[null,null,"Directory e nome del template",null,{"$f":"Parametri_Operazioni_ORG!D5","v":0},null,null,null,null,null,"Spiegazione"]
[]
[null,null,"Directory di lettura dei valutativi",null,{"$f":"Parametri_Operazioni_ORG!D7","v":0},null,null,null,null,null,"Spiegazione"]
[]
[null,null,"Inizializzazione Torneo",null,{"$f":"Parametri_Operazioni_ORG!D11","v":"ATTENZIONE: Torneo non inizializzato!"},null,null,null,null,null,"Spiegazione"]
[]
[]
[]
[]
[null,null,null,null,null,null,"Spiegazione"]
[]
[]
[null,null,null,null,null,null,"Spiegazione"]
[]
[]
[]
[]
[null,null,"Altri parametri di supporto",null,"Attenzione: si sconsiglia la modifica dei seguenti parametri senza averli completamente compresi! Forse è meglio rinascondere queste celle e fare finta di non averle viste…"]
[]
[null,null,"Prima riga in cui scrivere ogni classifica",null,9]
[]
[null,null,"Indicizzazione delle celle di input"]
[]
[null,null,"Riga di partenza lettura funzione CLEAN",null,{"$f":"ROW(E50)","v":50}]
[null,null,"Riga di fine lettura funzione CLEAN",null,{"$f":"ROW(E56)","v":56}]
[null,null,"Riga di partenza lettura funzione INSERT",null,{"$f":"ROW(E63)","v":63}]
[null,null,"Riga di fine lettura funzione INSERT",null,{"$f":"ROW(F171)","v":171}]
[null,null,"Riga di partenza lettura funzione SORT",null,{"$f":"ROW(E188)","v":188}]
[null,null,"Riga di fine lettura funzione SORT",null,{"$f":"ROW(E194)","v":194}]
[null,null,"Riga di partenza lettura funzione TRIM",null,{"$f":"ROW(E177)","v":177}]
[null,null,"Riga di fine lettura funzione TRIM",null,{"$f":"ROW(E182)","v":182}]
[null,null,"Riga di partenza lettura funzione FILLER",null,{"$f":"ROW(E199)","v":199}]
[null,null,"Riga di fine lettura funzione FILLER",null,{"$f":"ROW(E244)","v":244}]
[null,null,"Riga di partenza lettura funzione COUNTER",null,{"$f":"ROW(E249)","v":249}]
[null,null,"Riga di fine lettura funzione COUNTER",null,{"$f":"ROW(E255)","v":255}]
[null,null,"Riga di partenza lettura funzione NAMEJOINING",null,{"$f":"ROW(E260)","v":260}]
[null,null,"Riga di fine lettura funzione NAMEJOINING",null,{"$f":"ROW(E265)","v":265}]
[null,null,"Riga di partenza lettura funzione VPGEXTRACTING",null,{"$f":"ROW(E271)","v":271}]
[null,null,"Riga di fine lettura funzione VPGEXTRACTING",null,{"$f":"ROW(E271)","v":271}]
[null,null,"Riga di fine lettura funzione CELLHIDDING",null,{"$f":"ROW(E277)","v":277}]
[null,null,"Riga di fine lettura funzione CELLHIDDING",null,{"$f":"ROW(E283)","v":283}]
[]
[]
[null,null,"Parametri della funzione di CLEAN"]
[null,null,null,null,"Nome Foglio","Range di celle da pulire"]
[]
[null,null,"Foglio Squadre",null,"Classifica_Squadre","A9:AA108"]
[null,null,"Foglio Giocatore 1",null,"Classifica_PG_1","A9:Y108"]
[null,null,"Foglio Giocatore 2",null,"Classifica_PG_2","A9:Y108"]
[null,null,"Foglio Giocatore 3",null,"Classifica_PG_3","A9:Y108"]
[null,null,"Foglio Giocatore 4",null,"Classifica_PG_4","A9:Y108"]
[null,null,"Foglio Giocatore 5",null,"Classifica_PG_5","A9:Y108"]
[null,null,"Foglio Giocatore 6",null,"Classifica_PG_6","A9:Y108"]
[]
[]
[null,null,"Parametri della funzione di INSERT"]
[]
[null,null,null,null,"Nome Foglio di Partenza","Cella di partenza",null,null,"Foglio di destinaz.",null,"Colonna di destinaz.",null,"Tipo"]
[]
[null,"Dati squadra","Nome Squadra",null,"Generale_e_VSP_MAS","C5",null,null,"Classifica_Squadre",null,"B",null,"STRING"]
[null,null,"AA assoluta",null,"Totali_Squadra","BD53",null,null,"Classifica_Squadre",null,"C",null,"NUMBER"]
[null,null,"media VPG assoluta",null,"Totali_Squadra","BR49",null,null,"Classifica_Squadre",null,"D",null,"NUMBER"]
[null,null,"AA utile",null,"Totali_Squadra","AJ58",null,null,"Classifica_Squadre",null,"F",null,"NUMBER"]
[null,null,"Media VPG utile",null,"Totali_Squadra","V58",null,null,"Classifica_Squadre",null,"H",null,"NUMBER"]
[null,null,"Totale Punteggio",null,"Totali_Squadra","AY58",null,null,"Classifica_Squadre",null,"L",null,"NUMBER"]
[null,null,"Macroregione",null,"Totali_Squadra","BL16",null,null,"Classifica_Squadre",null,"M",null,"STRING"]
[null,null,"Provenienza",null,"Totali_Squadra","BO18",null,null,"Classifica_Squadre",null,"N",null,"STRING"]
[null,null,"n° giocatori",null,"Totali_Squadra","BW16",null,null,"Classifica_Squadre",null,"O",null,"NUMBER"]
[null,null,"Master",null,"Totali_Squadra","AT7",null,null,"Classifica_Squadre",null,"P",null,"STRING"]
[null,null,"Comaster",null,"Totali_Squadra","BN7",null,null,"Classifica_Squadre",null,"Q",null,"STRING"]
[null,null,"Errori?",null,"Generale_e_VSP_MAS","R2",null,null,"Classifica_Squadre",null,"T",null,"STRING"]
[null,null,"Nome File",null,"<SPECIAL>","FILE",null,null,"Classifica_Squadre",null,"S",null,"STRING"]
[null,"Personaggio 1","Cognome giocatore",null,"Totali_Squadra","AB14",null,null,"Classifica_PG_1",null,"X",null,"STRING"]
[null,null,"Nome giocatore",null,"Totali_Squadra","AO14",null,null,"Classifica_PG_1",null,"Y",null,"STRING"]
[null,null,"ID giocatore",null,"Totali_Squadra","R14",null,null,"Classifica_PG_1",null,"C",null,"STRING"]
[null,null,"Squadra di appartenenza",null,"Generale_e_VSP_MAS","C5",null,null,"Classifica_PG_1",null,"D",null,"STRING"]
[null,null,"Franchigia",null,"Totali_Squadra","BB14",null,null,"Classifica_PG_1",null,"E",null,"STRING"]
[null,null,"VSP assoluta",null,"Totali_Squadra","U32",null,null,"Classifica_PG_1",null,"F",null,"NUMBER"]
[null,null,"QB assoluta",null,"Totali_Squadra","Z42",null,null,"Classifica_PG_1",null,"G",null,"NUMBER"]
[null,null,"AA assoluta",null,"Totali_Squadra","BD53",null,null,"Classifica_PG_1",null,"H",null,"NUMBER"]
[null,null,"VSP utile personaggio",null,"Totali_Squadra","AA63",null,null,"Classifica_PG_1",null,"I",null,"NUMBER"]
[null,null,"QB utile personaggio",null,"Totali_Squadra","AJ63",null,null,"Classifica_PG_1",null,"K",null,"NUMBER"]
[null,null,"AA utile personaggio",null,"Totali_Squadra","AS63",null,null,"Classifica_PG_1",null,"M",null,"NUMBER"]
[null,null,"Totale Punteggio personaggio",null,"Totali_Squadra","BH63",null,null,"Classifica_PG_1",null,"Q",null,"NUMBER"]
[null,null,"VSP utile per VPG",null,"Totali_Squadra","AZ42",null,null,"Classifica_PG_1",null,"R",null,"NUMBER"]
[null,null,"QB utile per VPG",null,"Totali_Squadra","BI42",null,null,"Classifica_PG_1",null,"T",null,"NUMBER"]
[null,null,"totale VPG (per foglio giocatore)",null,"Totali_Squadra","BR42",null,null,"Classifica_PG_1",null,"V",null,"NUMBER"]
[null,null,"totale VPG (per foglio squadra)",null,"Totali_Squadra","BR42",null,null,"Classifica_Squadre",null,"V",null,"NUMBER"]
[null,"Personaggio 2","Cognome giocatore",null,"Totali_Squadra","AB15",null,null,"Classifica_PG_2",null,"X",null,"STRING"]
[null,null,"Nome giocatore",null,"Totali_Squadra","AO15",null,null,"Classifica_PG_2",null,"Y",null,"STRING"]
[null,null,"ID giocatore",null,"Totali_Squadra","R15",null,null,"Classifica_PG_2",null,"C",null,"STRING"]
[null,null,"Squadra di appartenenza",null,"Generale_e_VSP_MAS","C5",null,null,"Classifica_PG_2",null,"D",null,"STRING"]
[null,null,"Franchigia",null,"Totali_Squadra","BB15",null,null,"Classifica_PG_2",null,"E",null,"STRING"]
[null,null,"VSP assoluta",null,"Totali_Squadra","U33",null,null,"Classifica_PG_2",null,"F",null,"NUMBER"]
[null,null,"QB assoluta",null,"Totali_Squadra","Z43",null,null,"Classifica_PG_2",null,"G",null,"NUMBER"]
[null,null,"AA assoluta",null,"Totali_Squadra","BD53",null,null,"Classifica_PG_2",null,"H",null,"NUMBER"]
[null,null,"VSP utile personaggio",null,"Totali_Squadra","AA64",null,null,"Classifica_PG_2",null,"I",null,"NUMBER"]
[null,null,"QB utile personaggio",null,"Totali_Squadra","AJ64",null,null,"Classifica_PG_2",null,"K",null,"NUMBER"]
[null,null,"AA utile personaggio",null,"Totali_Squadra","AS64",null,null,"Classifica_PG_2",null,"M",null,"NUMBER"]
[null,null,"Totale Punteggio personaggio",null,"Totali_Squadra","BH64",null,null,"Classifica_PG_2",null,"Q",null,"NUMBER"]
[null,null,"VSP utile per VPG",null,"Totali_Squadra","AZ43",null,null,"Classifica_PG_2",null,"R",null,"NUMBER"]
[null,null,"QB utile per VPG",null,"Totali_Squadra","BI43",null,null,"Classifica_PG_2",null,"T",null,"NUMBER"]
[null,null,"totale VPG (per foglio giocatore)",null,"Totali_Squadra","BR43",null,null,"Classifica_PG_2",null,"V",null,"NUMBER"]
[null,null,"totale VPG (per foglio squadra)",null,"Totali_Squadra","BR43",null,null,"Classifica_Squadre",null,"W",null,"NUMBER"]
[null,"Personaggio 3","Cognome giocatore",null,"Totali_Squadra","AB16",null,null,"Classifica_PG_3",null,"X",null,"STRING"]
[null,null,"Nome giocatore",null,"Totali_Squadra","AO16",null,null,"Classifica_PG_3",null,"Y",null,"STRING"]
[null,null,"ID giocatore",null,"Totali_Squadra","R16",null,null,"Classifica_PG_3",null,"C",null,"STRING"]
[null,null,"Squadra di appartenenza",null,"Generale_e_VSP_MAS","C5",null,null,"Classifica_PG_3",null,"D",null,"STRING"]
[null,null,"Franchigia",null,"Totali_Squadra","BB16",null,null,"Classifica_PG_3",null,"E",null,"STRING"]
[null,null,"VSP assoluta",null,"Totali_Squadra","U34",null,null,"Classifica_PG_3",null,"F",null,"NUMBER"]
[null,null,"QB assoluta",null,"Totali_Squadra","Z44",null,null,"Classifica_PG_3",null,"G",null,"NUMBER"]
[null,null,"AA assoluta",null,"Totali_Squadra","BD53",null,null,"Classifica_PG_3",null,"H",null,"NUMBER"]
[null,null,"VSP utile personaggio",null,"Totali_Squadra","AA65",null,null,"Classifica_PG_3",null,"I",null,"NUMBER"]
[null,null,"QB utile personaggio",null,"Totali_Squadra","AJ65",null,null,"Classifica_PG_3",null,"K",null,"NUMBER"]
[null,null,"AA utile personaggio",null,"Totali_Squadra","AS65",null,null,"Classifica_PG_3",null,"M",null,"NUMBER"]
[null,null,"Totale Punteggio personaggio",null,"Totali_Squadra","BH65",null,null,"Classifica_PG_3",null,"Q",null,"NUMBER"]
[null,null,"VSP utile per VPG",null,"Totali_Squadra","AZ44",null,null,"Classifica_PG_3",null,"R",null,"NUMBER"]
[null,null,"QB utile per VPG",null,"Totali_Squadra","BI44",null,null,"Classifica_PG_3",null,"T",null,"NUMBER"]
[null,null,"totale VPG (per foglio giocatore)",null,"Totali_Squadra","BR44",null,null,"Classifica_PG_3",null,"V",null,"NUMBER"]
[null,null,"totale VPG (per foglio squadra)",null,"Totali_Squadra","BR44",null,null,"Classifica_Squadre",null,"X",null,"NUMBER"]
[null,"Personaggio 4","Cognome giocatore",null,"Totali_Squadra","AB17",null,null,"Classifica_PG_4",null,"X",null,"STRING"]
[null,null,"Nome giocatore",null,"Totali_Squadra","AO17",null,null,"Classifica_PG_4",null,"Y",null,"STRING"]
[null,null,"ID giocatore",null,"Totali_Squadra","R17",null,null,"Classifica_PG_4",null,"C",null,"STRING"]
[null,null,"Squadra di appartenenza",null,"Generale_e_VSP_MAS","C5",null,null,"Classifica_PG_4",null,"D",null,"STRING"]
[null,null,"Franchigia",null,"Totali_Squadra","BB17",null,null,"Classifica_PG_4",null,"E",null,"STRING"]
[null,null,"VSP assoluta",null,"Totali_Squadra","U35",null,null,"Classifica_PG_4",null,"F",null,"NUMBER"]
[null,null,"QB assoluta",null,"Totali_Squadra","Z45",null,null,"Classifica_PG_4",null,"G",null,"NUMBER"]
[null,null,"AA assoluta",null,"Totali_Squadra","BD53",null,null,"Classifica_PG_4",null,"H",null,"NUMBER"]
[null,null,"VSP utile personaggio",null,"Totali_Squadra","AA66",null,null,"Classifica_PG_4",null,"I",null,"NUMBER"]
[null,null,"QB utile personaggio",null,"Totali_Squadra","AJ66",null,null,"Classifica_PG_4",null,"K",null,"NUMBER"]
[null,null,"AA utile personaggio",null,"Totali_Squadra","AS66",null,null,"Classifica_PG_4",null,"M",null,"NUMBER"]
[null,null,"Totale Punteggio personaggio",null,"Totali_Squadra","BH66",null,null,"Classifica_PG_4",null,"Q",null,"NUMBER"]
[null,null,"VSP utile per VPG",null,"Totali_Squadra","AZ45",null,null,"Classifica_PG_4",null,"R",null,"NUMBER"]
[null,null,"QB utile per VPG",null,"Totali_Squadra","BI45",null,null,"Classifica_PG_4",null,"T",null,"NUMBER"]
[null,null,"totale VPG (per foglio giocatore)",null,"Totali_Squadra","BR45",null,null,"Classifica_PG_4",null,"V",null,"NUMBER"]
[null,null,"totale VPG (per foglio squadra)",null,"Totali_Squadra","BR45",null,null,"Classifica_Squadre",null,"Y",null,"NUMBER"]
[null,"Personaggio 5","Cognome giocatore",null,"Totali_Squadra","AB18",null,null,"Classifica_PG_5",null,"X",null,"STRING"]
[null,null,"Nome giocatore",null,"Totali_Squadra","AO18",null,null,"Classifica_PG_5",null,"Y",null,"STRING"]
[null,null,"ID giocatore",null,"Totali_Squadra","R18",null,null,"Classifica_PG_5",null,"C",null,"STRING"]
[null,null,"Squadra di appartenenza",null,"Generale_e_VSP_MAS","C5",null,null,"Classifica_PG_5",null,"D",null,"STRING"]
[null,null,"Franchigia",null,"Totali_Squadra","BB18",null,null,"Classifica_PG_5",null,"E",null,"STRING"]
[null,null,"VSP assoluta",null,"Totali_Squadra","U36",null,null,"Classifica_PG_5",null,"F",null,"NUMBER"]
[null,null,"QB assoluta",null,"Totali_Squadra","Z46",null,null,"Classifica_PG_5",null,"G",null,"NUMBER"]
[null,null,"AA assoluta",null,"Totali_Squadra","BD53",null,null,"Classifica_PG_5",null,"H",null,"NUMBER"]
[null,null,"VSP utile personaggio",null,"Totali_Squadra","AA67",null,null,"Classifica_PG_5",null,"I",null,"NUMBER"]
[null,null,"QB utile personaggio",null,"Totali_Squadra","AJ67",null,null,"Classifica_PG_5",null,"K",null,"NUMBER"]
[null,null,"AA utile personaggio",null,"Totali_Squadra","AS67",null,null,"Classifica_PG_5",null,"M",null,"NUMBER"]
[null,null,"Totale Punteggio personaggio",null,"Totali_Squadra","BH67",null,null,"Classifica_PG_5",null,"Q",null,"NUMBER"]
[null,null,"VSP utile per VPG",null,"Totali_Squadra","AZ46",null,null,"Classifica_PG_5",null,"R",null,"NUMBER"]
[null,null,"QB utile per VPG",null,"Totali_Squadra","BI46",null,null,"Classifica_PG_5",null,"T",null,"NUMBER"]
[null,null,"totale VPG (per foglio giocatore)",null,"Totali_Squadra","BR46",null,null,"Classifica_PG_5",null,"V",null,"NUMBER"]
[null,null,"totale VPG (per foglio squadra)",null,"Totali_Squadra","BR46",null,null,"Classifica_Squadre",null,"Z",null,"NUMBER"]
[null,"Personaggio 6","Cognome giocatore",null,"Totali_Squadra","AB19",null,null,"Classifica_PG_6",null,"X",null,"STRING"]
[null,null,"Nome giocatore",null,"Totali_Squadra","AO19",null,null,"Classifica_PG_6",null,"Y",null,"STRING"]
[null,null,"ID giocatore",null,"Totali_Squadra","R19",null,null,"Classifica_PG_6",null,"C",null,"STRING"]
[null,null,"Squadra di appartenenza",null,"Generale_e_VSP_MAS","C5",null,null,"Classifica_PG_6",null,"D",null,"STRING"]
[null,null,"Franchigia",null,"Totali_Squadra","BB19",null,null,"Classifica_PG_6",null,"E",null,"STRING"]
[null,null,"VSP assoluta",null,"Totali_Squadra","U37",null,null,"Classifica_PG_6",null,"F",null,"NUMBER"]
[null,null,"QB assoluta",null,"Totali_Squadra","Z47",null,null,"Classifica_PG_6",null,"G",null,"NUMBER"]
[null,null,"AA assoluta",null,"Totali_Squadra","BD53",null,null,"Classifica_PG_6",null,"H",null,"NUMBER"]
[null,null,"VSP utile personaggio",null,"Totali_Squadra","AA68",null,null,"Classifica_PG_6",null,"I",null,"NUMBER"]
[null,null,"QB utile personaggio",null,"Totali_Squadra","AJ68",null,null,"Classifica_PG_6",null,"K",null,"NUMBER"]
[null,null,"AA utile personaggio",null,"Totali_Squadra","AS68",null,null,"Classifica_PG_6",null,"M",null,"NUMBER"]
[null,null,"Totale Punteggio personaggio",null,"Totali_Squadra","BH68",null,null,"Classifica_PG_6",null,"Q",null,"NUMBER"]
[null,null,"VSP utile per VPG",null,"Totali_Squadra","AZ47",null,null,"Classifica_PG_6",null,"R",null,"NUMBER"]
[null,null,"QB utile per VPG",null,"Totali_Squadra","BI47",null,null,"Classifica_PG_6",null,"T",null,"NUMBER"]
[null,null,"totale VPG (per foglio giocatore)",null,"Totali_Squadra","BR47",null,null,"Classifica_PG_6",null,"V",null,"NUMBER"]
[null,null,"totale VPG (per foglio squadra)",null,"Totali_Squadra","BR47",null,null,"Classifica_Squadre",null,"AA",null,"NUMBER"]
[]
[]
[null,null,"Parametri della funzione di TRIM"]
[null,null,null,null,"Nome Foglio","Riga Iniziale",null,null,"Ultima riga",null,"Colonna di controllo",null,"Valore nullo",null,"Colonna iniziale",null,"Colonna finale"]
[]
[null,null,"Classifica Giocatore 1",null,"Classifica_PG_1",9,null,null,108,null,"C",null,null,null,"B",null,"Z"]
[null,null,"Classifica Giocatore 2",null,"Classifica_PG_2",9,null,null,108,null,"C",null,null,null,"B",null,"Y"]
[null,null,"Classifica Giocatore 3",null,"Classifica_PG_3",9,null,null,108,null,"C",null,null,null,"B",null,"Y"]
[null,null,"Classifica Giocatore 4",null,"Classifica_PG_4",9,null,null,108,null,"C",null,null,null,"B",null,"Y"]
[null,null,"Classifica Giocatore 5",null,"Classifica_PG_5",9,null,null,108,null,"C",null,null,null,"B",null,"Y"]
[null,null,"Classifica Giocatore 6",null,"Classifica_PG_6",9,null,null,108,null,"C",null,null,null,"B",null,"Y"]
[]
[]
[null,null,"Parametri della funzione di SORT"]
[null,null,null,null,"Nome Foglio","Range",null,null,"Ord. Principale",null,"Tipo",null,"Ord. Secondario",null,"Colonna finale"]
[]
[null,null,"Classifica Squadre",null,"Classifica_Squadre","B9:AA108",null,null,"L",null,"DESCENDING",null,"B",null,"DESCENDING"]
[null,null,"Classifica Giocatore 1",null,"Classifica_PG_1","B9:Y108",null,null,"Q",null,"DESCENDING",null,"B",null,"DESCENDING"]
[null,null,"Classifica Giocatore 2",null,"Classifica_PG_2","B9:Y108",null,null,"Q",null,"DESCENDING",null,"B",null,"DESCENDING"]
[null,null,"Classifica Giocatore 3",null,"Classifica_PG_3","B9:Y108",null,null,"Q",null,"DESCENDING",null,"B",null,"DESCENDING"]
[null,null,"Classifica Giocatore 4",null,"Classifica_PG_4","B9:Y108",null,null,"Q",null,"DESCENDING",null,"B",null,"DESCENDING"]
[null,null,"Classifica Giocatore 5",null,"Classifica_PG_5","B9:Y108",null,null,"Q",null,"DESCENDING",null,"B",null,"DESCENDING"]
[null,null,"Classifica Giocatore 6",null,"Classifica_PG_6","B9:Y108",null,null,"Q",null,"DESCENDING",null,"B",null,"DESCENDING"]
[]
[null,null,"Parametri della funzione di FILLER"]
[null,null,null,null,"Nome Foglio","Riga Iniziale",null,null,"Destinazione",null,"Simbolo",null,"Colonna di controllo",null,"Stringa Vuota"]
[]
[null,null,"Classifica Squadre",null,"Classifica_Squadre",9,null,null,"G",null,"+",null,"B"]
[null,null,null,null,"Classifica_Squadre",9,null,null,"I",null,"+",null,"B"]
[null,null,null,null,"Classifica_Squadre",9,null,null,"J",null,100,null,"B"]
[null,null,null,null,"Classifica_Squadre",9,null,null,"K",null,"=",null,"B"]
[null,null,"Classifica Giocatore 1",null,"Classifica_PG_1",9,null,null,"J",null,"+",null,"C"]
[null,null,null,null,"Classifica_PG_1",9,null,null,"L",null,"+",null,"C"]
[null,null,null,null,"Classifica_PG_1",9,null,null,"N",null,"+",null,"C"]
[null,null,null,null,"Classifica_PG_1",9,null,null,"P",null,"=",null,"C"]
[null,null,null,null,"Classifica_PG_1",9,null,null,"S",null,"+",null,"C"]
[null,null,null,null,"Classifica_PG_1",9,null,null,"O",null,100,null,"C"]
[null,null,null,null,"Classifica_PG_1",9,null,null,"U",null,"=",null,"C"]
[null,null,"Classifica Giocatore 2",null,"Classifica_PG_2",9,null,null,"J",null,"+",null,"C"]
[null,null,null,null,"Classifica_PG_2",9,null,null,"L",null,"+",null,"C"]
[null,null,null,null,"Classifica_PG_2",9,null,null,"N",null,"+",null,"C"]
[null,null,null,null,"Classifica_PG_2",9,null,null,"P",null,"=",null,"C"]
[null,null,null,null,"Classifica_PG_2",9,null,null,"O",null,100,null,"C"]
[null,null,null,null,"Classifica_PG_2",9,null,null,"S",null,"+",null,"C"]
[null,null,null,null,"Classifica_PG_2",9,null,null,"U",null,"=",null,"C"]
[null,null,"Classifica Giocatore 3",null,"Classifica_PG_3",9,null,null,"J",null,"+",null,"C"]
[null,null,null,null,"Classifica_PG_3",9,null,null,"L",null,"+",null,"C"]
[null,null,null,null,"Classifica_PG_3",9,null,null,"N",null,"+",null,"C"]
[null,null,null,null,"Classifica_PG_3",9,null,null,"P",null,"=",null,"C"]
[null,null,null,null,"Classifica_PG_3",9,null,null,"O",null,100,null,"C"]
[null,null,null,null,"Classifica_PG_3",9,null,null,"S",null,"+",null,"C"]
[null,null,null,null,"Classifica_PG_3",9,null,null,"U",null,"=",null,"C"]
[null,null,"Classifica Giocatore 4",null,"Classifica_PG_4",9,null,null,"J",null,"+",null,"C"]
[null,null,null,null,"Classifica_PG_4",9,null,null,"L",null,"+",null,"C"]
[null,null,null,null,"Classifica_PG_4",9,null,null,"N",null,"+",null,"C"]
[null,null,null,null,"Classifica_PG_4",9,null,null,"P",null,"=",null,"C"]
[null,null,null,null,"Classifica_PG_4",9,null,null,"O",null,100,null,"C"]
[null,null,null,null,"Classifica_PG_4",9,null,null,"S",null,"+",null,"C"]
[null,null,null,null,"Classifica_PG_4",9,null,null,"U",null,"=",null,"C"]
[null,null,"Classifica Giocatore 5",null,"Classifica_PG_5",9,null,null,"J",null,"+",null,"C"]
[null,null,null,null,"Classifica_PG_5",9,null,null,"L",null,"+",null,"C"]
[null,null,null,null,"Classifica_PG_5",9,null,null,"N",null,"+",null,"C"]
[null,null,null,null,"Classifica_PG_5",9,null,null,"P",null,"=",null,"C"]
[null,null,null,null,"Classifica_PG_5",9,null,null,"O",null,100,null,"C"]
[null,null,null,null,"Classifica_PG_5",9,null,null,"S",null,"+",null,"C"]
[null,null,null,null,"Classifica_PG_5",9,null,null,"U",null,"=",null,"C"]
[null,null,"Classifica Giocatore 6",null,"Classifica_PG_6",9,null,null,"J",null,"+",null,"C"]
[null,null,null,null,"Classifica_PG_6",9,null,null,"L",null,"+",null,"C"]
[null,null,null,null,"Classifica_PG_6",9,null,null,"N",null,"+",null,"C"]
[null,null,null,null,"Classifica_PG_6",9,null,null,"P",null,"=",null,"C"]
[null,null,null,null,"Classifica_PG_6",9,null,null,"O",null,100,null,"C"]
[null,null,null,null,"Classifica_PG_6",9,null,null,"S",null,"+",null,"C"]
[null,null,null,null,"Classifica_PG_6",9,null,null,"U",null,"=",null,"C"]
[]
[null,null,"Parametri della funzione di COUNTER"]
[null,null,null,null,"Nome Foglio","Riga iniziale",null,null,"Destinazione",null,"Valore Iniziale",null,"Colonna di controllo",null,"Stringa Vuota"]
[]
[null,null,"Classifica Squadre",null,"Classifica_Squadre",9,null,null,"A",null,1,null,"B"]
[null,null,"Classifica Giocatore 1",null,"Classifica_PG_1",9,null,null,"A",null,1,null,"C"]
[null,null,"Classifica Giocatore 2",null,"Classifica_PG_2",9,null,null,"A",null,1,null,"C"]
[null,null,"Classifica Giocatore 3",null,"Classifica_PG_3",9,null,null,"A",null,1,null,"C"]
[null,null,"Classifica Giocatore 4",null,"Classifica_PG_4",9,null,null,"A",null,1,null,"C"]
[null,null,"Classifica Giocatore 5",null,"Classifica_PG_5",9,null,null,"A",null,1,null,"C"]
[null,null,"Classifica Giocatore 6",null,"Classifica_PG_6",9,null,null,"A",null,1,null,"C"]
[]
[null,null,"Parametri della funzione di NAMEJOINING"]
[null,null,null,null,"Nome Foglio","Riga iniziale",null,null,"Colonna Nome",null,"Colonna Cognome",null,"Colonna unione",null,"Colonna di controllo",null,"Stringa Vuota"]
[]
[null,null,"Classifica Giocatore 1",null,"Classifica_PG_1",9,null,null,"Y",null,"X",null,"B",null,"C"]
[null,null,"Classifica Giocatore 2",null,"Classifica_PG_2",9,null,null,"Y",null,"X",null,"B",null,"C"]
[null,null,"Classifica Giocatore 3",null,"Classifica_PG_3",9,null,null,"Y",null,"X",null,"B",null,"C"]
[null,null,"Classifica Giocatore 4",null,"Classifica_PG_4",9,null,null,"Y",null,"X",null,"B",null,"C"]
[null,null,"Classifica Giocatore 5",null,"Classifica_PG_5",9,null,null,"Y",null,"X",null,"B",null,"C"]
[null,null,"Classifica Giocatore 6",null,"Classifica_PG_6",9,null,null,"Y",null,"X",null,"B",null,"C"]
[]
[]
[null,null,"Parametri della funzione di VGPEXTRACTING"]
[null,null,null,null,"Nome Foglio","Riga Iniziale",null,null,"Colonna di Controllo",null,"Numero PG",null,"Colonna VGPs",null,"Inizio singole VPG",null,"Stringa Vuota"]
[]
[null,null,"Classifica Squadre",null,"Classifica_Squadre",9,null,null,"C",null,{"$f":"Riepilogo_Organizzazione!D18","v":0},null,"E",null,22]
[]
[]
[null,null,"Parametri della funzione di HIDDING"]
[null,null,null,null,"Nome Foglio","Hide",null,null,"Uncover"]
[]
[null,null,"Classifica Squadre",null,"Classifica_Squadre",{"$f":"(9+MAX(Classifica_Squadre!A9:A108)) &\":108\"","v":"9:108"},null,null,"9:108"]
[null,null,"Classifica Giocatore 1",null,"Classifica_PG_1",{"$f":"(9+MAX(Classifica_PG_1!A9:A108)) &\":108\"","v":"9:108"},null,null,"9:108"]
[null,null,"Classifica Giocatore 2",null,"Classifica_PG_2",{"$f":"(9+MAX(Classifica_PG_2!A9:A108)) &\":108\"","v":"9:108"},null,null,"9:108"]
[null,null,"Classifica Giocatore 3",null,"Classifica_PG_3",{"$f":"(9+MAX(Classifica_PG_3!A9:A108)) &\":108\"","v":"9:108"},null,null,"9:108"]
[null,null,"Classifica Giocatore 4",null,"Classifica_PG_4",{"$f":"(9+MAX(Classifica_PG_4!A9:A108)) &\":108\"","v":"9:108"},null,null,"9:108"]
[null,null,"Classifica Giocatore 5",null,"Classifica_PG_5",{"$f":"(9+MAX(Classifica_PG_5!A9:A108)) &\":108\"","v":"9:108"},null,null,"9:108"]
[null,null,"Classifica Giocatore 6",null,"Classifica_PG_6",{"$f":"(9+MAX(Classifica_PG_6!A9:A108)) &\":108\"","v":"9:108"},null,null,"9:108"]

{"sheet":"Modifica_Valutativi_ORG","index":12,"n_rows":49,"n_cols":9,"rows_kept":49,"cut":false,"hidden":false,"merged":[[30,7,30,8],[27,3,27,4],[28,3,28,4],[48,3,48,4],[31,7,31,8],[32,7,32,8],[33,7,33,8],[34,7,34,8],[35,7,35,8],[36,7,36,8],[32,3,32,4],[35,3,35,4],[36,3,36,4],[33,3,33,4],[34,3,34,4],[28,7,28,8],[24,3,24,4],[25,3,25,4],[26,3,26,4],[31,3,31,4],[29,3,29,4],[30,3,30,4],[3,3,3,6],[8,3,8,6],[19,3,19,4],[20,3,20,4],[21,3,21,4],[5,3,5,6],[18,3,18,4],[17,7,17,8],[18,7,18,8],[19,7,19,8],[29,7,29,8],[15,7,15,8],[16,7,16,8],[17,3,17,4],[16,3,16,4],[15,3,15,4],[25,7,25,8],[26,7,26,8],[23,7,23,8],[24,7,24,8],[27,7,27,8],[22,3,22,4],[20,7,20,8],[21,7,21,8],[22,7,22,8],[23,3,23,4]]}
[]
[null,"Modifiche omogenee dei valutativi",null,null,"Spiegazione"]
[]
[null,"Nome del template",null,{"$f":"Parametri_Operazioni_ORG!D5","v":0}]
[]
[null,"Directory di lettura dei valutativi",null,{"$f":"Parametri_Operazioni_ORG!D7","v":0}]
[]
[null,"Valutativi protetti da password (tick)",null,{"$f":"IF(Parametri_Operazioni_ORG!D13<>\"\",Parametri_Operazioni_ORG!D13,\"\")","v":""}]
[null,"Password dei valutativi",null,{"$f":"IF(Parametri_Operazioni_ORG!D14<>\"\",Parametri_Operazioni_ORG!D14,\"\")","v":""}]
[]
[null,"Necessaria modifica del template (tick)?",null,null,null,null,null,null,"Spiegazione"]
[]
[null,null,null,"Attenzione: al template non viene mai inserita la password, anche se si richiede la modifica del template e si segna l'opzione di lavutativi protetti da password"]
[]
[]
[null,null,null,"Spiegazione",null,"Spiegazione","Spiegazione","Spiegazione"]
[null,null,null,"Foglio di lavoro nei valutativi",null,"Cella da modificare","Valore","Tipo"]
[null,"Campo da modificare 1"]
[null,"Campo da modificare 2"]
[null,"Campo da modificare 3"]
[null,"Campo da modificare 4"]
[null,"Campo da modificare 5"]
[null,"Campo da modificare 6"]
[null,"Campo da modificare 7"]
[null,"Campo da modificare 8"]
[null,"Campo da modificare 9"]
[null,"Campo da modificare 10"]
[null,"Campo da modificare 11"]
[null,"Campo da modificare 12"]
[null,"Campo da modificare 13"]
[null,"Campo da modificare 14"]
[null,"Campo da modificare 15"]
[null,"Campo da modificare 16"]
[null,"Campo da modificare 17"]
[null,"Campo da modificare 18"]
[null,"Campo da modificare 19"]
[null,"Campo da modificare 20"]
[]
[]
[]
[]
[]
[]
[]
[]
[null,"Altri parametri di supporto",null,null,"Attenzione: si sconsiglia la modifica dei seguenti parametri senza averli completamente compresi! Forse è meglio rinascondere queste celle e fare finta di non averle viste…"]
[]
[]
[null,"Riga di partenza lettura funzione MODIFY",null,{"$f":"ROW(D18)","v":18}]

{"sheet":"Predisposizione_Valutativi_ORG","index":13,"n_rows":125,"n_cols":86,"rows_kept":125,"cut":false,"hidden":false,"merged":[[16,33,17,33],[16,34,17,34],[16,35,17,35],[16,28,17,28],[16,29,17,29],[16,30,17,30],[16,31,17,31],[16,32,17,32],[16,23,17,23],[16,24,17,24],[16,25,17,25],[16,26,17,26],[16,27,17,27],[16,18,17,18],[16,19,17,19],[16,20,17,20],[16,21,17,21],[16,22,17,22],[17,15,18,15],[16,17,17,17],[11,3,11,6],[13,3,13,6],[34,3,34,4],[25,3,25,4],[27,3,27,4],[22,3,22,4],[23,3,23,4],[124,3,124,4],[31,3,31,4],[32,3,32,4],[33,3,33,4],[28,3,28,4],[29,3,29,4],[30,3,30,4],[37,3,37,4],[38,3,38,4],[36,3,36,4],[35,3,35,4],[3,3,3,6],[17,3,17,4],[18,3,18,4],[26,3,26,4],[24,3,24,4],[19,3,19,4],[20,3,20,4],[21,3,21,4],[5,3,5,6],[9,3,9,6]]}
[]
[null,"Predisposizone nuovi valutativi / Modifiche disomogenee dei valutativi",null,null,null,null,null,null,"Spiegazione"]
[]
[null,"Directory e nome del template",null,{"$f":"Parametri_Operazioni_ORG!D5","v":0}]
[]
[null,"Directory di output dei nuovi valutativi",null,null,null,null,null,null,"Spiegazione"]
[]
[null,"Valutativi protetti da password (tick)",null,{"$f":"IF(Parametri_Operazioni_ORG!D13<>\"\",Parametri_Operazioni_ORG!D13,\"\")","v":""}]
[]
[null,"Password dei valutativi",null,{"$f":"IF(Parametri_Operazioni_ORG!D14<>\"\",Parametri_Operazioni_ORG!D14,\"\")","v":""}]
[]
[null,"Primo file a venire elaborato",null,1,null,null,null,null,"Spiegazione"]
[]
[null,"Ultimo file a venire elaborato",null,10,null,null,null,null,"Spiegazione"]
[null,null,null,null,null,null,null,null,null,null,null,null,null,null,null,null,null,null,"Tabella dei file da modificare",null,null,null,null,null,null,null,null,null,null,null,null,null,null,null,null,null,null,null,null,null,"Descrizioni trasposte"]
[null,null,null,null,null,null,"Tabella delle voci da modificare",null,null,"Spiegazione",null,null,null,null,null,null,null,null,null,null,null,null,null,null,null,null,null,null,null,null,null,null,null,null,null,null,null,null,null,null,{"$f":"TRANSPOSE(D20:E39)","v":0},0,0,0,0,0,0,0,0,0,0,0,0,0,0,0,0,0,0,0]
[null,null,null,null,null,null,null,null,null,null,null,null,null,null,null,"Spiegazione","Spiegazione","Colonna 2","Colonna 3","Colonna 4","Colonna 5","Colonna 6","Colonna 7","Colonna 8","Colonna 9","Colonna 10","Colonna 11","Colonna 12","Colonna 13","Colonna 14","Colonna 15","Colonna 16","Colonna 17","Colonna 18","Colonna 19","Colonna 20",null,null,null,null,"Tipo Trasposto"]
[null,null,null,"Spiegazione",null,"Spiegazione","Spiegazione","Spiegazione","Spiegazione","Spiegazione","Spiegazione","Spiegazione",null,null,null,"Nome del file","Colonna 1",null,null,null,null,null,null,null,null,null,null,null,null,null,null,null,null,null,null,null,null,null,null,null,{"$f":"TRANSPOSE(J20:J39)","v":0},0,0,0,0,0,0,0,0,0,0,0,0,0,0,0,0,0,0,0,null,null,"Numero File",null,"Indice Riga"]
[null,null,null,"Descrizione della voce (inserirla sempre)",null,"Valore usato? (tick)","Foglio di destinazione","Cella di destinazione","Tipo","Valore disomogeneo? (tick)","Valore omogeneo","Colonna di riferimento per valore disomogeneo",null,null,null,null,{"$f":"IF(AO22=1,\"Colonna non utilizzata\",AO16)","v":"Colonna non utilizzata"},{"$f":"IF(AP22=1,\"Colonna non utilizzata\",AP16)","v":"Colonna non utilizzata"},{"$f":"IF(AQ22=1,\"Colonna non utilizzata\",AQ16)","v":"Colonna non utilizzata"},"Colonna non utilizzata","Colonna non utilizzata","Colonna non utilizzata","Colonna non utilizzata","Colonna non utilizzata","Colonna non utilizzata","Colonna non utilizzata","Colonna non utilizzata","Colonna non utilizzata","Colonna non utilizzata","Colonna non utilizzata","Colonna non utilizzata","Colonna non utilizzata","Colonna non utilizzata","Colonna non utilizzata","Colonna non utilizzata","Colonna non utilizzata"]
[null,"Campo da modificare 1",null,null,null,null,null,null,null,null,null,"Q",null,{"$f":"IF(BM20=1,\"Non usato\",\"File \"& BK20)","v":"File 1"},null,null,null,null,null,null,null,null,null,null,null,null,null,null,null,null,null,null,null,null,null,null,null,{"$f":"IF(J20<>\"\",0,1)","v":1},{"$f":"IF(AL20=1,0,1)","v":0},null,null,null,null,null,null,null,null,null,null,null,null,null,null,null,null,null,null,null,null,null,null,null,1,null,{"$f":"IF(AND(BK20<=$D$14,BK20>=$D$12),0,1)","v":0},null,{"$f":"IF(OR(AO$22=1,$BM20=1),1,0)","v":1},{"$f":"IF(OR(AP$22=1,$BM20=1),1,0)","v":1},1,1,1,1,1,1,1,1,1,1,1,1,1,1,1,1,1,1]
[null,"Campo da modificare 2",null,null,null,null,null,null,null,null,null,"R",null,{"$f":"IF(BM21=1,\"Non usato\",\"File \"& BK21)","v":"File 2"},null,null,null,null,null,null,null,null,null,null,null,null,null,null,null,null,null,null,null,null,null,null,null,{"$f":"IF(J21<>\"\",0,1)","v":1},{"$f":"IF(AL21=1,0,1)","v":0},null,"Indice di attivazione condizionalità colonna",null,null,null,null,null,null,null,null,null,null,null,null,null,null,null,null,null,null,null,null,null,{"$f":"BK20+1","v":2},null,{"$f":"IF(AND(BK21<=$D$14,BK21>=$D$12),0,1)","v":0},null,{"$f":"IF(OR(AO$22=1,$BM21=1),1,0)","v":1},{"$f":"IF(OR(AP$22=1,$BM21=1),1,0)","v":1},{"$f":"IF(OR(AQ$22=1,$BM21=1),1,0)","v":1},{"$f":"IF(OR(AR$22=1,$BM21=1),1,0)","v":1},{"$f":"IF(OR(AS$22=1,$BM21=1),1,0)","v":1},{"$f":"IF(OR(AT$22=1,$BM21=1),1,0)","v":1},{"$f":"IF(OR(AU$22=1,$BM21=1),1,0)","v":1},{"$f":"IF(OR(AV$22=1,$BM21=1),1,0)","v":1},{"$f":"IF(OR(AW$22=1,$BM21=1),1,0)","v":1},{"$f":"IF(OR(AX$22=1,$BM21=1),1,0)","v":1},{"$f":"IF(OR(AY$22=1,$BM21=1),1,0)","v":1},{"$f":"IF(OR(AZ$22=1,$BM21=1),1,0)","v":1},{"$f":"IF(OR(BA$22=1,$BM21=1),1,0)","v":1},{"$f":"IF(OR(BB$22=1,$BM21=1),1,0)","v":1},{"$f":"IF(OR(BC$22=1,$BM21=1),1,0)","v":1},{"$f":"IF(OR(BD$22=1,$BM21=1),1,0)","v":1},{"$f":"IF(OR(BE$22=1,$BM21=1),1,0)","v":1},{"$f":"IF(OR(BF$22=1,$BM21=1),1,0)","v":1},{"$f":"IF(OR(BG$22=1,$BM21=1),1,0)","v":1},{"$f":"IF(OR(BH$22=1,$BM21=1),1,0)","v":1}]
[null,"Campo da modificare 3",null,null,null,null,null,null,null,null,null,"S",null,"File 3",null,null,null,null,null,null,null,null,null,null,null,null,null,null,null,null,null,null,null,null,null,null,null,1,0,null,{"$f":"IF(AND(AO16<>0,AO18<>0),0,1)","v":1},{"$f":"IF(AND(AP16<>0,AP18<>0),0,1)","v":1},1,1,1,1,1,1,1,1,1,1,1,1,1,1,1,1,1,1,null,null,{"$f":"BK21+1","v":3},null,0,null,1,1,1,1,1,1,1,1,1,1,1,1,1,1,1,1,1,1,1,1]
[null,"Campo da modificare 4",null,null,null,null,null,null,null,null,null,"T",null,"File 4",null,null,null,null,null,null,null,null,null,null,null,null,null,null,null,null,null,null,null,null,null,null,null,1,0,null,null,null,null,null,null,null,null,null,null,null,null,null,null,null,null,null,null,null,null,null,null,null,4,null,0,null,1,1,1,1,1,1,1,1,1,1,1,1,1,1,1,1,1,1,1,1]
[null,"Campo da modificare 5",null,null,null,null,null,null,null,null,null,"U",null,"File 5",null,null,null,null,null,null,null,null,null,null,null,null,null,null,null,null,null,null,null,null,null,null,null,1,0,null,null,null,null,null,null,null,null,null,null,null,null,null,null,null,null,null,null,null,null,null,null,null,5,null,0,null,1,1,1,1,1,1,1,1,1,1,1,1,1,1,1,1,1,1,1,1]
[null,"Campo da modificare 6",null,null,null,null,null,null,null,null,null,"V",null,"File 6",null,null,null,null,null,null,null,null,null,null,null,null,null,null,null,null,null,null,null,null,null,null,null,1,0,null,null,null,null,null,null,null,null,null,null,null,null,null,null,null,null,null,null,null,null,null,null,null,6,null,0,null,1,1,1,1,1,1,1,1,1,1,1,1,1,1,1,1,1,1,1,1]
[null,"Campo da modificare 7",null,null,null,null,null,null,null,null,null,"W",null,"File 7",null,null,null,null,null,null,null,null,null,null,null,null,null,null,null,null,null,null,null,null,null,null,null,1,0,null,null,null,null,null,null,null,null,null,null,null,null,null,null,null,null,null,null,null,null,null,null,null,7,null,0,null,1,1,1,1,1,1,1,1,1,1,1,1,1,1,1,1,1,1,1,1]
[null,"Campo da modificare 8",null,null,null,null,null,null,null,null,null,"X",null,"File 8",null,null,null,null,null,null,null,null,null,null,null,null,null,null,null,null,null,null,null,null,null,null,null,1,0,null,null,null,null,null,null,null,null,null,null,null,null,null,null,null,null,null,null,null,null,null,null,null,8,null,0,null,1,1,1,1,1,1,1,1,1,1,1,1,1,1,1,1,1,1,1,1]
[null,"Campo da modificare 9",null,null,null,null,null,null,null,null,null,"Y",null,"File 9",null,null,null,null,null,null,null,null,null,null,null,null,null,null,null,null,null,null,null,null,null,null,null,1,0,null,null,null,null,null,null,null,null,null,null,null,null,null,null,null,null,null,null,null,null,null,null,null,9,null,0,null,1,1,1,1,1,1,1,1,1,1,1,1,1,1,1,1,1,1,1,1]
[null,"Campo da modificare 10",null,null,null,null,null,null,null,null,null,"Z",null,"File 10",null,null,null,null,null,null,null,null,null,null,null,null,null,null,null,null,null,null,null,null,null,null,null,1,0,null,null,null,null,null,null,null,null,null,null,null,null,null,null,null,null,null,null,null,null,null,null,null,10,null,0,null,1,1,1,1,1,1,1,1,1,1,1,1,1,1,1,1,1,1,1,1]
[null,"Campo da modificare 11",null,null,null,null,null,null,null,null,null,"AA",null,"Non usato",null,null,null,null,null,null,null,null,null,null,null,null,null,null,null,null,null,null,null,null,null,null,null,1,0,null,null,null,null,null,null,null,null,null,null,null,null,null,null,null,null,null,null,null,null,null,null,null,11,null,1,null,1,1,1,1,1,1,1,1,1,1,1,1,1,1,1,1,1,1,1,1]
[null,"Campo da modificare 12",null,null,null,null,null,null,null,null,null,"AB",null,"Non usato",null,null,null,null,null,null,null,null,null,null,null,null,null,null,null,null,null,null,null,null,null,null,null,1,0,null,null,null,null,null,null,null,null,null,null,null,null,null,null,null,null,null,null,null,null,null,null,null,12,null,1,null,1,1,1,1,1,1,1,1,1,1,1,1,1,1,1,1,1,1,1,1]
[null,"Campo da modificare 13",null,null,null,null,null,null,null,null,null,"AC",null,"Non usato",null,null,null,null,null,null,null,null,null,null,null,null,null,null,null,null,null,null,null,null,null,null,null,1,0,null,null,null,null,null,null,null,null,null,null,null,null,null,null,null,null,null,null,null,null,null,null,null,13,null,1,null,1,1,1,1,1,1,1,1,1,1,1,1,1,1,1,1,1,1,1,1]
[null,"Campo da modificare 14",null,null,null,null,null,null,null,null,null,"AD",null,"Non usato",null,null,null,null,null,null,null,null,null,null,null,null,null,null,null,null,null,null,null,null,null,null,null,1,0,null,null,null,null,null,null,null,null,null,null,null,null,null,null,null,null,null,null,null,null,null,null,null,14,null,1,null,1,1,1,1,1,1,1,1,1,1,1,1,1,1,1,1,1,1,1,1]
[null,"Campo da modificare 15",null,null,null,null,null,null,null,null,null,"AE",null,"Non usato",null,null,null,null,null,null,null,null,null,null,null,null,null,null,null,null,null,null,null,null,null,null,null,1,0,null,null,null,null,null,null,null,null,null,null,null,null,null,null,null,null,null,null,null,null,null,null,null,15,null,1,null,1,1,1,1,1,1,1,1,1,1,1,1,1,1,1,1,1,1,1,1]
[null,"Campo da modificare 16",null,null,null,null,null,null,null,null,null,"AF",null,"Non usato",null,null,null,null,null,null,null,null,null,null,null,null,null,null,null,null,null,null,null,null,null,null,null,1,0,null,null,null,null,null,null,null,null,null,null,null,null,null,null,null,null,null,null,null,null,null,null,null,16,null,1,null,1,1,1,1,1,1,1,1,1,1,1,1,1,1,1,1,1,1,1,1]
[null,"Campo da modificare 17",null,null,null,null,null,null,null,null,null,"AG",null,"Non usato",null,null,null,null,null,null,null,null,null,null,null,null,null,null,null,null,null,null,null,null,null,null,null,1,0,null,null,null,null,null,null,null,null,null,null,null,null,null,null,null,null,null,null,null,null,null,null,null,17,null,1,null,1,1,1,1,1,1,1,1,1,1,1,1,1,1,1,1,1,1,1,1]
[null,"Campo da modificare 18",null,null,null,null,null,null,null,null,null,"AH",null,"Non usato",null,null,null,null,null,null,null,null,null,null,null,null,null,null,null,null,null,null,null,null,null,null,null,1,0,null,null,null,null,null,null,null,null,null,null,null,null,null,null,null,null,null,null,null,null,null,null,null,18,null,1,null,1,1,1,1,1,1,1,1,1,1,1,1,1,1,1,1,1,1,1,1]
[null,"Campo da modificare 19",null,null,null,null,null,null,null,null,null,"AI",null,"Non usato",null,null,null,null,null,null,null,null,null,null,null,null,null,null,null,null,null,null,null,null,null,null,null,1,0,null,null,null,null,null,null,null,null,null,null,null,null,null,null,null,null,null,null,null,null,null,null,null,19,null,1,null,1,1,1,1,1,1,1,1,1,1,1,1,1,1,1,1,1,1,1,1]
[null,"Campo da modificare 20",null,null,null,null,null,null,null,null,null,"AJ",null,"Non usato",null,null,null,null,null,null,null,null,null,null,null,null,null,null,null,null,null,null,null,null,null,null,null,1,0,null,null,null,null,null,null,null,null,null,null,null,null,null,null,null,null,null,null,null,null,null,null,null,20,null,1,null,1,1,1,1,1,1,1,1,1,1,1,1,1,1,1,1,1,1,1,1]
[null,null,null,null,null,null,null,null,null,null,null,null,null,"Non usato",null,null,null,null,null,null,null,null,null,null,null,null,null,null,null,null,null,null,null,null,null,null,null,null,null,null,null,null,null,null,null,null,null,null,null,null,null,null,null,null,null,null,null,null,null,null,null,null,21,null,1,null,1,1,1,1,1,1,1,1,1,1,1,1,1,1,1,1,1,1,1,1]
[null,null,null,null,null,null,null,null,null,null,null,null,null,"Non usato",null,null,null,null,null,null,null,null,null,null,null,null,null,null,null,null,null,null,null,null,null,null,null,null,null,null,null,null,null,null,null,null,null,null,null,null,null,null,null,null,null,null,null,null,null,null,null,null,22,null,1,null,1,1,1,1,1,1,1,1,1,1,1,1,1,1,1,1,1,1,1,1]
[null,null,null,null,null,null,null,null,null,null,null,null,null,"Non usato",null,null,null,null,null,null,null,null,null,null,null,null,null,null,null,null,null,null,null,null,null,null,null,null,null,null,null,null,null,null,null,null,null,null,null,null,null,null,null,null,null,null,null,null,null,null,null,null,23,null,1,null,1,1,1,1,1,1,1,1,1,1,1,1,1,1,1,1,1,1,1,1]
[null,null,null,null,null,null,null,null,null,null,null,null,null,"Non usato",null,null,null,null,null,null,null,null,null,null,null,null,null,null,null,null,null,null,null,null,null,null,null,null,null,null,null,null,null,null,null,null,null,null,null,null,null,null,null,null,null,null,null,null,null,null,null,null,24,null,1,null,1,1,1,1,1,1,1,1,1,1,1,1,1,1,1,1,1,1,1,1]
[null,null,null,null,null,"Spiegazione",null,null,null,null,null,null,null,"Non usato",null,null,null,null,null,null,null,null,null,null,null,null,null,null,null,null,null,null,null,null,null,null,null,null,null,null,null,null,null,null,null,null,null,null,null,null,null,null,null,null,null,null,null,null,null,null,null,null,25,null,1,null,1,1,1,1,1,1,1,1,1,1,1,1,1,1,1,1,1,1,1,1]
[null,null,null,null,null,null,null,null,null,null,null,null,null,"Non usato",null,null,null,null,null,null,null,null,null,null,null,null,null,null,null,null,null,null,null,null,null,null,null,null,null,null,null,null,null,null,null,null,null,null,null,null,null,null,null,null,null,null,null,null,null,null,null,null,26,null,1,null,1,1,1,1,1,1,1,1,1,1,1,1,1,1,1,1,1,1,1,1]
[null,null,null,null,null,null,null,null,null,null,null,null,null,"Non usato",null,null,null,null,null,null,null,null,null,null,null,null,null,null,null,null,null,null,null,null,null,null,null,null,null,null,null,null,null,null,null,null,null,null,null,null,null,null,null,null,null,null,null,null,null,null,null,null,27,null,1,null,1,1,1,1,1,1,1,1,1,1,1,1,1,1,1,1,1,1,1,1]
[null,null,null,null,null,null,null,null,null,null,null,null,null,"Non usato",null,null,null,null,null,null,null,null,null,null,null,null,null,null,null,null,null,null,null,null,null,null,null,null,null,null,null,null,null,null,null,null,null,null,null,null,null,null,null,null,null,null,null,null,null,null,null,null,28,null,1,null,1,1,1,1,1,1,1,1,1,1,1,1,1,1,1,1,1,1,1,1]
[null,null,null,null,null,null,null,null,null,null,null,null,null,"Non usato",null,null,null,null,null,null,null,null,null,null,null,null,null,null,null,null,null,null,null,null,null,null,null,null,null,null,null,null,null,null,null,null,null,null,null,null,null,null,null,null,null,null,null,null,null,null,null,null,29,null,1,null,1,1,1,1,1,1,1,1,1,1,1,1,1,1,1,1,1,1,1,1]
[null,null,null,null,null,null,null,null,null,null,null,null,null,"Non usato",null,null,null,null,null,null,null,null,null,null,null,null,null,null,null,null,null,null,null,null,null,null,null,null,null,null,null,null,null,null,null,null,null,null,null,null,null,null,null,null,null,null,null,null,null,null,null,null,30,null,1,null,1,1,1,1,1,1,1,1,1,1,1,1,1,1,1,1,1,1,1,1]
[null,null,null,null,null,null,null,null,null,null,null,null,null,"Non usato",null,null,null,null,null,null,null,null,null,null,null,null,null,null,null,null,null,null,null,null,null,null,null,null,null,null,null,null,null,null,null,null,null,null,null,null,null,null,null,null,null,null,null,null,null,null,null,null,31,null,1,null,1,1,1,1,1,1,1,1,1,1,1,1,1,1,1,1,1,1,1,1]
[null,null,null,null,null,null,null,null,null,null,null,null,null,"Non usato",null,null,null,null,null,null,null,null,null,null,null,null,null,null,null,null,null,null,null,null,null,null,null,null,null,null,null,null,null,null,null,null,null,null,null,null,null,null,null,null,null,null,null,null,null,null,null,null,32,null,1,null,1,1,1,1,1,1,1,1,1,1,1,1,1,1,1,1,1,1,1,1]
[null,null,null,null,null,null,null,null,null,null,null,null,null,"Non usato",null,null,null,null,null,null,null,null,null,null,null,null,null,null,null,null,null,null,null,null,null,null,null,null,null,null,null,null,null,null,null,null,null,null,null,null,null,null,null,null,null,null,null,null,null,null,null,null,33,null,1,null,1,1,1,1,1,1,1,1,1,1,1,1,1,1,1,1,1,1,1,1]
[null,null,null,null,null,null,null,null,null,null,null,null,null,"Non usato",null,null,null,null,null,null,null,null,null,null,null,null,null,null,null,null,null,null,null,null,null,null,null,null,null,null,null,null,null,null,null,null,null,null,null,null,null,null,null,null,null,null,null,null,null,null,null,null,34,null,1,null,1,1,1,1,1,1,1,1,1,1,1,1,1,1,1,1,1,1,1,1]
[null,null,null,null,null,null,null,null,null,null,null,null,null,"Non usato",null,null,null,null,null,null,null,null,null,null,null,null,null,null,null,null,null,null,null,null,null,null,null,null,null,null,null,null,null,null,null,null,null,null,null,null,null,null,null,null,null,null,null,null,null,null,null,null,35,null,1,null,1,1,1,1,1,1,1,1,1,1,1,1,1,1,1,1,1,1,1,1]
[null,null,null,null,null,null,null,null,null,null,null,null,null,"Non usato",null,null,null,null,null,null,null,null,null,null,null,null,null,null,null,null,null,null,null,null,null,null,null,null,null,null,null,null,null,null,null,null,null,null,null,null,null,null,null,null,null,null,null,null,null,null,null,null,36,null,1,null,1,1,1,1,1,1,1,1,1,1,1,1,1,1,1,1,1,1,1,1]
[null,null,null,null,null,null,null,null,null,null,null,null,null,"Non usato",null,null,null,null,null,null,null,null,null,null,null,null,null,null,null,null,null,null,null,null,null,null,null,null,null,null,null,null,null,null,null,null,null,null,null,null,null,null,null,null,null,null,null,null,null,null,null,null,37,null,1,null,1,1,1,1,1,1,1,1,1,1,1,1,1,1,1,1,1,1,1,1]
[null,null,null,null,null,null,null,null,null,null,null,null,null,"Non usato",null,null,null,null,null,null,null,null,null,null,null,null,null,null,null,null,null,null,null,null,null,null,null,null,null,null,null,null,null,null,null,null,null,null,null,null,null,null,null,null,null,null,null,null,null,null,null,null,38,null,1,null,1,1,1,1,1,1,1,1,1,1,1,1,1,1,1,1,1,1,1,1]
[null,null,null,null,null,null,null,null,null,null,null,null,null,"Non usato",null,null,null,null,null,null,null,null,null,null,null,null,null,null,null,null,null,null,null,null,null,null,null,null,null,null,null,null,null,null,null,null,null,null,null,null,null,null,null,null,null,null,null,null,null,null,null,null,39,null,1,null,1,1,1,1,1,1,1,1,1,1,1,1,1,1,1,1,1,1,1,1]
[null,null,null,null,null,null,null,null,null,null,null,null,null,"Non usato",null,null,null,null,null,null,null,null,null,null,null,null,null,null,null,null,null,null,null,null,null,null,null,null,null,null,null,null,null,null,null,null,null,null,null,null,null,null,null,null,null,null,null,null,null,null,null,null,{"$f":"BK58+1","v":40},null,1,null,1,1,1,1,1,1,1,1,1,1,1,1,1,1,1,1,1,1,1,1]
[null,null,null,null,null,null,null,null,null,null,null,null,null,"Non usato",null,null,null,null,null,null,null,null,null,null,null,null,null,null,null,null,null,null,null,null,null,null,null,null,null,null,null,null,null,null,null,null,null,null,null,null,null,null,null,null,null,null,null,null,null,null,null,null,41,null,1,null,1,1,1,1,1,1,1,1,1,1,1,1,1,1,1,1,1,1,1,1]
[null,null,null,null,null,null,null,null,null,null,null,null,null,"Non usato",null,null,null,null,null,null,null,null,null,null,null,null,null,null,null,null,null,null,null,null,null,null,null,null,null,null,null,null,null,null,null,null,null,null,null,null,null,null,null,null,null,null,null,null,null,null,null,null,42,null,1,null,1,1,1,1,1,1,1,1,1,1,1,1,1,1,1,1,1,1,1,1]
[null,null,null,null,null,null,null,null,null,null,null,null,null,"Non usato",null,null,null,null,null,null,null,null,null,null,null,null,null,null,null,null,null,null,null,null,null,null,null,null,null,null,null,null,null,null,null,null,null,null,null,null,null,null,null,null,null,null,null,null,null,null,null,null,43,null,1,null,1,1,1,1,1,1,1,1,1,1,1,1,1,1,1,1,1,1,1,1]
[null,null,null,null,null,null,null,null,null,null,null,null,null,"Non usato",null,null,null,null,null,null,null,null,null,null,null,null,null,null,null,null,null,null,null,null,null,null,null,null,null,null,null,null,null,null,null,null,null,null,null,null,null,null,null,null,null,null,null,null,null,null,null,null,44,null,1,null,1,1,1,1,1,1,1,1,1,1,1,1,1,1,1,1,1,1,1,1]
[null,null,null,null,null,null,null,null,null,null,null,null,null,"Non usato",null,null,null,null,null,null,null,null,null,null,null,null,null,null,null,null,null,null,null,null,null,null,null,null,null,null,null,null,null,null,null,null,null,null,null,null,null,null,null,null,null,null,null,null,null,null,null,null,45,null,1,null,1,1,1,1,1,1,1,1,1,1,1,1,1,1,1,1,1,1,1,1]
[null,null,null,null,null,null,null,null,null,null,null,null,null,"Non usato",null,null,null,null,null,null,null,null,null,null,null,null,null,null,null,null,null,null,null,null,null,null,null,null,null,null,null,null,null,null,null,null,null,null,null,null,null,null,null,null,null,null,null,null,null,null,null,null,46,null,1,null,1,1,1,1,1,1,1,1,1,1,1,1,1,1,1,1,1,1,1,1]
[null,null,null,null,null,null,null,null,null,null,null,null,null,"Non usato",null,null,null,null,null,null,null,null,null,null,null,null,null,null,null,null,null,null,null,null,null,null,null,null,null,null,null,null,null,null,null,null,null,null,null,null,null,null,null,null,null,null,null,null,null,null,null,null,47,null,1,null,1,1,1,1,1,1,1,1,1,1,1,1,1,1,1,1,1,1,1,1]
[null,null,null,null,null,null,null,null,null,null,null,null,null,"Non usato",null,null,null,null,null,null,null,null,null,null,null,null,null,null,null,null,null,null,null,null,null,null,null,null,null,null,null,null,null,null,null,null,null,null,null,null,null,null,null,null,null,null,null,null,null,null,null,null,48,null,1,null,1,1,1,1,1,1,1,1,1,1,1,1,1,1,1,1,1,1,1,1]
[null,null,null,null,null,null,null,null,null,null,null,null,null,"Non usato",null,null,null,null,null,null,null,null,null,null,null,null,null,null,null,null,null,null,null,null,null,null,null,null,null,null,null,null,null,null,null,null,null,null,null,null,null,null,null,null,null,null,null,null,null,null,null,null,49,null,1,null,1,1,1,1,1,1,1,1,1,1,1,1,1,1,1,1,1,1,1,1]
[null,null,null,null,null,null,null,null,null,null,null,null,null,"Non usato",null,null,null,null,null,null,null,null,null,null,null,null,null,null,null,null,null,null,null,null,null,null,null,null,null,null,null,null,null,null,null,null,null,null,null,null,null,null,null,null,null,null,null,null,null,null,null,null,50,null,1,null,1,1,1,1,1,1,1,1,1,1,1,1,1,1,1,1,1,1,1,1]
[null,null,null,null,null,null,null,null,null,null,null,null,null,"Non usato",null,null,null,null,null,null,null,null,null,null,null,null,null,null,null,null,null,null,null,null,null,null,null,null,null,null,null,null,null,null,null,null,null,null,null,null,null,null,null,null,null,null,null,null,null,null,null,null,51,null,1,null,1,1,1,1,1,1,1,1,1,1,1,1,1,1,1,1,1,1,1,1]
[null,null,null,null,null,null,null,null,null,null,null,null,null,"Non usato",null,null,null,null,null,null,null,null,null,null,null,null,null,null,null,null,null,null,null,null,null,null,null,null,null,null,null,null,null,null,null,null,null,null,null,null,null,null,null,null,null,null,null,null,null,null,null,null,52,null,1,null,1,1,1,1,1,1,1,1,1,1,1,1,1,1,1,1,1,1,1,1]
[null,null,null,null,null,null,null,null,null,null,null,null,null,"Non usato",null,null,null,null,null,null,null,null,null,null,null,null,null,null,null,null,null,null,null,null,null,null,null,null,null,null,null,null,null,null,null,null,null,null,null,null,null,null,null,null,null,null,null,null,null,null,null,null,53,null,1,null,1,1,1,1,1,1,1,1,1,1,1,1,1,1,1,1,1,1,1,1]
[null,null,null,null,null,null,null,null,null,null,null,null,null,"Non usato",null,null,null,null,null,null,null,null,null,null,null,null,null,null,null,null,null,null,null,null,null,null,null,null,null,null,null,null,null,null,null,null,null,null,null,null,null,null,null,null,null,null,null,null,null,null,null,null,54,null,1,null,1,1,1,1,1,1,1,1,1,1,1,1,1,1,1,1,1,1,1,1]
[null,null,null,null,null,null,null,null,null,null,null,null,null,"Non usato",null,null,null,null,null,null,null,null,null,null,null,null,null,null,null,null,null,null,null,null,null,null,null,null,null,null,null,null,null,null,null,null,null,null,null,null,null,null,null,null,null,null,null,null,null,null,null,null,55,null,1,null,1,1,1,1,1,1,1,1,1,1,1,1,1,1,1,1,1,1,1,1]
[null,null,null,null,null,null,null,null,null,null,null,null,null,"Non usato",null,null,null,null,null,null,null,null,null,null,null,null,null,null,null,null,null,null,null,null,null,null,null,null,null,null,null,null,null,null,null,null,null,null,null,null,null,null,null,null,null,null,null,null,null,null,null,null,56,null,1,null,1,1,1,1,1,1,1,1,1,1,1,1,1,1,1,1,1,1,1,1]
[null,null,null,null,null,null,null,null,null,null,null,null,null,"Non usato",null,null,null,null,null,null,null,null,null,null,null,null,null,null,null,null,null,null,null,null,null,null,null,null,null,null,null,null,null,null,null,null,null,null,null,null,null,null,null,null,null,null,null,null,null,null,null,null,57,null,1,null,1,1,1,1,1,1,1,1,1,1,1,1,1,1,1,1,1,1,1,1]
[null,null,null,null,null,null,null,null,null,null,null,null,null,"Non usato",null,null,null,null,null,null,null,null,null,null,null,null,null,null,null,null,null,null,null,null,null,null,null,null,null,null,null,null,null,null,null,null,null,null,null,null,null,null,null,null,null,null,null,null,null,null,null,null,58,null,1,null,1,1,1,1,1,1,1,1,1,1,1,1,1,1,1,1,1,1,1,1]
[null,null,null,null,null,null,null,null,null,null,null,null,null,"Non usato",null,null,null,null,null,null,null,null,null,null,null,null,null,null,null,null,null,null,null,null,null,null,null,null,null,null,null,null,null,null,null,null,null,null,null,null,null,null,null,null,null,null,null,null,null,null,null,null,59,null,1,null,1,1,1,1,1,1,1,1,1,1,1,1,1,1,1,1,1,1,1,1]
[null,null,null,null,null,null,null,null,null,null,null,null,null,"Non usato",null,null,null,null,null,null,null,null,null,null,null,null,null,null,null,null,null,null,null,null,null,null,null,null,null,null,null,null,null,null,null,null,null,null,null,null,null,null,null,null,null,null,null,null,null,null,null,null,60,null,1,null,1,1,1,1,1,1,1,1,1,1,1,1,1,1,1,1,1,1,1,1]
[null,null,null,null,null,null,null,null,null,null,null,null,null,"Non usato",null,null,null,null,null,null,null,null,null,null,null,null,null,null,null,null,null,null,null,null,null,null,null,null,null,null,null,null,null,null,null,null,null,null,null,null,null,null,null,null,null,null,null,null,null,null,null,null,61,null,1,null,1,1,1,1,1,1,1,1,1,1,1,1,1,1,1,1,1,1,1,1]
[null,null,null,null,null,null,null,null,null,null,null,null,null,"Non usato",null,null,null,null,null,null,null,null,null,null,null,null,null,null,null,null,null,null,null,null,null,null,null,null,null,null,null,null,null,null,null,null,null,null,null,null,null,null,null,null,null,null,null,null,null,null,null,null,62,null,1,null,1,1,1,1,1,1,1,1,1,1,1,1,1,1,1,1,1,1,1,1]
[null,null,null,null,null,null,null,null,null,null,null,null,null,"Non usato",null,null,null,null,null,null,null,null,null,null,null,null,null,null,null,null,null,null,null,null,null,null,null,null,null,null,null,null,null,null,null,null,null,null,null,null,null,null,null,null,null,null,null,null,null,null,null,null,63,null,1,null,1,1,1,1,1,1,1,1,1,1,1,1,1,1,1,1,1,1,1,1]
[null,null,null,null,null,null,null,null,null,null,null,null,null,"Non usato",null,null,null,null,null,null,null,null,null,null,null,null,null,null,null,null,null,null,null,null,null,null,null,null,null,null,null,null,null,null,null,null,null,null,null,null,null,null,null,null,null,null,null,null,null,null,null,null,64,null,1,null,1,1,1,1,1,1,1,1,1,1,1,1,1,1,1,1,1,1,1,1]
[null,null,null,null,null,null,null,null,null,null,null,null,null,"Non usato",null,null,null,null,null,null,null,null,null,null,null,null,null,null,null,null,null,null,null,null,null,null,null,null,null,null,null,null,null,null,null,null,null,null,null,null,null,null,null,null,null,null,null,null,null,null,null,null,65,null,1,null,1,1,1,1,1,1,1,1,1,1,1,1,1,1,1,1,1,1,1,1]
[null,null,null,null,null,null,null,null,null,null,null,null,null,{"$f":"IF(BM85=1,\"Non usato\",\"File \"& BK85)","v":"Non usato"},null,null,null,null,null,null,null,null,null,null,null,null,null,null,null,null,null,null,null,null,null,null,null,null,null,null,null,null,null,null,null,null,null,null,null,null,null,null,null,null,null,null,null,null,null,null,null,null,66,null,{"$f":"IF(AND(BK85<=$D$14,BK85>=$D$12),0,1)","v":1},null,{"$f":"IF(OR(AO$22=1,$BM85=1),1,0)","v":1},{"$f":"IF(OR(AP$22=1,$BM85=1),1,0)","v":1},{"$f":"IF(OR(AQ$22=1,$BM85=1),1,0)","v":1},{"$f":"IF(OR(AR$22=1,$BM85=1),1,0)","v":1},{"$f":"IF(OR(AS$22=1,$BM85=1),1,0)","v":1},{"$f":"IF(OR(AT$22=1,$BM85=1),1,0)","v":1},{"$f":"IF(OR(AU$22=1,$BM85=1),1,0)","v":1},{"$f":"IF(OR(AV$22=1,$BM85=1),1,0)","v":1},{"$f":"IF(OR(AW$22=1,$BM85=1),1,0)","v":1},{"$f":"IF(OR(AX$22=1,$BM85=1),1,0)","v":1},{"$f":"IF(OR(AY$22=1,$BM85=1),1,0)","v":1},{"$f":"IF(OR(AZ$22=1,$BM85=1),1,0)","v":1},{"$f":"IF(OR(BA$22=1,$BM85=1),1,0)","v":1},{"$f":"IF(OR(BB$22=1,$BM85=1),1,0)","v":1},{"$f":"IF(OR(BC$22=1,$BM85=1),1,0)","v":1},{"$f":"IF(OR(BD$22=1,$BM85=1),1,0)","v":1},{"$f":"IF(OR(BE$22=1,$BM85=1),1,0)","v":1},{"$f":"IF(OR(BF$22=1,$BM85=1),1,0)","v":1},{"$f":"IF(OR(BG$22=1,$BM85=1),1,0)","v":1},{"$f":"IF(OR(BH$22=1,$BM85=1),1,0)","v":1}]
[null,null,null,null,null,null,null,null,null,null,null,null,null,"Non usato",null,null,null,null,null,null,null,null,null,null,null,null,null,null,null,null,null,null,null,null,null,null,null,null,null,null,null,null,null,null,null,null,null,null,null,null,null,null,null,null,null,null,null,null,null,null,null,null,{"$f":"BK85+1","v":67},null,1,null,1,1,1,1,1,1,1,1,1,1,1,1,1,1,1,1,1,1,1,1]
[null,null,null,null,null,null,null,null,null,null,null,null,null,"Non usato",null,null,null,null,null,null,null,null,null,null,null,null,null,null,null,null,null,null,null,null,null,null,null,null,null,null,null,null,null,null,null,null,null,null,null,null,null,null,null,null,null,null,null,null,null,null,null,null,68,null,1,null,1,1,1,1,1,1,1,1,1,1,1,1,1,1,1,1,1,1,1,1]
[null,null,null,null,null,null,null,null,null,null,null,null,null,"Non usato",null,null,null,null,null,null,null,null,null,null,null,null,null,null,null,null,null,null,null,null,null,null,null,null,null,null,null,null,null,null,null,null,null,null,null,null,null,null,null,null,null,null,null,null,null,null,null,null,69,null,1,null,1,1,1,1,1,1,1,1,1,1,1,1,1,1,1,1,1,1,1,1]
[null,null,null,null,null,null,null,null,null,null,null,null,null,"Non usato",null,null,null,null,null,null,null,null,null,null,null,null,null,null,null,null,null,null,null,null,null,null,null,null,null,null,null,null,null,null,null,null,null,null,null,null,null,null,null,null,null,null,null,null,null,null,null,null,70,null,1,null,1,1,1,1,1,1,1,1,1,1,1,1,1,1,1,1,1,1,1,1]
[null,null,null,null,null,null,null,null,null,null,null,null,null,"Non usato",null,null,null,null,null,null,null,null,null,null,null,null,null,null,null,null,null,null,null,null,null,null,null,null,null,null,null,null,null,null,null,null,null,null,null,null,null,null,null,null,null,null,null,null,null,null,null,null,71,null,1,null,1,1,1,1,1,1,1,1,1,1,1,1,1,1,1,1,1,1,1,1]
[null,null,null,null,null,null,null,null,null,null,null,null,null,"Non usato",null,null,null,null,null,null,null,null,null,null,null,null,null,null,null,null,null,null,null,null,null,null,null,null,null,null,null,null,null,null,null,null,null,null,null,null,null,null,null,null,null,null,null,null,null,null,null,null,72,null,1,null,1,1,1,1,1,1,1,1,1,1,1,1,1,1,1,1,1,1,1,1]
[null,null,null,null,null,null,null,null,null,null,null,null,null,"Non usato",null,null,null,null,null,null,null,null,null,null,null,null,null,null,null,null,null,null,null,null,null,null,null,null,null,null,null,null,null,null,null,null,null,null,null,null,null,null,null,null,null,null,null,null,null,null,null,null,73,null,1,null,1,1,1,1,1,1,1,1,1,1,1,1,1,1,1,1,1,1,1,1]
[null,null,null,null,null,null,null,null,null,null,null,null,null,"Non usato",null,null,null,null,null,null,null,null,null,null,null,null,null,null,null,null,null,null,null,null,null,null,null,null,null,null,null,null,null,null,null,null,null,null,null,null,null,null,null,null,null,null,null,null,null,null,null,null,{"$f":"BK92+1","v":74},null,1,null,1,1,1,1,1,1,1,1,1,1,1,1,1,1,1,1,1,1,1,1]
[null,null,null,null,null,null,null,null,null,null,null,null,null,"Non usato",null,null,null,null,null,null,null,null,null,null,null,null,null,null,null,null,null,null,null,null,null,null,null,null,null,null,null,null,null,null,null,null,null,null,null,null,null,null,null,null,null,null,null,null,null,null,null,null,{"$f":"BK93+1","v":75},null,1,null,1,1,1,1,1,1,1,1,1,1,1,1,1,1,1,1,1,1,1,1]
[null,null,null,null,null,null,null,null,null,null,null,null,null,"Non usato",null,null,null,null,null,null,null,null,null,null,null,null,null,null,null,null,null,null,null,null,null,null,null,null,null,null,null,null,null,null,null,null,null,null,null,null,null,null,null,null,null,null,null,null,null,null,null,null,76,null,1,null,1,1,1,1,1,1,1,1,1,1,1,1,1,1,1,1,1,1,1,1]
[null,null,null,null,null,null,null,null,null,null,null,null,null,"Non usato",null,null,null,null,null,null,null,null,null,null,null,null,null,null,null,null,null,null,null,null,null,null,null,null,null,null,null,null,null,null,null,null,null,null,null,null,null,null,null,null,null,null,null,null,null,null,null,null,77,null,1,null,1,1,1,1,1,1,1,1,1,1,1,1,1,1,1,1,1,1,1,1]
[null,null,null,null,null,null,null,null,null,null,null,null,null,"Non usato",null,null,null,null,null,null,null,null,null,null,null,null,null,null,null,null,null,null,null,null,null,null,null,null,null,null,null,null,null,null,null,null,null,null,null,null,null,null,null,null,null,null,null,null,null,null,null,null,78,null,1,null,1,1,1,1,1,1,1,1,1,1,1,1,1,1,1,1,1,1,1,1]
[null,null,null,null,null,null,null,null,null,null,null,null,null,"Non usato",null,null,null,null,null,null,null,null,null,null,null,null,null,null,null,null,null,null,null,null,null,null,null,null,null,null,null,null,null,null,null,null,null,null,null,null,null,null,null,null,null,null,null,null,null,null,null,null,79,null,1,null,1,1,1,1,1,1,1,1,1,1,1,1,1,1,1,1,1,1,1,1]
[null,null,null,null,null,null,null,null,null,null,null,null,null,"Non usato",null,null,null,null,null,null,null,null,null,null,null,null,null,null,null,null,null,null,null,null,null,null,null,null,null,null,null,null,null,null,null,null,null,null,null,null,null,null,null,null,null,null,null,null,null,null,null,null,80,null,1,null,1,1,1,1,1,1,1,1,1,1,1,1,1,1,1,1,1,1,1,1]
[null,null,null,null,null,null,null,null,null,null,null,null,null,"Non usato",null,null,null,null,null,null,null,null,null,null,null,null,null,null,null,null,null,null,null,null,null,null,null,null,null,null,null,null,null,null,null,null,null,null,null,null,null,null,null,null,null,null,null,null,null,null,null,null,81,null,1,null,1,1,1,1,1,1,1,1,1,1,1,1,1,1,1,1,1,1,1,1]
[null,null,null,null,null,null,null,null,null,null,null,null,null,"Non usato",null,null,null,null,null,null,null,null,null,null,null,null,null,null,null,null,null,null,null,null,null,null,null,null,null,null,null,null,null,null,null,null,null,null,null,null,null,null,null,null,null,null,null,null,null,null,null,null,82,null,1,null,1,1,1,1,1,1,1,1,1,1,1,1,1,1,1,1,1,1,1,1]
[null,null,null,null,null,null,null,null,null,null,null,null,null,"Non usato",null,null,null,null,null,null,null,null,null,null,null,null,null,null,null,null,null,null,null,null,null,null,null,null,null,null,null,null,null,null,null,null,null,null,null,null,null,null,null,null,null,null,null,null,null,null,null,null,{"$f":"BK101+1","v":83},null,1,null,1,1,1,1,1,1,1,1,1,1,1,1,1,1,1,1,1,1,1,1]
[null,null,null,null,null,null,null,null,null,null,null,null,null,"Non usato",null,null,null,null,null,null,null,null,null,null,null,null,null,null,null,null,null,null,null,null,null,null,null,null,null,null,null,null,null,null,null,null,null,null,null,null,null,null,null,null,null,null,null,null,null,null,null,null,84,null,1,null,1,1,1,1,1,1,1,1,1,1,1,1,1,1,1,1,1,1,1,1]
[null,null,null,null,null,null,null,null,null,null,null,null,null,"Non usato",null,null,null,null,null,null,null,null,null,null,null,null,null,null,null,null,null,null,null,null,null,null,null,null,null,null,null,null,null,null,null,null,null,null,null,null,null,null,null,null,null,null,null,null,null,null,null,null,85,null,1,null,1,1,1,1,1,1,1,1,1,1,1,1,1,1,1,1,1,1,1,1]
[null,null,null,null,null,null,null,null,null,null,null,null,null,"Non usato",null,null,null,null,null,null,null,null,null,null,null,null,null,null,null,null,null,null,null,null,null,null,null,null,null,null,null,null,null,null,null,null,null,null,null,null,null,null,null,null,null,null,null,null,null,null,null,null,86,null,1,null,1,1,1,1,1,1,1,1,1,1,1,1,1,1,1,1,1,1,1,1]
[null,null,null,null,null,null,null,null,null,null,null,null,null,"Non usato",null,null,null,null,null,null,null,null,null,null,null,null,null,null,null,null,null,null,null,null,null,null,null,null,null,null,null,null,null,null,null,null,null,null,null,null,null,null,null,null,null,null,null,null,null,null,null,null,87,null,1,null,1,1,1,1,1,1,1,1,1,1,1,1,1,1,1,1,1,1,1,1]
[null,null,null,null,null,null,null,null,null,null,null,null,null,"Non usato",null,null,null,null,null,null,null,null,null,null,null,null,null,null,null,null,null,null,null,null,null,null,null,null,null,null,null,null,null,null,null,null,null,null,null,null,null,null,null,null,null,null,null,null,null,null,null,null,88,null,1,null,1,1,1,1,1,1,1,1,1,1,1,1,1,1,1,1,1,1,1,1]
[null,null,null,null,null,null,null,null,null,null,null,null,null,"Non usato",null,null,null,null,null,null,null,null,null,null,null,null,null,null,null,null,null,null,null,null,null,null,null,null,null,null,null,null,null,null,null,null,null,null,null,null,null,null,null,null,null,null,null,null,null,null,null,null,89,null,1,null,1,1,1,1,1,1,1,1,1,1,1,1,1,1,1,1,1,1,1,1]
[null,null,null,null,null,null,null,null,null,null,null,null,null,"Non usato",null,null,null,null,null,null,null,null,null,null,null,null,null,null,null,null,null,null,null,null,null,null,null,null,null,null,null,null,null,null,null,null,null,null,null,null,null,null,null,null,null,null,null,null,null,null,null,null,90,null,1,null,1,1,1,1,1,1,1,1,1,1,1,1,1,1,1,1,1,1,1,1]
[null,null,null,null,null,null,null,null,null,null,null,null,null,"Non usato",null,null,null,null,null,null,null,null,null,null,null,null,null,null,null,null,null,null,null,null,null,null,null,null,null,null,null,null,null,null,null,null,null,null,null,null,null,null,null,null,null,null,null,null,null,null,null,null,91,null,1,null,1,1,1,1,1,1,1,1,1,1,1,1,1,1,1,1,1,1,1,1]
[null,null,null,null,null,null,null,null,null,null,null,null,null,"Non usato",null,null,null,null,null,null,null,null,null,null,null,null,null,null,null,null,null,null,null,null,null,null,null,null,null,null,null,null,null,null,null,null,null,null,null,null,null,null,null,null,null,null,null,null,null,null,null,null,{"$f":"BK110+1","v":92},null,1,null,1,1,1,1,1,1,1,1,1,1,1,1,1,1,1,1,1,1,1,1]
[null,null,null,null,null,null,null,null,null,null,null,null,null,"Non usato",null,null,null,null,null,null,null,null,null,null,null,null,null,null,null,null,null,null,null,null,null,null,null,null,null,null,null,null,null,null,null,null,null,null,null,null,null,null,null,null,null,null,null,null,null,null,null,null,93,null,1,null,1,1,1,1,1,1,1,1,1,1,1,1,1,1,1,1,1,1,1,1]
[null,null,null,null,null,null,null,null,null,null,null,null,null,"Non usato",null,null,null,null,null,null,null,null,null,null,null,null,null,null,null,null,null,null,null,null,null,null,null,null,null,null,null,null,null,null,null,null,null,null,null,null,null,null,null,null,null,null,null,null,null,null,null,null,94,null,1,null,1,1,1,1,1,1,1,1,1,1,1,1,1,1,1,1,1,1,1,1]
[null,null,null,null,null,null,null,null,null,null,null,null,null,"Non usato",null,null,null,null,null,null,null,null,null,null,null,null,null,null,null,null,null,null,null,null,null,null,null,null,null,null,null,null,null,null,null,null,null,null,null,null,null,null,null,null,null,null,null,null,null,null,null,null,95,null,1,null,1,1,1,1,1,1,1,1,1,1,1,1,1,1,1,1,1,1,1,1]
[null,null,null,null,null,null,null,null,null,null,null,null,null,"Non usato",null,null,null,null,null,null,null,null,null,null,null,null,null,null,null,null,null,null,null,null,null,null,null,null,null,null,null,null,null,null,null,null,null,null,null,null,null,null,null,null,null,null,null,null,null,null,null,null,96,null,1,null,1,1,1,1,1,1,1,1,1,1,1,1,1,1,1,1,1,1,1,1]
[null,null,null,null,null,null,null,null,null,null,null,null,null,"Non usato",null,null,null,null,null,null,null,null,null,null,null,null,null,null,null,null,null,null,null,null,null,null,null,null,null,null,null,null,null,null,null,null,null,null,null,null,null,null,null,null,null,null,null,null,null,null,null,null,97,null,1,null,1,1,1,1,1,1,1,1,1,1,1,1,1,1,1,1,1,1,1,1]
[null,null,null,null,null,null,null,null,null,null,null,null,null,"Non usato",null,null,null,null,null,null,null,null,null,null,null,null,null,null,null,null,null,null,null,null,null,null,null,null,null,null,null,null,null,null,null,null,null,null,null,null,null,null,null,null,null,null,null,null,null,null,null,null,{"$f":"BK116+1","v":98},null,1,null,1,1,1,1,1,1,1,1,1,1,1,1,1,1,1,1,1,1,1,1]
[null,null,null,null,null,null,null,null,null,null,null,null,null,"Non usato",null,null,null,null,null,null,null,null,null,null,null,null,null,null,null,null,null,null,null,null,null,null,null,null,null,null,null,null,null,null,null,null,null,null,null,null,null,null,null,null,null,null,null,null,null,null,null,null,{"$f":"BK117+1","v":99},null,1,null,1,1,1,1,1,1,1,1,1,1,1,1,1,1,1,1,1,1,1,1]
[null,null,null,null,null,null,null,null,null,null,null,null,null,"Non usato",null,null,null,null,null,null,null,null,null,null,null,null,null,null,null,null,null,null,null,null,null,null,null,null,null,null,null,null,null,null,null,null,null,null,null,null,null,null,null,null,null,null,null,null,null,null,null,null,{"$f":"BK118+1","v":100},null,1,null,1,1,1,1,1,1,1,1,1,1,1,1,1,1,1,1,1,1,1,1]
[]
[]
[null,"Altri parametri di supporto",null,"Attenzione: si sconsiglia la modifica dei seguenti parametri senza averli completamente compresi! Forse è meglio rinascondere queste celle e fare finta di non averle viste…"]
[]
[]
[null,"Riga di partenza lettura funzione di predisposizione",null,{"$f":"ROW(D20)","v":20}]

{"sheet":"Impostazione_Soglie_ORG","index":14,"n_rows":314,"n_cols":72,"rows_kept":314,"cut":false,"hidden":false,"merged":[[192,14,192,15],[193,14,193,15],[194,14,194,15],[195,14,195,15],[196,14,196,15],[197,14,197,15],[196,5,196,7],[197,5,197,7],[192,8,192,9],[193,8,193,9],[194,8,194,9],[195,8,195,9],[196,8,196,9],[197,8,197,9],[196,10,196,11],[197,10,197,11],[176,5,176,7],[176,8,176,9],[183,10,183,11],[183,12,183,13],[192,5,192,7],[193,5,193,7],[194,5,194,7],[195,5,195,7],[192,10,192,11],[193,10,193,11],[194,10,194,11],[195,10,195,11],[191,5,191,7],[191,8,191,9],[191,10,191,11],[191,12,191,13],[178,5,178,7],[178,8,178,9],[178,10,178,11],[178,12,178,13],[180,5,180,7],[180,8,180,9],[179,5,179,7],[179,8,179,9],[167,12,167,13],[171,5,171,7],[171,8,171,9],[171,10,171,11],[171,12,171,13],[168,10,168,11],[169,5,169,7],[175,10,175,11],[175,12,175,13],[173,12,173,13],[174,5,174,7],[208,8,208,9],[209,8,209,9],[210,8,210,9],[211,8,211,9],[212,8,212,9],[213,8,213,9],[208,5,208,7],[209,5,209,7],[210,5,210,7],[211,5,211,7],[212,5,212,7],[213,5,213,7],[213,14,213,15],[208,12,208,13],[209,12,209,13],[210,12,210,13],[211,12,211,13],[212,12,212,13],[213,12,213,13],[209,10,209,11],[210,10,210,11],[211,10,211,11],[212,10,212,11],[213,10,213,11],[196,16,196,17],[197,16,197,17],[198,16,198,17],[199,16,199,17],[188,16,188,17],[190,16,190,17],[191,16,191,17],[192,16,192,17],[193,16,193,17],[194,16,194,17],[195,16,195,17],[2,12,3,14],[2,16,3,18],[9,17,10,17],[9,18,10,18],[2,20,3,22],[9,20,10,20],[9,21,10,21],[9,22,10,22],[9,14,10,14],[9,13,10,13],[9,16,10,16],[9,45,10,45],[9,40,10,40],[2,24,3,26],[2,28,3,30],[9,25,10,25],[9,26,10,26],[9,29,10,29],[2,32,3,34],[9,32,10,32],[9,33,10,33],[9,24,10,24],[9,30,10,30],[2,60,3,62],[9,61,10,61],[9,62,10,62],[200,16,200,17],[201,16,201,17],[149,5,149,7],[150,5,150,7],[177,5,177,7],[177,8,177,9],[177,10,177,11],[2,52,3,54],[9,49,10,49],[9,50,10,50],[9,53,10,53],[2,56,3,58],[9,56,10,56],[9,57,10,57],[9,58,10,58],[9,52,10,52],[9,54,10,54],[2,40,3,42],[2,44,3,46],[9,41,10,41],[9,44,10,44],[219,5,219,7],[219,8,219,9],[219,10,219,11],[219,12,219,13],[219,14,219,15],[163,10,163,11],[163,12,163,13],[218,5,218,7],[218,8,218,9],[218,10,218,11],[218,12,218,13],[216,5,216,7],[216,8,216,9],[177,12,177,13],[208,10,208,11],[190,14,190,15],[168,12,168,13],[208,14,208,15],[209,14,209,15],[210,14,210,15],[211,14,211,15],[176,12,176,13],[180,12,180,13],[212,14,212,15],[216,10,216,11],[216,12,216,13],[216,14,216,15],[217,5,217,7],[217,8,217,9],[217,10,217,11],[217,12,217,13],[217,14,217,15],[218,14,218,15],[214,5,214,7],[214,8,214,9],[214,10,214,11],[214,12,214,13],[214,14,214,15],[215,5,215,7],[215,8,215,9],[215,10,215,11],[215,12,215,13],[215,14,215,15],[205,5,205,7],[205,8,205,9],[205,10,205,11],[205,12,205,13],[205,14,205,15],[207,5,207,7],[207,8,207,9],[207,10,207,11],[207,12,207,13],[207,14,207,15],[201,5,201,7],[201,8,201,9],[201,10,201,11],[201,12,201,13],[201,14,201,15],[200,5,200,7],[200,8,200,9],[200,10,200,11],[200,12,200,13],[200,14,200,15],[199,5,199,7],[199,8,199,9],[199,10,199,11],[199,12,199,13],[199,14,199,15],[198,5,198,7],[198,8,198,9],[198,10,198,11],[198,12,198,13],[198,14,198,15],[191,14,191,15],[188,14,188,15],[190,5,190,7],[190,8,190,9],[190,10,190,11],[190,12,190,13],[188,5,188,7],[188,8,188,9],[188,10,188,11],[188,12,188,13],[179,10,179,11],[179,12,179,13],[184,5,184,7],[184,8,184,9],[184,10,184,11],[184,12,184,13],[172,5,172,7],[172,8,172,9],[172,10,172,11],[182,5,182,7],[182,8,182,9],[176,10,176,11],[182,12,182,13],[183,5,183,7],[183,8,183,9],[175,5,175,7],[175,8,175,9],[181,5,181,7],[181,8,181,9],[181,10,181,11],[181,12,181,13],[173,5,173,7],[173,8,173,9],[173,10,173,11],[182,10,182,11],[172,12,172,13],[168,5,168,7],[168,8,168,9],[165,5,165,7],[165,8,165,9],[165,10,165,11],[165,12,165,13],[166,5,166,7],[166,8,166,9],[180,10,180,11],[174,8,174,9],[174,10,174,11],[174,12,174,13],[169,8,169,9],[169,10,169,11],[169,12,169,13],[170,5,170,7],[170,8,170,9],[170,10,170,11],[170,12,170,13],[167,5,167,7],[167,8,167,9],[167,10,167,11],[166,10,166,11],[166,12,166,13],[162,5,162,7],[162,8,162,9],[162,10,162,11],[162,12,162,13],[164,5,164,7],[164,8,164,9],[164,10,164,11],[164,12,164,13],[163,5,163,7],[160,8,160,9],[160,10,160,11],[160,12,160,13],[161,5,161,7],[161,8,161,9],[161,10,161,11],[161,12,161,13],[160,5,160,7],[163,8,163,9],[2,48,3,50],[9,60,10,60],[5,3,5,6],[224,5,224,7],[224,8,224,9],[224,10,224,11],[224,12,224,13],[9,28,10,28],[9,42,10,42],[9,46,10,46],[3,3,3,6],[4,3,4,6],[8,3,8,6],[138,5,138,7],[9,34,10,34],[9,36,10,36],[9,12,10,12],[2,36,3,38],[9,37,10,37],[9,38,10,38],[141,5,141,7],[142,5,142,7],[143,5,143,7],[144,5,144,7],[9,48,10,48],[226,5,226,7],[226,8,226,9],[226,10,226,11],[226,12,226,13],[227,5,227,7],[227,8,227,9],[227,10,227,11],[227,12,227,13],[140,5,140,7],[151,5,151,7],[152,5,152,7],[145,5,145,7],[146,5,146,7],[147,5,147,7],[148,5,148,7],[157,5,157,7],[157,8,157,9],[157,10,157,11],[157,12,157,13],[159,5,159,7],[159,8,159,9],[159,10,159,11],[159,12,159,13],[230,5,230,7],[230,8,230,9],[230,10,230,11],[230,12,230,13],[231,5,231,7],[231,8,231,9],[231,10,231,11],[231,12,231,13],[228,5,228,7],[228,8,228,9],[228,10,228,11],[228,12,228,13],[229,5,229,7],[229,8,229,9],[229,10,229,11],[229,12,229,13],[234,5,234,7],[234,8,234,9],[234,10,234,11],[234,12,234,13],[235,5,235,7],[235,8,235,9],[235,10,235,11],[235,12,235,13],[232,5,232,7],[232,8,232,9],[232,10,232,11],[232,12,232,13],[233,5,233,7],[233,8,233,9],[233,10,233,11],[233,12,233,13],[238,5,238,7],[238,8,238,9],[238,10,238,11],[238,12,238,13],[239,5,239,7],[239,8,239,9],[239,10,239,11],[239,12,239,13],[236,5,236,7],[236,8,236,9],[236,10,236,11],[236,12,236,13],[237,5,237,7],[237,8,237,9],[237,10,237,11],[237,12,237,13],[242,5,242,7],[242,8,242,9],[242,10,242,11],[242,12,242,13],[243,5,243,7],[243,8,243,9],[243,10,243,11],[243,12,243,13],[240,5,240,7],[240,8,240,9],[240,10,240,11],[240,12,240,13],[241,5,241,7],[241,8,241,9],[241,10,241,11],[241,12,241,13],[246,5,246,7],[246,8,246,9],[246,10,246,11],[246,12,246,13],[247,5,247,7],[247,8,247,9],[247,10,247,11],[247,12,247,13],[244,5,244,7],[244,8,244,9],[244,10,244,11],[244,12,244,13],[245,5,245,7],[245,8,245,9],[245,10,245,11],[245,12,245,13],[250,5,250,7],[250,8,250,9],[250,10,250,11],[250,12,250,13],[251,5,251,7],[251,8,251,9],[251,10,251,11],[251,12,251,13],[248,5,248,7],[248,8,248,9],[248,10,248,11],[248,12,248,13],[249,5,249,7],[249,8,249,9],[249,10,249,11],[249,12,249,13],[255,5,255,7],[255,8,255,9],[257,5,257,7],[257,8,257,9],[301,5,301,7],[301,8,301,9],[258,5,258,7],[258,8,258,9],[259,5,259,7],[259,8,259,9],[264,5,264,7],[264,8,264,9],[265,5,265,7],[265,8,265,9],[297,5,297,7],[297,8,297,9],[266,5,266,7],[266,8,266,9],[260,5,260,7],[260,8,260,9],[261,5,261,7],[261,8,261,9],[262,5,262,7],[262,8,262,9],[263,5,263,7],[263,8,263,9],[267,5,267,7],[267,8,267,9],[296,5,296,7],[296,8,296,9],[268,5,268,7],[268,8,268,9],[269,5,269,7],[269,8,269,9],[270,5,270,7],[270,8,270,9],[271,5,271,7],[271,8,271,9],[294,5,294,7],[294,8,294,9],[272,5,272,7],[272,8,272,9],[273,5,273,7],[273,8,273,9],[274,5,274,7],[274,8,274,9],[278,5,278,7],[278,8,278,9],[279,5,279,7],[279,8,279,9],[280,5,280,7],[280,8,280,9],[275,5,275,7],[275,8,275,9],[292,5,292,7],[292,8,292,9],[276,5,276,7],[276,8,276,9],[277,5,277,7],[277,8,277,9],[291,5,291,7],[291,8,291,9],[281,5,281,7],[281,8,281,9],[289,5,289,7],[289,8,289,9],[282,5,282,7],[282,8,282,9],[286,5,286,7],[286,8,286,9],[288,5,288,7],[288,8,288,9],[302,5,302,7],[302,8,302,9],[290,5,290,7],[290,8,290,9],[295,5,295,7],[295,8,295,9],[293,5,293,7],[293,8,293,9],[300,5,300,7],[300,8,300,9],[298,5,298,7],[298,8,298,9],[299,5,299,7],[299,8,299,9],[306,5,306,7],[306,8,306,9],[307,5,307,7],[307,8,307,9],[308,5,308,7],[308,8,308,9],[303,5,303,7],[303,8,303,9],[304,5,304,7],[304,8,304,9],[305,5,305,7],[305,8,305,9],[312,5,312,7],[312,8,312,9],[313,5,313,7],[313,8,313,9],[309,5,309,7],[309,8,309,9],[310,5,310,7],[310,8,310,9],[311,5,311,7],[311,8,311,9]]}
[]
[null,"Impostazione soglie di riscalamento",null,null,null,null,null,null,"Spiegazione"]
[null,null,null,null,null,null,null,null,null,null,null,null,"Avanzamento Atomico",null,null,null,{"$f":"\"PG 1: \" & Riepilogo_Organizzazione!$D$11","v":"PG 1: "},null,null,null,{"$f":"\"PG 1: \" & Riepilogo_Organizzazione!$D$11","v":"PG 1: "},null,null,null,{"$f":"\"PG 2: \" & Riepilogo_Organizzazione!$D$12","v":"PG 2: "},null,null,null,{"$f":"\"PG 2: \" & Riepilogo_Organizzazione!$D$12","v":"PG 2: "},null,null,null,{"$f":"\"PG 3: \" & Riepilogo_Organizzazione!$D$13","v":"PG 3: "},null,null,null,{"$f":"\"PG 3 \" & Riepilogo_Organizzazione!$D$13","v":"PG 3 "},null,null,null,{"$f":"\"PG 4: \" & Riepilogo_Organizzazione!$D$14","v":"PG 4: "},null,null,null,{"$f":"\"PG 4: \" & Riepilogo_Organizzazione!$D$14","v":"PG 4: "},null,null,null,{"$f":"\"PG 5: \" & Riepilogo_Organizzazione!$D$15","v":"PG 5: "},null,null,null,{"$f":"\"PG 5: \" & Riepilogo_Organizzazione!$D$15","v":"PG 5: "},null,null,null,{"$f":"\"PG 6: \" & Riepilogo_Organizzazione!$D$16","v":"PG 6: "},null,null,null,{"$f":"\"PG 6: \" & Riepilogo_Organizzazione!$D$16","v":"PG 6: "}]
[null,"Directory e nome del template",null,{"$f":"Calcola_Classifiche_ORG!E4","v":0},null,null,null,null,"Spiegazione",null,null,null,null,null,null,"   Spiegazione"]
[null,"Directory di lettura dei valutativi",null,{"$f":"Calcola_Classifiche_ORG!E6","v":0},null,null,null,null,"Spiegazione"]
[null,"Inizializzazione torneo",null,null,null,null,null,null,null,null,null,null,null,"Soglia superiore AA   ",100,"   Spiegazione",null,"Soglia superiore VSP   ",100,null,null,"Soglia superiore QB   ",100,null,null,"Soglia superiore VSP   ",100,null,null,"Soglia superiore QB   ",100,null,null,"Soglia superiore VSP   ",100,null,null,"Soglia superiore QB   ",100,null,null,"Soglia superiore VSP   ",100,null,null,"Soglia superiore QB   ",100,null,null,"Soglia superiore VSP   ",100,null,null,"Soglia superiore QB   ",100,null,null,"Soglia superiore VSP   ",0,null,null,"Soglia superiore QB   ",0]
[null,null,null,null,null,null,null,null,"Spiegazione",null,null,null,null,"Soglia inferiore AA   ",0,"   Spiegazione",null,"Soglia inferiore VSP   ",0,null,null,"Soglia inferiore QB   ",0,null,null,"Soglia inferiore VSP   ",0,null,null,"Soglia inferiore QB   ",0,null,null,"Soglia inferiore VSP   ",0,null,null,"Soglia inferiore QB   ",0,null,null,"Soglia inferiore VSP   ",0,null,null,"Soglia inferiore QB   ",0,null,null,"Soglia inferiore VSP   ",0,null,null,"Soglia inferiore QB   ",0,null,null,"Soglia inferiore VSP   ",0,null,null,"Soglia inferiore QB   ",0,null,null,null,null,null,null,null,{"$f":"IF(D13<>\"\",1,0)","v":0},"   Formattazione opzionale Tick Nome squadra"]
[null,"Valutativi protetti da password (tick)",null,{"$f":"IF(Parametri_Operazioni_ORG!D13<>\"\",Parametri_Operazioni_ORG!D13,\"\")","v":""}]
[null,"Password dei valutativi",null,{"$f":"IF(Parametri_Operazioni_ORG!D14<>\"\",Parametri_Operazioni_ORG!D14,\"\")","v":""},null,null,null,null,"Spiegazione",null,null,null,"   Spiegazione","   Spiegazione","Spiegazione"]
[null,null,null,null,null,null,null,null,null,null,null,null,"Nome Squadra","AA nominale","AA riscalata",null,"Nome Squadra","VSP nominale","VSP riscalata",null,"Nome Squadra","QB nominale","QB riscalata",null,"Nome Squadra","VSP nominale","VSP riscalata",null,"Nome Squadra","QB nominale","QB riscalata",null,"Nome Squadra","VSP nominale","VSP riscalata",null,"Nome Squadra","QB nominale","QB riscalata",null,"Nome Squadra","VSP nominale","VSP riscalata",null,"Nome Squadra","QB nominale","QB riscalata",null,"Nome Squadra","VSP nominale","VSP riscalata",null,"Nome Squadra","QB nominale","QB riscalata",null,"Nome Squadra","VSP nominale","VSP riscalata",null,"Nome Squadra","QB nominale","QB riscalata"]
[null,"Visualizza valori riscalati (tick)",null,"X",null,null,null,null,"Spiegazione"]
[null,null,null,null,null,null,null,null,null,null,null,null,null,null,{"$f":"IF(AND($D$11<>\"\",M12<>\"\"),(N12-O$7)/(O$6-O$7)*100,\"\")","v":""},null,null,null,{"$f":"IF(AND($D$11<>\"\",Q12<>\"\"),(R12-S$7)/(S$6-S$7)*100,\"\")","v":""},null,null,null,{"$f":"IF(AND($D$11<>\"\",U12<>\"\"),(V12-W$7)/(W$6-W$7)*100,\"\")","v":""},null,null,null,{"$f":"IF(AND($D$11<>\"\",Y12<>\"\"),(Z12-AA$7)/(AA$6-AA$7)*100,\"\")","v":""},null,null,null,{"$f":"IF(AND($D$11<>\"\",AC12<>\"\"),(AD12-AE$7)/(AE$6-AE$7)*100,\"\")","v":""},null,null,null,{"$f":"IF(AND($D$11<>\"\",AG12<>\"\"),(AH12-AI$7)/(AI$6-AI$7)*100,\"\")","v":""},null,null,null,{"$f":"IF(AND($D$11<>\"\",AK12<>\"\"),(AL12-AM$7)/(AM$6-AM$7)*100,\"\")","v":""},null,null,null,{"$f":"IF(AND($D$11<>\"\",AO12<>\"\"),(AP12-AQ$7)/(AQ$6-AQ$7)*100,\"\")","v":""},null,null,null,{"$f":"IF(AND($D$11<>\"\",AS12<>\"\"),(AT12-AU$7)/(AU$6-AU$7)*100,\"\")","v":""},null,null,null,{"$f":"IF(AND($D$11<>\"\",AW12<>\"\"),(AX12-AY$7)/(AY$6-AY$7)*100,\"\")","v":""},null,null,null,{"$f":"IF(AND($D$11<>\"\",BA12<>\"\"),(BB12-BC$7)/(BC$6-BC$7)*100,\"\")","v":""},null,null,null,{"$f":"IF(AND($D$11<>\"\",BE12<>\"\"),(BF12-BG$7)/(BG$6-BG$7)*100,\"\")","v":""},null,null,null,{"$f":"IF(AND($D$11<>\"\",BI12<>\"\"),(BJ12-BK$7)/(BK$6-BK$7)*100,\"\")","v":""}]
[null,"Mostra i nomi delle squadre  (tick)",null,null,"   Attenzione: si sconsiglia TOTALMENTE di attivare questa opzione",null,null,null,"Spiegazione",null,null,null,null,null,{"$f":"IF(AND($D$11<>\"\",M13<>\"\"),(N13-O$7)/(O$6-O$7)*100,\"\")","v":""},null,null,null,{"$f":"IF(AND($D$11<>\"\",Q13<>\"\"),(R13-S$7)/(S$6-S$7)*100,\"\")","v":""},null,null,null,{"$f":"IF(AND($D$11<>\"\",U13<>\"\"),(V13-W$7)/(W$6-W$7)*100,\"\")","v":""},null,null,null,{"$f":"IF(AND($D$11<>\"\",Y13<>\"\"),(Z13-AA$7)/(AA$6-AA$7)*100,\"\")","v":""},null,null,null,{"$f":"IF(AND($D$11<>\"\",AC13<>\"\"),(AD13-AE$7)/(AE$6-AE$7)*100,\"\")","v":""},null,null,null,{"$f":"IF(AND($D$11<>\"\",AG13<>\"\"),(AH13-AI$7)/(AI$6-AI$7)*100,\"\")","v":""},null,null,null,{"$f":"IF(AND($D$11<>\"\",AK13<>\"\"),(AL13-AM$7)/(AM$6-AM$7)*100,\"\")","v":""},null,null,null,{"$f":"IF(AND($D$11<>\"\",AO13<>\"\"),(AP13-AQ$7)/(AQ$6-AQ$7)*100,\"\")","v":""},null,null,null,{"$f":"IF(AND($D$11<>\"\",AS13<>\"\"),(AT13-AU$7)/(AU$6-AU$7)*100,\"\")","v":""},null,null,null,{"$f":"IF(AND($D$11<>\"\",AW13<>\"\"),(AX13-AY$7)/(AY$6-AY$7)*100,\"\")","v":""},null,null,null,{"$f":"IF(AND($D$11<>\"\",BA13<>\"\"),(BB13-BC$7)/(BC$6-BC$7)*100,\"\")","v":""},null,null,null,{"$f":"IF(AND($D$11<>\"\",BE13<>\"\"),(BF13-BG$7)/(BG$6-BG$7)*100,\"\")","v":""},null,null,null,{"$f":"IF(AND($D$11<>\"\",BI13<>\"\"),(BJ13-BK$7)/(BK$6-BK$7)*100,\"\")","v":""}]
[null,null,null,null,null,null,null,null,null,null,null,null,null,null,"",null,null,null,"",null,null,null,"",null,null,null,"",null,null,null,"",null,null,null,"",null,null,null,"",null,null,null,"",null,null,null,"",null,null,null,"",null,null,null,"",null,null,null,"",null,null,null,""]
[null,null,null,null,null,null,null,null,null,null,null,null,null,null,"",null,null,null,"",null,null,null,"",null,null,null,"",null,null,null,"",null,null,null,"",null,null,null,"",null,null,null,"",null,null,null,"",null,null,null,"",null,null,null,"",null,null,null,"",null,null,null,""]
[null,null,null,null,null,null,null,null,null,null,null,null,null,null,"",null,null,null,"",null,null,null,"",null,null,null,"",null,null,null,"",null,null,null,"",null,null,null,"",null,null,null,"",null,null,null,"",null,null,null,"",null,null,null,"",null,null,null,"",null,null,null,""]
[null,null,null,null,null,null,null,null,null,null,null,null,null,null,"",null,null,null,"",null,null,null,"",null,null,null,"",null,null,null,"",null,null,null,"",null,null,null,"",null,null,null,"",null,null,null,"",null,null,null,"",null,null,null,"",null,null,null,"",null,null,null,""]
[null,null,null,null,null,null,null,null,null,null,null,null,null,null,"",null,null,null,"",null,null,null,"",null,null,null,"",null,null,null,"",null,null,null,"",null,null,null,"",null,null,null,"",null,null,null,"",null,null,null,"",null,null,null,"",null,null,null,"",null,null,null,""]
[null,null,null,null,null,"Spiegazione",null,null,null,null,null,null,null,null,"",null,null,null,"",null,null,null,"",null,null,null,"",null,null,null,"",null,null,null,"",null,null,null,"",null,null,null,"",null,null,null,"",null,null,null,"",null,null,null,"",null,null,null,"",null,null,null,""]
[null,null,null,null,null,"Attenzione: può richiedere qualche minuto…",null,null,null,null,null,null,null,null,"",null,null,null,"",null,null,null,"",null,null,null,"",null,null,null,"",null,null,null,"",null,null,null,"",null,null,null,"",null,null,null,"",null,null,null,"",null,null,null,"",null,null,null,"",null,null,null,""]
[null,null,null,null,null,null,null,null,null,null,null,null,null,null,"",null,null,null,"",null,null,null,"",null,null,null,"",null,null,null,"",null,null,null,"",null,null,null,"",null,null,null,"",null,null,null,"",null,null,null,"",null,null,null,"",null,null,null,"",null,null,null,""]
[null,null,null,null,null,null,null,null,null,null,null,null,null,null,"",null,null,null,"",null,null,null,"",null,null,null,"",null,null,null,"",null,null,null,"",null,null,null,"",null,null,null,"",null,null,null,"",null,null,null,"",null,null,null,"",null,null,null,"",null,null,null,""]
[null,null,null,null,null,"Spiegazione",null,null,null,null,null,null,null,null,"",null,null,null,"",null,null,null,"",null,null,null,"",null,null,null,"",null,null,null,"",null,null,null,"",null,null,null,"",null,null,null,"",null,null,null,"",null,null,null,"",null,null,null,"",null,null,null,""]
[null,null,null,null,null,null,null,null,null,null,null,null,null,null,"",null,null,null,"",null,null,null,"",null,null,null,"",null,null,null,"",null,null,null,"",null,null,null,"",null,null,null,"",null,null,null,"",null,null,null,"",null,null,null,"",null,null,null,"",null,null,null,""]
[null,null,null,null,null,null,null,null,null,null,null,null,null,null,"",null,null,null,"",null,null,null,"",null,null,null,"",null,null,null,"",null,null,null,"",null,null,null,"",null,null,null,"",null,null,null,"",null,null,null,"",null,null,null,"",null,null,null,"",null,null,null,""]
[null,null,null,null,null,"Spiegazione",null,null,null,null,null,null,null,null,"",null,null,null,"",null,null,null,"",null,null,null,"",null,null,null,"",null,null,null,"",null,null,null,"",null,null,null,"",null,null,null,"",null,null,null,"",null,null,null,"",null,null,null,"",null,null,null,""]
[null,null,null,null,null,null,null,null,null,null,null,null,null,null,"",null,null,null,"",null,null,null,"",null,null,null,"",null,null,null,"",null,null,null,"",null,null,null,"",null,null,null,"",null,null,null,"",null,null,null,"",null,null,null,"",null,null,null,"",null,null,null,""]
[null,null,null,null,null,null,null,null,null,null,null,null,null,null,"",null,null,null,"",null,null,null,"",null,null,null,"",null,null,null,"",null,null,null,"",null,null,null,"",null,null,null,"",null,null,null,"",null,null,null,"",null,null,null,"",null,null,null,"",null,null,null,""]
[null,null,null,null,null,null,null,null,null,null,null,null,null,null,"",null,null,null,"",null,null,null,"",null,null,null,"",null,null,null,"",null,null,null,"",null,null,null,"",null,null,null,"",null,null,null,"",null,null,null,"",null,null,null,"",null,null,null,"",null,null,null,""]
[null,null,null,null,null,"Spiegazione",null,null,null,null,null,null,null,null,"",null,null,null,"",null,null,null,"",null,null,null,"",null,null,null,"",null,null,null,"",null,null,null,"",null,null,null,"",null,null,null,"",null,null,null,"",null,null,null,"",null,null,null,"",null,null,null,""]
[null,null,null,null,null,null,null,null,null,null,null,null,null,null,"",null,null,null,"",null,null,null,"",null,null,null,"",null,null,null,"",null,null,null,"",null,null,null,"",null,null,null,"",null,null,null,"",null,null,null,"",null,null,null,"",null,null,null,"",null,null,null,""]
[null,null,null,null,null,null,null,null,null,null,null,null,null,null,"",null,null,null,"",null,null,null,"",null,null,null,"",null,null,null,"",null,null,null,"",null,null,null,"",null,null,null,"",null,null,null,"",null,null,null,"",null,null,null,"",null,null,null,"",null,null,null,""]
[null,null,null,null,null,null,null,null,null,null,null,null,null,null,"",null,null,null,"",null,null,null,"",null,null,null,"",null,null,null,"",null,null,null,"",null,null,null,"",null,null,null,"",null,null,null,"",null,null,null,"",null,null,null,"",null,null,null,"",null,null,null,""]
[null,null,null,null,null,null,null,null,null,null,null,null,null,null,"",null,null,null,"",null,null,null,"",null,null,null,"",null,null,null,"",null,null,null,"",null,null,null,"",null,null,null,"",null,null,null,"",null,null,null,"",null,null,null,"",null,null,null,"",null,null,null,""]
[null,null,null,null,null,null,null,null,null,null,null,null,null,null,"",null,null,null,"",null,null,null,"",null,null,null,"",null,null,null,"",null,null,null,"",null,null,null,"",null,null,null,"",null,null,null,"",null,null,null,"",null,null,null,"",null,null,null,"",null,null,null,""]
[null,null,null,null,null,null,null,null,null,null,null,null,null,null,"",null,null,null,"",null,null,null,"",null,null,null,"",null,null,null,"",null,null,null,"",null,null,null,"",null,null,null,"",null,null,null,"",null,null,null,"",null,null,null,"",null,null,null,"",null,null,null,""]
[null,null,null,null,null,null,null,null,null,null,null,null,null,null,"",null,null,null,"",null,null,null,"",null,null,null,"",null,null,null,"",null,null,null,"",null,null,null,"",null,null,null,"",null,null,null,"",null,null,null,"",null,null,null,"",null,null,null,"",null,null,null,""]
[null,null,null,null,null,null,null,null,null,null,null,null,null,null,"",null,null,null,"",null,null,null,"",null,null,null,"",null,null,null,"",null,null,null,"",null,null,null,"",null,null,null,"",null,null,null,"",null,null,null,"",null,null,null,"",null,null,null,"",null,null,null,""]
[null,null,null,null,null,null,null,null,null,null,null,null,null,null,"",null,null,null,"",null,null,null,"",null,null,null,"",null,null,null,"",null,null,null,"",null,null,null,"",null,null,null,"",null,null,null,"",null,null,null,"",null,null,null,"",null,null,null,"",null,null,null,""]
[null,null,null,null,null,null,null,null,null,null,null,null,null,null,"",null,null,null,"",null,null,null,"",null,null,null,"",null,null,null,"",null,null,null,"",null,null,null,"",null,null,null,"",null,null,null,"",null,null,null,"",null,null,null,"",null,null,null,"",null,null,null,""]
[null,null,null,null,null,null,null,null,null,null,null,null,null,null,"",null,null,null,"",null,null,null,"",null,null,null,"",null,null,null,"",null,null,null,"",null,null,null,"",null,null,null,"",null,null,null,"",null,null,null,"",null,null,null,"",null,null,null,"",null,null,null,""]
[null,null,null,null,null,null,null,null,null,null,null,null,null,null,"",null,null,null,"",null,null,null,"",null,null,null,"",null,null,null,"",null,null,null,"",null,null,null,"",null,null,null,"",null,null,null,"",null,null,null,"",null,null,null,"",null,null,null,"",null,null,null,""]
[null,null,null,null,null,null,null,null,null,null,null,null,null,null,"",null,null,null,"",null,null,null,"",null,null,null,"",null,null,null,"",null,null,null,"",null,null,null,"",null,null,null,"",null,null,null,"",null,null,null,"",null,null,null,"",null,null,null,"",null,null,null,""]
[null,null,null,null,null,null,null,null,null,null,null,null,null,null,"",null,null,null,"",null,null,null,"",null,null,null,"",null,null,null,"",null,null,null,"",null,null,null,"",null,null,null,"",null,null,null,"",null,null,null,"",null,null,null,"",null,null,null,"",null,null,null,""]
[null,null,null,null,null,null,null,null,null,null,null,null,null,null,"",null,null,null,"",null,null,null,"",null,null,null,"",null,null,null,"",null,null,null,"",null,null,null,"",null,null,null,"",null,null,null,"",null,null,null,"",null,null,null,"",null,null,null,"",null,null,null,""]
[null,null,null,null,null,null,null,null,null,null,null,null,null,null,"",null,null,null,"",null,null,null,"",null,null,null,"",null,null,null,"",null,null,null,"",null,null,null,"",null,null,null,"",null,null,null,"",null,null,null,"",null,null,null,"",null,null,null,"",null,null,null,""]
[null,null,null,null,null,null,null,null,null,null,null,null,null,null,"",null,null,null,"",null,null,null,"",null,null,null,"",null,null,null,"",null,null,null,"",null,null,null,"",null,null,null,"",null,null,null,"",null,null,null,"",null,null,null,"",null,null,null,"",null,null,null,""]
[null,null,null,null,null,null,null,null,null,null,null,null,null,null,"",null,null,null,"",null,null,null,"",null,null,null,"",null,null,null,"",null,null,null,"",null,null,null,"",null,null,null,"",null,null,null,"",null,null,null,"",null,null,null,"",null,null,null,"",null,null,null,""]
[null,null,null,null,null,null,null,null,null,null,null,null,null,null,"",null,null,null,"",null,null,null,"",null,null,null,"",null,null,null,"",null,null,null,"",null,null,null,"",null,null,null,"",null,null,null,"",null,null,null,"",null,null,null,"",null,null,null,"",null,null,null,""]
[null,null,null,null,null,null,null,null,null,null,null,null,null,null,"",null,null,null,"",null,null,null,"",null,null,null,"",null,null,null,"",null,null,null,"",null,null,null,"",null,null,null,"",null,null,null,"",null,null,null,"",null,null,null,"",null,null,null,"",null,null,null,""]
[null,null,null,null,null,null,null,null,null,null,null,null,null,null,"",null,null,null,"",null,null,null,"",null,null,null,"",null,null,null,"",null,null,null,"",null,null,null,"",null,null,null,"",null,null,null,"",null,null,null,"",null,null,null,"",null,null,null,"",null,null,null,""]
[null,null,null,null,null,null,null,null,null,null,null,null,null,null,"",null,null,null,"",null,null,null,"",null,null,null,"",null,null,null,"",null,null,null,"",null,null,null,"",null,null,null,"",null,null,null,"",null,null,null,"",null,null,null,"",null,null,null,"",null,null,null,""]
[null,null,null,null,null,null,null,null,null,null,null,null,null,null,"",null,null,null,"",null,null,null,"",null,null,null,"",null,null,null,"",null,null,null,"",null,null,null,"",null,null,null,"",null,null,null,"",null,null,null,"",null,null,null,"",null,null,null,"",null,null,null,""]
[null,null,null,null,null,null,null,null,null,null,null,null,null,null,"",null,null,null,"",null,null,null,"",null,null,null,"",null,null,null,"",null,null,null,"",null,null,null,"",null,null,null,"",null,null,null,"",null,null,null,"",null,null,null,"",null,null,null,"",null,null,null,""]
[null,null,null,null,null,null,null,null,null,null,null,null,null,null,"",null,null,null,"",null,null,null,"",null,null,null,"",null,null,null,"",null,null,null,"",null,null,null,"",null,null,null,"",null,null,null,"",null,null,null,"",null,null,null,"",null,null,null,"",null,null,null,""]
[null,null,null,null,null,null,null,null,null,null,null,null,null,null,"",null,null,null,"",null,null,null,"",null,null,null,"",null,null,null,"",null,null,null,"",null,null,null,"",null,null,null,"",null,null,null,"",null,null,null,"",null,null,null,"",null,null,null,"",null,null,null,""]
[null,null,null,null,null,null,null,null,null,null,null,null,null,null,"",null,null,null,"",null,null,null,"",null,null,null,"",null,null,null,"",null,null,null,"",null,null,null,"",null,null,null,"",null,null,null,"",null,null,null,"",null,null,null,"",null,null,null,"",null,null,null,""]
[null,null,null,null,null,null,null,null,null,null,null,null,null,null,"",null,null,null,"",null,null,null,"",null,null,null,"",null,null,null,"",null,null,null,"",null,null,null,"",null,null,null,"",null,null,null,"",null,null,null,"",null,null,null,"",null,null,null,"",null,null,null,""]
[null,null,null,null,null,null,null,null,null,null,null,null,null,null,"",null,null,null,"",null,null,null,"",null,null,null,"",null,null,null,"",null,null,null,"",null,null,null,"",null,null,null,"",null,null,null,"",null,null,null,"",null,null,null,"",null,null,null,"",null,null,null,""]
[null,null,null,null,null,null,null,null,null,null,null,null,null,null,"",null,null,null,"",null,null,null,"",null,null,null,"",null,null,null,"",null,null,null,"",null,null,null,"",null,null,null,"",null,null,null,"",null,null,null,"",null,null,null,"",null,null,null,"",null,null,null,""]
[null,null,null,null,null,null,null,null,null,null,null,null,null,null,"",null,null,null,"",null,null,null,"",null,null,null,"",null,null,null,"",null,null,null,"",null,null,null,"",null,null,null,"",null,null,null,"",null,null,null,"",null,null,null,"",null,null,null,"",null,null,null,""]
[null,null,null,null,null,null,null,null,null,null,null,null,null,null,"",null,null,null,"",null,null,null,"",null,null,null,"",null,null,null,"",null,null,null,"",null,null,null,"",null,null,null,"",null,null,null,"",null,null,null,"",null,null,null,"",null,null,null,"",null,null,null,""]
[null,null,null,null,null,null,null,null,null,null,null,null,null,null,"",null,null,null,"",null,null,null,"",null,null,null,"",null,null,null,"",null,null,null,"",null,null,null,"",null,null,null,"",null,null,null,"",null,null,null,"",null,null,null,"",null,null,null,"",null,null,null,""]
[null,null,null,null,null,null,null,null,null,null,null,null,null,null,"",null,null,null,"",null,null,null,"",null,null,null,"",null,null,null,"",null,null,null,"",null,null,null,"",null,null,null,"",null,null,null,"",null,null,null,"",null,null,null,"",null,null,null,"",null,null,null,""]
[null,null,null,null,null,null,null,null,null,null,null,null,null,null,"",null,null,null,"",null,null,null,"",null,null,null,"",null,null,null,"",null,null,null,"",null,null,null,"",null,null,null,"",null,null,null,"",null,null,null,"",null,null,null,"",null,null,null,"",null,null,null,""]
[null,null,null,null,null,null,null,null,null,null,null,null,null,null,"",null,null,null,"",null,null,null,"",null,null,null,"",null,null,null,"",null,null,null,"",null,null,null,"",null,null,null,"",null,null,null,"",null,null,null,"",null,null,null,"",null,null,null,"",null,null,null,""]
[null,null,null,null,null,null,null,null,null,null,null,null,null,null,"",null,null,null,"",null,null,null,"",null,null,null,"",null,null,null,"",null,null,null,"",null,null,null,"",null,null,null,"",null,null,null,"",null,null,null,"",null,null,null,"",null,null,null,"",null,null,null,""]
[null,null,null,null,null,null,null,null,null,null,null,null,null,null,"",null,null,null,"",null,null,null,"",null,null,null,"",null,null,null,"",null,null,null,"",null,null,null,"",null,null,null,"",null,null,null,"",null,null,null,"",null,null,null,"",null,null,null,"",null,null,null,""]
[null,null,null,null,null,null,null,null,null,null,null,null,null,null,"",null,null,null,"",null,null,null,"",null,null,null,"",null,null,null,"",null,null,null,"",null,null,null,"",null,null,null,"",null,null,null,"",null,null,null,"",null,null,null,"",null,null,null,"",null,null,null,""]
[null,null,null,null,null,null,null,null,null,null,null,null,null,null,"",null,null,null,"",null,null,null,"",null,null,null,"",null,null,null,"",null,null,null,"",null,null,null,"",null,null,null,"",null,null,null,"",null,null,null,"",null,null,null,"",null,null,null,"",null,null,null,""]
[null,null,null,null,null,null,null,null,null,null,null,null,null,null,"",null,null,null,"",null,null,null,"",null,null,null,"",null,null,null,"",null,null,null,"",null,null,null,"",null,null,null,"",null,null,null,"",null,null,null,"",null,null,null,"",null,null,null,"",null,null,null,""]
[null,null,null,null,null,null,null,null,null,null,null,null,null,null,"",null,null,null,"",null,null,null,"",null,null,null,"",null,null,null,"",null,null,null,"",null,null,null,"",null,null,null,"",null,null,null,"",null,null,null,"",null,null,null,"",null,null,null,"",null,null,null,""]
[null,null,null,null,null,null,null,null,null,null,null,null,null,null,"",null,null,null,"",null,null,null,"",null,null,null,"",null,null,null,"",null,null,null,"",null,null,null,"",null,null,null,"",null,null,null,"",null,null,null,"",null,null,null,"",null,null,null,"",null,null,null,""]
[null,null,null,null,null,null,null,null,null,null,null,null,null,null,"",null,null,null,"",null,null,null,"",null,null,null,"",null,null,null,"",null,null,null,"",null,null,null,"",null,null,null,"",null,null,null,"",null,null,null,"",null,null,null,"",null,null,null,"",null,null,null,""]
[null,null,null,null,null,null,null,null,null,null,null,null,null,null,"",null,null,null,"",null,null,null,"",null,null,null,"",null,null,null,"",null,null,null,"",null,null,null,"",null,null,null,"",null,null,null,"",null,null,null,"",null,null,null,"",null,null,null,"",null,null,null,""]
[null,null,null,null,null,null,null,null,null,null,null,null,null,null,"",null,null,null,"",null,null,null,"",null,null,null,"",null,null,null,"",null,null,null,"",null,null,null,"",null,null,null,"",null,null,null,"",null,null,null,"",null,null,null,"",null,null,null,"",null,null,null,""]
[null,null,null,null,null,null,null,null,null,null,null,null,null,null,{"$f":"IF(AND($D$11<>\"\",M77<>\"\"),(N77-O$7)/(O$6-O$7)*100,\"\")","v":""},null,null,null,{"$f":"IF(AND($D$11<>\"\",Q77<>\"\"),(R77-S$7)/(S$6-S$7)*100,\"\")","v":""},null,null,null,{"$f":"IF(AND($D$11<>\"\",U77<>\"\"),(V77-W$7)/(W$6-W$7)*100,\"\")","v":""},null,null,null,{"$f":"IF(AND($D$11<>\"\",Y77<>\"\"),(Z77-AA$7)/(AA$6-AA$7)*100,\"\")","v":""},null,null,null,{"$f":"IF(AND($D$11<>\"\",AC77<>\"\"),(AD77-AE$7)/(AE$6-AE$7)*100,\"\")","v":""},null,null,null,{"$f":"IF(AND($D$11<>\"\",AG77<>\"\"),(AH77-AI$7)/(AI$6-AI$7)*100,\"\")","v":""},null,null,null,{"$f":"IF(AND($D$11<>\"\",AK77<>\"\"),(AL77-AM$7)/(AM$6-AM$7)*100,\"\")","v":""},null,null,null,{"$f":"IF(AND($D$11<>\"\",AO77<>\"\"),(AP77-AQ$7)/(AQ$6-AQ$7)*100,\"\")","v":""},null,null,null,{"$f":"IF(AND($D$11<>\"\",AS77<>\"\"),(AT77-AU$7)/(AU$6-AU$7)*100,\"\")","v":""},null,null,null,{"$f":"IF(AND($D$11<>\"\",AW77<>\"\"),(AX77-AY$7)/(AY$6-AY$7)*100,\"\")","v":""},null,null,null,{"$f":"IF(AND($D$11<>\"\",BA77<>\"\"),(BB77-BC$7)/(BC$6-BC$7)*100,\"\")","v":""},null,null,null,{"$f":"IF(AND($D$11<>\"\",BE77<>\"\"),(BF77-BG$7)/(BG$6-BG$7)*100,\"\")","v":""},null,null,null,{"$f":"IF(AND($D$11<>\"\",BI77<>\"\"),(BJ77-BK$7)/(BK$6-BK$7)*100,\"\")","v":""}]
[null,null,null,null,null,null,null,null,null,null,null,null,null,null,"",null,null,null,"",null,null,null,"",null,null,null,"",null,null,null,"",null,null,null,"",null,null,null,"",null,null,null,"",null,null,null,"",null,null,null,"",null,null,null,"",null,null,null,"",null,null,null,""]
[null,null,null,null,null,null,null,null,null,null,null,null,null,null,"",null,null,null,"",null,null,null,"",null,null,null,"",null,null,null,"",null,null,null,"",null,null,null,"",null,null,null,"",null,null,null,"",null,null,null,"",null,null,null,"",null,null,null,"",null,null,null,""]
[null,null,null,null,null,null,null,null,null,null,null,null,null,null,"",null,null,null,"",null,null,null,"",null,null,null,"",null,null,null,"",null,null,null,"",null,null,null,"",null,null,null,"",null,null,null,"",null,null,null,"",null,null,null,"",null,null,null,"",null,null,null,""]
[null,null,null,null,null,null,null,null,null,null,null,null,null,null,"",null,null,null,"",null,null,null,"",null,null,null,"",null,null,null,"",null,null,null,"",null,null,null,"",null,null,null,"",null,null,null,"",null,null,null,"",null,null,null,"",null,null,null,"",null,null,null,""]
[null,null,null,null,null,null,null,null,null,null,null,null,null,null,"",null,null,null,"",null,null,null,"",null,null,null,"",null,null,null,"",null,null,null,"",null,null,null,"",null,null,null,"",null,null,null,"",null,null,null,"",null,null,null,"",null,null,null,"",null,null,null,""]
[null,null,null,null,null,null,null,null,null,null,null,null,null,null,"",null,null,null,"",null,null,null,"",null,null,null,"",null,null,null,"",null,null,null,"",null,null,null,"",null,null,null,"",null,null,null,"",null,null,null,"",null,null,null,"",null,null,null,"",null,null,null,""]
[null,null,null,null,null,null,null,null,null,null,null,null,null,null,"",null,null,null,"",null,null,null,"",null,null,null,"",null,null,null,"",null,null,null,"",null,null,null,"",null,null,null,"",null,null,null,"",null,null,null,"",null,null,null,"",null,null,null,"",null,null,null,""]
[null,null,null,null,null,null,null,null,null,null,null,null,null,null,"",null,null,null,"",null,null,null,"",null,null,null,"",null,null,null,"",null,null,null,"",null,null,null,"",null,null,null,"",null,null,null,"",null,null,null,"",null,null,null,"",null,null,null,"",null,null,null,""]
[null,null,null,null,null,null,null,null,null,null,null,null,null,null,"",null,null,null,"",null,null,null,"",null,null,null,"",null,null,null,"",null,null,null,"",null,null,null,"",null,null,null,"",null,null,null,"",null,null,null,"",null,null,null,"",null,null,null,"",null,null,null,""]
[null,null,null,null,null,null,null,null,null,null,null,null,null,null,"",null,null,null,"",null,null,null,"",null,null,null,"",null,null,null,"",null,null,null,"",null,null,null,"",null,null,null,"",null,null,null,"",null,null,null,"",null,null,null,"",null,null,null,"",null,null,null,""]
[null,null,null,null,null,null,null,null,null,null,null,null,null,null,"",null,null,null,"",null,null,null,"",null,null,null,"",null,null,null,"",null,null,null,"",null,null,null,"",null,null,null,"",null,null,null,"",null,null,null,"",null,null,null,"",null,null,null,"",null,null,null,""]
[null,null,null,null,null,null,null,null,null,null,null,null,null,null,"",null,null,null,"",null,null,null,"",null,null,null,"",null,null,null,"",null,null,null,"",null,null,null,"",null,null,null,"",null,null,null,"",null,null,null,"",null,null,null,"",null,null,null,"",null,null,null,""]
[null,null,null,null,null,null,null,null,null,null,null,null,null,null,"",null,null,null,"",null,null,null,"",null,null,null,"",null,null,null,"",null,null,null,"",null,null,null,"",null,null,null,"",null,null,null,"",null,null,null,"",null,null,null,"",null,null,null,"",null,null,null,""]
[null,null,null,null,null,null,null,null,null,null,null,null,null,null,"",null,null,null,"",null,null,null,"",null,null,null,"",null,null,null,"",null,null,null,"",null,null,null,"",null,null,null,"",null,null,null,"",null,null,null,"",null,null,null,"",null,null,null,"",null,null,null,""]
[null,null,null,null,null,null,null,null,null,null,null,null,null,null,"",null,null,null,"",null,null,null,"",null,null,null,"",null,null,null,"",null,null,null,"",null,null,null,"",null,null,null,"",null,null,null,"",null,null,null,"",null,null,null,"",null,null,null,"",null,null,null,""]
[null,null,null,null,null,null,null,null,null,null,null,null,null,null,"",null,null,null,"",null,null,null,"",null,null,null,"",null,null,null,"",null,null,null,"",null,null,null,"",null,null,null,"",null,null,null,"",null,null,null,"",null,null,null,"",null,null,null,"",null,null,null,""]
[null,null,null,null,null,null,null,null,null,null,null,null,null,null,"",null,null,null,"",null,null,null,"",null,null,null,"",null,null,null,"",null,null,null,"",null,null,null,"",null,null,null,"",null,null,null,"",null,null,null,"",null,null,null,"",null,null,null,"",null,null,null,""]
[null,null,null,null,null,null,null,null,null,null,null,null,null,null,"",null,null,null,"",null,null,null,"",null,null,null,"",null,null,null,"",null,null,null,"",null,null,null,"",null,null,null,"",null,null,null,"",null,null,null,"",null,null,null,"",null,null,null,"",null,null,null,""]
[null,null,null,null,null,null,null,null,null,null,null,null,null,null,"",null,null,null,"",null,null,null,"",null,null,null,"",null,null,null,"",null,null,null,"",null,null,null,"",null,null,null,"",null,null,null,"",null,null,null,"",null,null,null,"",null,null,null,"",null,null,null,""]
[null,null,null,null,null,null,null,null,null,null,null,null,null,null,"",null,null,null,"",null,null,null,"",null,null,null,"",null,null,null,"",null,null,null,"",null,null,null,"",null,null,null,"",null,null,null,"",null,null,null,"",null,null,null,"",null,null,null,"",null,null,null,""]
[null,null,null,null,null,null,null,null,null,null,null,null,null,null,"",null,null,null,"",null,null,null,"",null,null,null,"",null,null,null,"",null,null,null,"",null,null,null,"",null,null,null,"",null,null,null,"",null,null,null,"",null,null,null,"",null,null,null,"",null,null,null,""]
[null,null,null,null,null,null,null,null,null,null,null,null,null,null,"",null,null,null,"",null,null,null,"",null,null,null,"",null,null,null,"",null,null,null,"",null,null,null,"",null,null,null,"",null,null,null,"",null,null,null,"",null,null,null,"",null,null,null,"",null,null,null,""]
[null,null,null,null,null,null,null,null,null,null,null,null,null,null,"",null,null,null,"",null,null,null,"",null,null,null,"",null,null,null,"",null,null,null,"",null,null,null,"",null,null,null,"",null,null,null,"",null,null,null,"",null,null,null,"",null,null,null,"",null,null,null,""]
[null,null,null,null,null,null,null,null,null,null,null,null,null,null,"",null,null,null,"",null,null,null,"",null,null,null,"",null,null,null,"",null,null,null,"",null,null,null,"",null,null,null,"",null,null,null,"",null,null,null,"",null,null,null,"",null,null,null,"",null,null,null,""]
[null,null,null,null,null,null,null,null,null,null,null,null,null,null,"",null,null,null,"",null,null,null,"",null,null,null,"",null,null,null,"",null,null,null,"",null,null,null,"",null,null,null,"",null,null,null,"",null,null,null,"",null,null,null,"",null,null,null,"",null,null,null,""]
[null,null,null,null,null,null,null,null,null,null,null,null,null,null,"",null,null,null,"",null,null,null,"",null,null,null,"",null,null,null,"",null,null,null,"",null,null,null,"",null,null,null,"",null,null,null,"",null,null,null,"",null,null,null,"",null,null,null,"",null,null,null,""]
[null,null,null,null,null,null,null,null,null,null,null,null,null,null,"",null,null,null,"",null,null,null,"",null,null,null,"",null,null,null,"",null,null,null,"",null,null,null,"",null,null,null,"",null,null,null,"",null,null,null,"",null,null,null,"",null,null,null,"",null,null,null,""]
[null,null,null,null,null,null,null,null,null,null,null,null,null,null,"",null,null,null,"",null,null,null,"",null,null,null,"",null,null,null,"",null,null,null,"",null,null,null,"",null,null,null,"",null,null,null,"",null,null,null,"",null,null,null,"",null,null,null,"",null,null,null,""]
[null,null,null,null,null,null,null,null,null,null,null,null,null,null,"",null,null,null,"",null,null,null,"",null,null,null,"",null,null,null,"",null,null,null,"",null,null,null,"",null,null,null,"",null,null,null,"",null,null,null,"",null,null,null,"",null,null,null,"",null,null,null,""]
[null,null,null,null,null,null,null,null,null,null,null,null,null,null,"",null,null,null,"",null,null,null,"",null,null,null,"",null,null,null,"",null,null,null,"",null,null,null,"",null,null,null,"",null,null,null,"",null,null,null,"",null,null,null,"",null,null,null,"",null,null,null,""]
[null,null,null,null,null,null,null,null,null,null,null,null,null,null,"",null,null,null,"",null,null,null,"",null,null,null,"",null,null,null,"",null,null,null,"",null,null,null,"",null,null,null,"",null,null,null,"",null,null,null,"",null,null,null,"",null,null,null,"",null,null,null,""]
[null,null,null,null,null,null,null,null,null,null,null,null,null,null,"",null,null,null,"",null,null,null,"",null,null,null,"",null,null,null,"",null,null,null,"",null,null,null,"",null,null,null,"",null,null,null,"",null,null,null,"",null,null,null,"",null,null,null,"",null,null,null,""]
[null,null,null,null,null,null,null,null,null,null,null,null,null,null,"",null,null,null,"",null,null,null,"",null,null,null,"",null,null,null,"",null,null,null,"",null,null,null,"",null,null,null,"",null,null,null,"",null,null,null,"",null,null,null,"",null,null,null,"",null,null,null,""]
[null,null,null,null,null,null,null,null,null,null,null,null,null,null,"",null,null,null,"",null,null,null,"",null,null,null,"",null,null,null,"",null,null,null,"",null,null,null,"",null,null,null,"",null,null,null,"",null,null,null,"",null,null,null,"",null,null,null,"",null,null,null,""]
[]
[]
[null,"Altri parametri di supporto",null,"Attenzione: si sconsiglia la modifica dei seguenti parametri senza averli completamente compresi! Forse è meglio rinascondere queste celle e fare finta di non averle viste…"]
[]
[]
[]
[null,null,"Prima riga in cui scrivere ogni classifica",null,12]
[]
[null,null,"Indicizzazione delle celle di input"]
[]
[null,null,"Riga di partenza lettura funzione CLEAN",null,{"$f":"ROW(E141)","v":141}]
[null,null,"Riga di fine lettura funzione CLEAN",null,{"$f":"ROW(E153)","v":153}]
[null,null,"Riga di partenza lettura funzione INSERT",null,{"$f":"ROW(E160)","v":160}]
[null,null,"Riga di fine lettura funzione INSERT",null,{"$f":"ROW(E185)","v":185}]
[null,null,"Riga di partenza lettura funzione SORT",null,{"$f":"ROW(E208)","v":208}]
[null,null,"Riga di fine lettura funzione SORT",null,{"$f":"ROW(E220)","v":220}]
[null,null,"Riga di partenza lettura funzione TRIM",null,{"$f":"ROW(E191)","v":191}]
[null,null,"Riga di fine lettura funzione TRIM",null,{"$f":"ROW(E202)","v":202}]
[null,null,"Riga di partenza lettura funzione INITIALIZE",null,{"$f":"ROW(E227)","v":227}]
[null,null,"Riga di fine lettura funzione INITIALIZE",null,{"$f":"ROW(E252)","v":252}]
[null,null,"Riga di partenza lettura funzione THRESHOLDSET",null,{"$f":"ROW(E258)","v":258}]
[null,null,"Riga di fine lettura funzione THRESHOLDSET",null,{"$f":"ROW(E283)","v":283}]
[null,null,"Riga di partenza lettura funzione EXPORT",null,{"$f":"ROW(E289)","v":289}]
[null,null,"Riga di fine lettura funzione EXPORT",null,{"$f":"ROW(E314)","v":314}]
[]
[]
[null,null,"Parametri della funzione di CLEAN"]
[null,null,null,null,"Nome Foglio","Range di celle da pulire"]
[]
[null,null,"Soglie AA",null,"Impostazione_Soglie_ORG","M12:N111"]
[null,null,"Soglie VSP giocatore 1",null,"Impostazione_Soglie_ORG","Q12:R111"]
[null,null,"Soglie QB giocatore 1",null,"Impostazione_Soglie_ORG","U12:V111"]
[null,null,"Soglie VSP giocatore 2",null,"Impostazione_Soglie_ORG","Y12:Z111"]
[null,null,"Soglie QB giocatore 2",null,"Impostazione_Soglie_ORG","AC12:AD111"]
[null,null,"Soglie VSP giocatore 3",null,"Impostazione_Soglie_ORG","AG12:AH111"]
[null,null,"Soglie QB giocatore 3",null,"Impostazione_Soglie_ORG","AK12:AL111"]
[null,null,"Soglie VSP giocatore 4",null,"Impostazione_Soglie_ORG","AO12:AP111"]
[null,null,"Soglie QB giocatore 4",null,"Impostazione_Soglie_ORG","AS12:AT111"]
[null,null,"Soglie VSP giocatore 5",null,"Impostazione_Soglie_ORG","AW12:AX111"]
[null,null,"Soglie QB giocatore 5",null,"Impostazione_Soglie_ORG","BA12:BB111"]
[null,null,"Soglie VSP giocatore 6",null,"Impostazione_Soglie_ORG","BE12:BF111"]
[null,null,"Soglie QB giocatore 6",null,"Impostazione_Soglie_ORG","BI12:BJ111"]
[]
[]
[null,null,"Parametri della funzione di INSERT"]
[]
[null,null,null,null,"Nome Foglio di Partenza","Cella di partenza",null,null,"Foglio di destinaz.",null,"Colonna di destinaz.",null,"Tipo"]
[]
[null,null,"Nome Squadra",null,"Generale_e_VSP_MAS","C5",null,null,"Impostazione_Soglie_ORG",null,"M",null,"STRING"]
[null,null,"AA",null,"Punteggi_Squadra_Calc","C15",null,null,"Impostazione_Soglie_ORG",null,"N",null,"NUMBER"]
[null,null,"Nome Squadra",null,"Generale_e_VSP_MAS","C5",null,null,"Impostazione_Soglie_ORG",null,"Q",null,"STRING"]
[null,null,"VSP giocatore 1",null,"Punteggi_Squadra_Calc","D5",null,null,"Impostazione_Soglie_ORG",null,"R",null,"NUMBER"]
[null,null,"Nome Squadra",null,"Generale_e_VSP_MAS","C5",null,null,"Impostazione_Soglie_ORG",null,"U",null,"STRING"]
[null,null,"QB giocatore 1",null,"Punteggi_Squadra_Calc","H5",null,null,"Impostazione_Soglie_ORG",null,"V",null,"NUMBER"]
[null,null,"Nome Squadra",null,"Generale_e_VSP_MAS","C5",null,null,"Impostazione_Soglie_ORG",null,"Y",null,"STRING"]
[null,null,"VSP giocatore 2",null,"Punteggi_Squadra_Calc","D6",null,null,"Impostazione_Soglie_ORG",null,"Z",null,"NUMBER"]
[null,null,"Nome Squadra",null,"Generale_e_VSP_MAS","C5",null,null,"Impostazione_Soglie_ORG",null,"AC",null,"STRING"]
[null,null,"QB giocatore 2",null,"Punteggi_Squadra_Calc","H6",null,null,"Impostazione_Soglie_ORG",null,"AD",null,"NUMBER"]
[null,null,"Nome Squadra",null,"Generale_e_VSP_MAS","C5",null,null,"Impostazione_Soglie_ORG",null,"AG",null,"STRING"]
[null,null,"VSP giocatore 3",null,"Punteggi_Squadra_Calc","D7",null,null,"Impostazione_Soglie_ORG",null,"AH",null,"NUMBER"]
[null,null,"Nome Squadra",null,"Generale_e_VSP_MAS","C5",null,null,"Impostazione_Soglie_ORG",null,"AK",null,"STRING"]
[null,null,"QB giocatore 3",null,"Punteggi_Squadra_Calc","H7",null,null,"Impostazione_Soglie_ORG",null,"AL",null,"NUMBER"]
[null,null,"Nome Squadra",null,"Generale_e_VSP_MAS","C5",null,null,"Impostazione_Soglie_ORG",null,"AO",null,"STRING"]
[null,null,"VSP giocatore 4",null,"Punteggi_Squadra_Calc","D8",null,null,"Impostazione_Soglie_ORG",null,"AP",null,"NUMBER"]
[null,null,"Nome Squadra",null,"Generale_e_VSP_MAS","C5",null,null,"Impostazione_Soglie_ORG",null,"AS",null,"STRING"]
[null,null,"QB giocatore 4",null,"Punteggi_Squadra_Calc","H8",null,null,"Impostazione_Soglie_ORG",null,"AT",null,"NUMBER"]
[null,null,"Nome Squadra",null,"Generale_e_VSP_MAS","C5",null,null,"Impostazione_Soglie_ORG",null,"AW",null,"STRING"]
[null,null,"VSP giocatore 5",null,"Punteggi_Squadra_Calc","D9",null,null,"Impostazione_Soglie_ORG",null,"AX",null,"NUMBER"]
[null,null,"Nome Squadra",null,"Generale_e_VSP_MAS","C5",null,null,"Impostazione_Soglie_ORG",null,"BA",null,"STRING"]
[null,null,"QB giocatore 5",null,"Punteggi_Squadra_Calc","H9",null,null,"Impostazione_Soglie_ORG",null,"BB",null,"NUMBER"]
[null,null,"Nome Squadra",null,"Generale_e_VSP_MAS","C5",null,null,"Impostazione_Soglie_ORG",null,"BE",null,"STRING"]
[null,null,"VSP giocatore 6",null,"Punteggi_Squadra_Calc","D10",null,null,"Impostazione_Soglie_ORG",null,"BF",null,"NUMBER"]
[null,null,"Nome Squadra",null,"Generale_e_VSP_MAS","C5",null,null,"Impostazione_Soglie_ORG",null,"BI",null,"STRING"]
[null,null,"QB giocatore 6",null,"Punteggi_Squadra_Calc","H10",null,null,"Impostazione_Soglie_ORG",null,"BJ",null,"NUMBER"]
[]
[]
[null,null,"Parametri della funzione di TRIM"]
[null,null,null,null,"Nome Foglio","Riga Iniziale",null,null,"Ultima riga",null,"Colonna di controllo",null,"Valore nullo",null,"Colonna iniziale",null,"Colonna finale",null,null,null,"Colonna finale",null,null,null,"Colonna finale",null,null,null,"Colonna finale",null,null,null,"Colonna finale",null,null,null,"Colonna finale",null,null,null,"Colonna finale",null,null,null,"Colonna finale",null,null,null,"Colonna finale",null,null,null,"Colonna finale",null,null,null,"Colonna finale",null,null,null,"Colonna finale"]
[]
[null,null,"VSP Giocatore 1",null,"Impostazione_Soglie_ORG",12,null,null,111,null,"R",null,null,null,"Q",null,"R",null,null,null,"V",null,null,null,"V",null,null,null,"V",null,null,null,"V",null,null,null,"V",null,null,null,"V",null,null,null,"V",null,null,null,"V",null,null,null,"V",null,null,null,"V",null,null,null,"V"]
[null,null,"QB Giocatore 1",null,"Impostazione_Soglie_ORG",12,null,null,111,null,"V",null,null,null,"U",null,"V",null,null,null,"AB",null,null,null,"AB",null,null,null,"AB",null,null,null,"AB",null,null,null,"AB",null,null,null,"AB",null,null,null,"AB",null,null,null,"AB",null,null,null,"AB",null,null,null,"AB",null,null,null,"AB"]
[null,null,"VSP Giocatore 2",null,"Impostazione_Soglie_ORG",12,null,null,111,null,"Z",null,null,null,"Y",null,"Z",null,null,null,"AH",null,null,null,"AH",null,null,null,"AH",null,null,null,"AH",null,null,null,"AH",null,null,null,"AH",null,null,null,"AH",null,null,null,"AH",null,null,null,"AH",null,null,null,"AH",null,null,null,"AH"]
[null,null,"QB Giocatore 2",null,"Impostazione_Soglie_ORG",12,null,null,111,null,"AD",null,null,null,"AC",null,"AD",null,null,null,"AN",null,null,null,"AN",null,null,null,"AN",null,null,null,"AN",null,null,null,"AN",null,null,null,"AN",null,null,null,"AN",null,null,null,"AN",null,null,null,"AN",null,null,null,"AN",null,null,null,"AN"]
[null,null,"VSP Giocatore 3",null,"Impostazione_Soglie_ORG",12,null,null,111,null,"AH",null,null,null,"AG",null,"AH",null,null,null,"AT",null,null,null,"AT",null,null,null,"AT",null,null,null,"AT",null,null,null,"AT",null,null,null,"AT",null,null,null,"AT",null,null,null,"AT",null,null,null,"AT",null,null,null,"AT",null,null,null,"AT"]
[null,null,"QB Giocatore 3",null,"Impostazione_Soglie_ORG",12,null,null,111,null,"AL",null,null,null,"AK",null,"AL",null,null,null,"AZ",null,null,null,"AZ",null,null,null,"AZ",null,null,null,"AZ",null,null,null,"AZ",null,null,null,"AZ",null,null,null,"AZ",null,null,null,"AZ",null,null,null,"AZ",null,null,null,"AZ",null,null,null,"AZ"]
[null,null,"VSP Giocatore 4",null,"Impostazione_Soglie_ORG",12,null,null,111,null,"AP",null,null,null,"AO",null,"AP",null,null,null,"BF",null,null,null,"BF",null,null,null,"BF",null,null,null,"BF",null,null,null,"BF",null,null,null,"BF",null,null,null,"BF",null,null,null,"BF",null,null,null,"BF",null,null,null,"BF",null,null,null,"BF"]
[null,null,"QB Giocatore 4",null,"Impostazione_Soglie_ORG",12,null,null,111,null,"AT",null,null,null,"AS",null,"AT",null,null,null,"BL",null,null,null,"BL",null,null,null,"BL",null,null,null,"BL",null,null,null,"BL",null,null,null,"BL",null,null,null,"BL",null,null,null,"BL",null,null,null,"BL",null,null,null,"BL",null,null,null,"BL"]
[null,null,"VSP Giocatore 5",null,"Impostazione_Soglie_ORG",12,null,null,111,null,"AX",null,null,null,"AW",null,"AX",null,null,null,"BR",null,null,null,"BR",null,null,null,"BR",null,null,null,"BR",null,null,null,"BR",null,null,null,"BR",null,null,null,"BR",null,null,null,"BR",null,null,null,"BR",null,null,null,"BR",null,null,null,"BR"]
[null,null,"QB Giocatore 5",null,"Impostazione_Soglie_ORG",12,null,null,111,null,"BB",null,null,null,"BA",null,"BB",null,null,null,"BX",null,null,null,"BX",null,null,null,"BX",null,null,null,"BX",null,null,null,"BX",null,null,null,"BX",null,null,null,"BX",null,null,null,"BX",null,null,null,"BX",null,null,null,"BX",null,null,null,"BX"]
[null,null,"VSP Giocatore 6",null,"Impostazione_Soglie_ORG",12,null,null,111,null,"BF",null,null,null,"BE",null,"BF",null,null,null,"CD",null,null,null,"CD",null,null,null,"CD",null,null,null,"CD",null,null,null,"CD",null,null,null,"CD",null,null,null,"CD",null,null,null,"CD",null,null,null,"CD",null,null,null,"CD",null,null,null,"CD"]
[null,null,"QB Giocatore 6",null,"Impostazione_Soglie_ORG",12,null,null,111,null,"BJ",null,null,null,"BI",null,"BJ",null,null,null,"CF",null,null,null,"CF",null,null,null,"CF",null,null,null,"CF",null,null,null,"CF",null,null,null,"CF",null,null,null,"CF",null,null,null,"CF",null,null,null,"CF",null,null,null,"CF",null,null,null,"CF"]
[]
[]
[null,null,"Parametri della funzione di SORT"]
[null,null,null,null,"Nome Foglio","Range",null,null,"Ord. Principale",null,"Tipo",null,"Ord. Secondario",null,"Colonna finale"]
[]
[null,null,"Classifica Squadre",null,"Impostazione_Soglie_ORG","M12:N111",null,null,"N",null,"DESCENDING",null,"M",null,"DESCENDING"]
[null,null,"VSP Giocatore 1",null,"Impostazione_Soglie_ORG","Q12:R111",null,null,"R",null,"DESCENDING",null,"Q",null,"DESCENDING"]
[null,null,"QB Giocatore 1",null,"Impostazione_Soglie_ORG","U12:V111",null,null,"V",null,"DESCENDING",null,"U",null,"DESCENDING"]
[null,null,"VSP Giocatore 2",null,"Impostazione_Soglie_ORG","Y12:Z111",null,null,"Z",null,"DESCENDING",null,"Y",null,"DESCENDING"]
[null,null,"QB Giocatore 2",null,"Impostazione_Soglie_ORG","AC12:AD111",null,null,"AD",null,"DESCENDING",null,"AC",null,"DESCENDING"]
[null,null,"VSP Giocatore 3",null,"Impostazione_Soglie_ORG","AG12:AH111",null,null,"AH",null,"DESCENDING",null,"AG",null,"DESCENDING"]
[null,null,"QB Giocatore 3",null,"Impostazione_Soglie_ORG","AK12:AL111",null,null,"AL",null,"DESCENDING",null,"AK",null,"DESCENDING"]
[null,null,"VSP Giocatore 4",null,"Impostazione_Soglie_ORG","AO12:AP111",null,null,"AP",null,"DESCENDING",null,"AO",null,"DESCENDING"]
[null,null,"QB Giocatore 4",null,"Impostazione_Soglie_ORG","AS12:AT111",null,null,"AT",null,"DESCENDING",null,"AS",null,"DESCENDING"]
[null,null,"VSP Giocatore 5",null,"Impostazione_Soglie_ORG","AW12:AX111",null,null,"AX",null,"DESCENDING",null,"AW",null,"DESCENDING"]
[null,null,"QB Giocatore 5",null,"Impostazione_Soglie_ORG","BA12:BB111",null,null,"BB",null,"DESCENDING",null,"BA",null,"DESCENDING"]
[null,null,"VSP Giocatore 6",null,"Impostazione_Soglie_ORG","BE12:BF111",null,null,"BF",null,"DESCENDING",null,"BE",null,"DESCENDING"]
[null,null,"QB Giocatore 6",null,"Impostazione_Soglie_ORG","BI12:BJ111",null,null,"BJ",null,"DESCENDING",null,"BI",null,"DESCENDING"]
[]
[]
[]
[null,null,"Parametri della funzione di INITIALIZE"]
[null,null,null,null,"Nome Foglio di Partenza","Cella di partenza",null,null,"Foglio di destinaz.",null,"Cella di destinaz.",null,"Tipo"]
[]
[null,null,"Soglia superiore AA",null,"Soglie_ORG","D5",null,null,"Impostazione_Soglie_ORG",null,"O6",null,"NUMBER"]
[null,null,"Soglia inferiore AA",null,"Soglie_ORG","D6",null,null,"Impostazione_Soglie_ORG",null,"O7",null,"NUMBER"]
[null,null,"Soglia superiore VSP Giocatore 1",null,"Soglie_ORG","D10",null,null,"Impostazione_Soglie_ORG",null,"S6",null,"NUMBER"]
[null,null,"Soglia inferiore VSP Giocatore 1",null,"Soglie_ORG","D11",null,null,"Impostazione_Soglie_ORG",null,"S7",null,"NUMBER"]
[null,null,"Soglia superiore QB Giocatore 1",null,"Soglie_ORG","D30",null,null,"Impostazione_Soglie_ORG",null,"W6",null,"NUMBER"]
[null,null,"Soglia inferiore QB Giocatore 1",null,"Soglie_ORG","D31",null,null,"Impostazione_Soglie_ORG",null,"W7",null,"NUMBER"]
[null,null,"Soglia superiore VSP Giocatore 2",null,"Soglie_ORG","D13",null,null,"Impostazione_Soglie_ORG",null,"AA6",null,"NUMBER"]
[null,null,"Soglia inferiore VSP Giocatore 2",null,"Soglie_ORG","D14",null,null,"Impostazione_Soglie_ORG",null,"AA7",null,"NUMBER"]
[null,null,"Soglia superiore QB Giocatore 2",null,"Soglie_ORG","D33",null,null,"Impostazione_Soglie_ORG",null,"AE6",null,"NUMBER"]
[null,null,"Soglia inferiore QB Giocatore 2",null,"Soglie_ORG","D34",null,null,"Impostazione_Soglie_ORG",null,"AE7",null,"NUMBER"]
[null,null,"Soglia superiore VSP Giocatore 3",null,"Soglie_ORG","D16",null,null,"Impostazione_Soglie_ORG",null,"AI6",null,"NUMBER"]
[null,null,"Soglia inferiore VSP Giocatore 3",null,"Soglie_ORG","D17",null,null,"Impostazione_Soglie_ORG",null,"AI7",null,"NUMBER"]
[null,null,"Soglia superiore QB Giocatore 3",null,"Soglie_ORG","D36",null,null,"Impostazione_Soglie_ORG",null,"AM6",null,"NUMBER"]
[null,null,"Soglia inferiore QB Giocatore 3",null,"Soglie_ORG","D37",null,null,"Impostazione_Soglie_ORG",null,"AM7",null,"NUMBER"]
[null,null,"Soglia superiore VSP Giocatore 4",null,"Soglie_ORG","D19",null,null,"Impostazione_Soglie_ORG",null,"AQ6",null,"NUMBER"]
[null,null,"Soglia inferiore VSP Giocatore 4",null,"Soglie_ORG","D20",null,null,"Impostazione_Soglie_ORG",null,"AQ7",null,"NUMBER"]
[null,null,"Soglia superiore QB Giocatore 4",null,"Soglie_ORG","D39",null,null,"Impostazione_Soglie_ORG",null,"AU6",null,"NUMBER"]
[null,null,"Soglia inferiore QB Giocatore 4",null,"Soglie_ORG","D40",null,null,"Impostazione_Soglie_ORG",null,"AU7",null,"NUMBER"]
[null,null,"Soglia superiore VSP Giocatore 5",null,"Soglie_ORG","D22",null,null,"Impostazione_Soglie_ORG",null,"AY6",null,"NUMBER"]
[null,null,"Soglia inferiore VSP Giocatore 5",null,"Soglie_ORG","D23",null,null,"Impostazione_Soglie_ORG",null,"AY7",null,"NUMBER"]
[null,null,"Soglia superiore QB Giocatore 5",null,"Soglie_ORG","D42",null,null,"Impostazione_Soglie_ORG",null,"BC6",null,"NUMBER"]
[null,null,"Soglia inferiore QB Giocatore 5",null,"Soglie_ORG","D43",null,null,"Impostazione_Soglie_ORG",null,"BC7",null,"NUMBER"]
[null,null,"Soglia superiore VSP Giocatore 6",null,"Soglie_ORG","D25",null,null,"Impostazione_Soglie_ORG",null,"BG6",null,"NUMBER"]
[null,null,"Soglia inferiore VSP Giocatore 6",null,"Soglie_ORG","D26",null,null,"Impostazione_Soglie_ORG",null,"BG7",null,"NUMBER"]
[null,null,"Soglia superiore QB Giocatore 6",null,"Soglie_ORG","D45",null,null,"Impostazione_Soglie_ORG",null,"BK6",null,"NUMBER"]
[null,null,"Soglia inferiore QB Giocatore 6",null,"Soglie_ORG","D46",null,null,"Impostazione_Soglie_ORG",null,"BK7",null,"NUMBER"]
[]
[]
[null,null,"Parametri della funzione di THRESHOLDSET"]
[null,null,null,null,"Nome Foglio","Valore (automatico!!)",null,null,"Cella di destinaz."]
[]
[null,null,"Soglia superiore AA",null,"Impostazione_Soglie_ORG",{"$f":"MAX(N12:N111)","v":0},null,null,"O6"]
[null,null,"Soglia inferiore AA",null,"Impostazione_Soglie_ORG",{"$f":"MIN(N12:N111)","v":0},null,null,"O7"]
[null,null,"Soglia superiore VSP Giocatore 1",null,"Impostazione_Soglie_ORG",{"$f":"MAX(R12:R111)","v":0},null,null,"S6"]
[null,null,"Soglia inferiore VSP Giocatore 1",null,"Impostazione_Soglie_ORG",{"$f":"MIN(R12:R111)","v":0},null,null,"S7"]
[null,null,"Soglia superiore QB Giocatore 1",null,"Impostazione_Soglie_ORG",{"$f":"MAX(V12:V111)","v":0},null,null,"W6"]
[null,null,"Soglia inferiore QB Giocatore 1",null,"Impostazione_Soglie_ORG",{"$f":"MIN(V12:V111)","v":0},null,null,"W7"]
[null,null,"Soglia superiore VSP Giocatore 2",null,"Impostazione_Soglie_ORG",{"$f":"MAX(Z12:Z111)","v":0},null,null,"AA6"]
[null,null,"Soglia inferiore VSP Giocatore 2",null,"Impostazione_Soglie_ORG",{"$f":"MIN(Z12:Z111)","v":0},null,null,"AA7"]
[null,null,"Soglia superiore QB Giocatore 2",null,"Impostazione_Soglie_ORG",{"$f":"MAX(AD12:AD111)","v":0},null,null,"AE6"]
[null,null,"Soglia inferiore QB Giocatore 2",null,"Impostazione_Soglie_ORG",{"$f":"MIN(AD12:AD111)","v":0},null,null,"AE7"]
[null,null,"Soglia superiore VSP Giocatore 3",null,"Impostazione_Soglie_ORG",{"$f":"MAX(AH12:AH111)","v":0},null,null,"AI6"]
[null,null,"Soglia inferiore VSP Giocatore 3",null,"Impostazione_Soglie_ORG",{"$f":"MIN(AH12:AH111)","v":0},null,null,"AI7"]
[null,null,"Soglia superiore QB Giocatore 3",null,"Impostazione_Soglie_ORG",{"$f":"MAX(AL12:AL111)","v":0},null,null,"AM6"]
[null,null,"Soglia inferiore QB Giocatore 3",null,"Impostazione_Soglie_ORG",{"$f":"MIN(AL12:AL111)","v":0},null,null,"AM7"]
[null,null,"Soglia superiore VSP Giocatore 4",null,"Impostazione_Soglie_ORG",{"$f":"MAX(AP12:AP111)","v":0},null,null,"AQ6"]
[null,null,"Soglia inferiore VSP Giocatore 4",null,"Impostazione_Soglie_ORG",{"$f":"MIN(AP12:AP111)","v":0},null,null,"AQ7"]
[null,null,"Soglia superiore QB Giocatore 4",null,"Impostazione_Soglie_ORG",{"$f":"MAX(AT12:AT111)","v":0},null,null,"AU6"]
[null,null,"Soglia inferiore QB Giocatore 4",null,"Impostazione_Soglie_ORG",{"$f":"MIN(AT12:AT111)","v":0},null,null,"AU7"]
[null,null,"Soglia superiore VSP Giocatore 5",null,"Impostazione_Soglie_ORG",{"$f":"MAX(AX12:AX111)","v":0},null,null,"AY6"]
[null,null,"Soglia inferiore VSP Giocatore 5",null,"Impostazione_Soglie_ORG",{"$f":"MIN(AX12:AX111)","v":0},null,null,"AY7"]
[null,null,"Soglia superiore QB Giocatore 5",null,"Impostazione_Soglie_ORG",{"$f":"MAX(BB12:BB111)","v":0},null,null,"BC6"]
[null,null,"Soglia inferiore QB Giocatore 5",null,"Impostazione_Soglie_ORG",{"$f":"MIN(BB12:BB111)","v":0},null,null,"BC7"]
[null,null,"Soglia superiore VSP Giocatore 6",null,"Impostazione_Soglie_ORG",{"$f":"MAX(BF12:BF111)","v":0},null,null,"BG6"]
[null,null,"Soglia inferiore VSP Giocatore 6",null,"Impostazione_Soglie_ORG",{"$f":"MIN(BF12:BF111)","v":0},null,null,"BG7"]
[null,null,"Soglia superiore QB Giocatore 6",null,"Impostazione_Soglie_ORG",{"$f":"MAX(BJ12:BJ111)","v":0},null,null,"BK6"]
[null,null,"Soglia inferiore QB Giocatore 6",null,"Impostazione_Soglie_ORG",{"$f":"MIN(BJ12:BJ111)","v":0},null,null,"BK7"]
[]
[]
[null,null,"Parametri della funzione di EXPORT"]
[null,null,null,null,"Nome Foglio","Valore (automatico!!)",null,null,"Cella di destinaz."]
[]
[null,null,"Soglia superiore AA",null,"Soglie_ORG",{"$f":"O6","v":100},null,null,"D5"]
[null,null,"Soglia inferiore AA",null,"Soglie_ORG",{"$f":"O7","v":0},null,null,"D6"]
[null,null,"Soglia superiore VSP Giocatore 1",null,"Soglie_ORG",{"$f":"S6","v":100},null,null,"D10"]
[null,null,"Soglia inferiore VSP Giocatore 1",null,"Soglie_ORG",{"$f":"S7","v":0},null,null,"D11"]
[null,null,"Soglia superiore QB Giocatore 1",null,"Soglie_ORG",{"$f":"W6","v":100},null,null,"D30"]
[null,null,"Soglia inferiore QB Giocatore 1",null,"Soglie_ORG",{"$f":"W7","v":0},null,null,"D31"]
[null,null,"Soglia superiore VSP Giocatore 2",null,"Soglie_ORG",{"$f":"AA6","v":100},null,null,"D13"]
[null,null,"Soglia inferiore VSP Giocatore 2",null,"Soglie_ORG",{"$f":"AA7","v":0},null,null,"D14"]
[null,null,"Soglia superiore QB Giocatore 2",null,"Soglie_ORG",{"$f":"AE6","v":100},null,null,"D33"]
[null,null,"Soglia inferiore QB Giocatore 2",null,"Soglie_ORG",{"$f":"AE7","v":0},null,null,"D34"]
[null,null,"Soglia superiore VSP Giocatore 3",null,"Soglie_ORG",{"$f":"AI6","v":100},null,null,"D16"]
[null,null,"Soglia inferiore VSP Giocatore 3",null,"Soglie_ORG",{"$f":"AI7","v":0},null,null,"D17"]
[null,null,"Soglia superiore QB Giocatore 3",null,"Soglie_ORG",{"$f":"AM6","v":100},null,null,"D36"]
[null,null,"Soglia inferiore QB Giocatore 3",null,"Soglie_ORG",{"$f":"AM7","v":0},null,null,"D37"]
[null,null,"Soglia superiore VSP Giocatore 4",null,"Soglie_ORG",{"$f":"AQ6","v":100},null,null,"D19"]
[null,null,"Soglia inferiore VSP Giocatore 4",null,"Soglie_ORG",{"$f":"AQ7","v":0},null,null,"D20"]
[null,null,"Soglia superiore QB Giocatore 4",null,"Soglie_ORG",{"$f":"AU6","v":100},null,null,"D39"]
[null,null,"Soglia inferiore QB Giocatore 4",null,"Soglie_ORG",{"$f":"AU7","v":0},null,null,"D40"]
[null,null,"Soglia superiore VSP Giocatore 5",null,"Soglie_ORG",{"$f":"AY6","v":100},null,null,"D22"]
[null,null,"Soglia inferiore VSP Giocatore 5",null,"Soglie_ORG",{"$f":"AY7","v":0},null,null,"D23"]
[null,null,"Soglia superiore QB Giocatore 5",null,"Soglie_ORG",{"$f":"BC6","v":100},null,null,"D42"]
[null,null,"Soglia inferiore QB Giocatore 5",null,"Soglie_ORG",{"$f":"BC7","v":0},null,null,"D43"]
[null,null,"Soglia superiore VSP Giocatore 6",null,"Soglie_ORG",{"$f":"BG6","v":0},null,null,"D25"]
[null,null,"Soglia inferiore VSP Giocatore 6",null,"Soglie_ORG",{"$f":"BG7","v":0},null,null,"D26"]
[null,null,"Soglia superiore QB Giocatore 6",null,"Soglie_ORG",{"$f":"BK6","v":0},null,null,"D45"]
[null,null,"Soglia inferiore QB Giocatore 6",null,"Soglie_ORG",{"$f":"BK7","v":0},null,null,"D46"]

{"sheet":"Esporta_In_PDF_ORG","index":15,"n_rows":73,"n_cols":8,"rows_kept":73,"cut":false,"hidden":false,"merged":[[60,5,60,7],[61,5,61,7],[53,5,53,7],[55,5,55,7],[56,5,56,7],[57,5,57,7],[58,5,58,7],[59,5,59,7],[71,5,71,7],[72,5,72,7],[64,5,64,7],[66,5,66,7],[67,5,67,7],[68,5,68,7],[69,5,69,7],[70,5,70,7],[3,3,3,5],[47,5,47,7],[45,5,45,7],[48,5,48,7],[49,5,49,7],[5,3,5,5],[8,3,8,5]]}
[]
[null,"Modifiche omogenee dei valutativi",null,null,"Spiegazione"]
[]
[null,"Directory di lettura dei valutativi",null,{"$f":"Parametri_Operazioni_ORG!D7","v":0}]
[]
[null,"Directory di output",null,"<|ROSTER|>",null,null,null,"Spiegazione"]
[]
[null,"Valutativi protetti da password (tick)",null,{"$f":"IF(Parametri_Operazioni_ORG!D13<>\"\",Parametri_Operazioni_ORG!D13,\"\")","v":""}]
[null,"Password dei valutativi",null,{"$f":"IF(Parametri_Operazioni_ORG!D14<>\"\",Parametri_Operazioni_ORG!D14,\"\")","v":""}]
[]
[null,"   Attenzione: per utilizzare questa funzione è necessario installare la stampante PDF chiamata \"PDFcreator\", scaricabile gratuitamente al sito http://pdfcreator.softonic.it/"]
[]
[]
[]
[]
[null,null,null,null,null,"Spiegazione"]
[]
[]
[null,null,null,null,null,"Spiegazione"]
[]
[]
[null,null,null,null,null,"Spiegazione"]
[null,null,null,null,null,"Attenzione: questa funzione richiede circa un minuto a Valutativo… non preoccupatevi se, dopo averla lanciata, si \"ferma un po' \" su un file"]
[]
[]
[null,null,null,null,null,"Spiegazione"]
[null,null,null,null,null,"Attenzione: questa funzione richiede circa un minuto… Attendete il messaggio di completamento!"]
[]
[]
[]
[]
[null,"Altri parametri di supporto"]
[]
[null,"Indicizzazione delle celle di input"]
[]
[null,null,"Riga di inizio lettura stampante PDF valutativi",null,{"$f":"ROW(E48)","v":48}]
[null,null,"Riga di fine lettura stampante PDF valutaivi",null,{"$f":"ROW(E50)","v":50}]
[null,null,"Riga di inizio lettura stampante PDF classifiche",null,{"$f":"ROW(E56)","v":56}]
[null,null,"Riga di fine lettura stampante PDF classifiche",null,{"$f":"ROW(E56)+Riepilogo_Organizzazione!D18","v":56}]
[null,null,"Riga di partenza lettura funzione TICK",null,{"$f":"ROW(E67)","v":67}]
[null,null,"Riga di partenza lettura funzione TICK",null,{"$f":"ROW(E73)","v":73}]
[]
[]
[]
[null,"Parametri per la stampa PDF dei valutativi"]
[null,null,null,null,"Nome Foglio","Range da stampare"]
[]
[null,null,"Foglio di riepilogo dati",null,"Totali_Squadra","<|NO|>"]
[null,null,"QB",null,"QB_MAS","<|NO|>"]
[null,null,"AA",null,"AA_MAS","<|NO|>"]
[]
[]
[null,"Parametri per la stampa PDF delle classifiche"]
[null,null,null,null,"Nome Foglio","Range da stampare"]
[]
[null,null,"Classifica Squadre",null,"Classifica_Squadre","<|NO|>"]
[null,null,"Classifica PG 1",null,"Classifica_PG_1","<|NO|>"]
[null,null,"Classifica PG 2",null,"Classifica_PG_2","<|NO|>"]
[null,null,"Classifica PG 3",null,"Classifica_PG_3","<|NO|>"]
[null,null,"Classifica PG 4",null,"Classifica_PG_4","<|NO|>"]
[null,null,"Classifica PG 5",null,"Classifica_PG_5","<|NO|>"]
[null,null,"Classifica PG 6",null,"Classifica_PG_6","<|NO|>"]
[]
[null,"Funzione di TICK"]
[null,null,null,null,"Foglio di destinazione","Cella di destinazione"]
[]
[null,null,"Visualizzatore pesi AA",null,"AA_ORG","B9"]
[null,null,"Visualizzatore pesi QB del Gioctore 1",null,"QB_PG1_ORG","B9"]
[null,null,"Visualizzatore pesi QB del Gioctore 2",null,"QB_PG2_ORG","B9"]
[null,null,"Visualizzatore pesi QB del Gioctore 3",null,"QB_PG3_ORG","B9"]
[null,null,"Visualizzatore pesi QB del Gioctore 4",null,"QB_PG4_ORG","B9"]
[null,null,"Visualizzatore pesi QB del Gioctore 5",null,"QB_PG5_ORG","B9"]
[null,null,"Visualizzatore pesi QB del Gioctore 6",null,"QB_PG6_ORG","B9"]

{"sheet":"Esporta_In_HTML_ORG","index":16,"n_rows":70,"n_cols":8,"rows_kept":70,"cut":false,"hidden":false,"merged":[[69,4,69,6],[69,7,69,8],[69,9,69,10],[69,11,69,12],[69,13,69,14],[68,4,68,6],[68,7,68,8],[68,9,68,10],[68,11,68,12],[68,13,68,14],[67,4,67,6],[67,7,67,8],[67,9,67,10],[67,11,67,12],[67,13,67,14],[66,4,66,6],[66,7,66,8],[66,9,66,10],[66,11,66,12],[66,13,66,14],[65,4,65,6],[65,7,65,8],[65,9,65,10],[65,11,65,12],[65,13,65,14],[63,11,63,12],[63,13,63,14],[61,4,61,6],[61,7,61,8],[64,4,64,6],[64,7,64,8],[64,9,64,10],[63,4,63,6],[63,7,63,8],[63,9,63,10],[64,11,64,12],[64,13,64,14]]}
[]
[null,"Esporta classifiche in html",null,"Spiegazione"]
[]
[null,"Pattern relativo dei valutativi in PDF",null,null,null,"Spiegazione"]
[]
[null,"File di output",null,"C:\\Users\\tam\\Desktop\\BB\\RBB_Tam.html",null,"Spiegazione"]
[]
[null,"Inizializzato",null,{"$f":"Parametri_Operazioni_ORG!D11","v":"ATTENZIONE: Torneo non inizializzato!"}]
[]
[]
[null,null,null,"Spiegazione"]
[]
[]
[]
[null,"Intestazione Squadre",null,"<div class=\"subtitle\">Classifica finale a squadre del torneo <|NOMETORNEO|></div>\n<br />\n<table cellspacing=\"0\" cellpadding=\"0\" border=\"0\">\n    <tbody>\n        <tr>\n            <td class=\"class_title\">Pos.</td>\n            <td class=\"class_title\">Squadra</td>\n            <td class=\"class_title\">Punteggio =  100 + VGP + AA</td>\n            <td class=\"class_title\">Roster di Valutazione</td>\n            <td class=\"class_title\">Singole VGP</td>\n        </tr>",null,null,"Spiegazione"]
[null,"Corpo del testo Squdre",null,"        <tr>\n            <td class=\"class_position@@\"><|POSIZIONE|></td>\n            <td class=\"class_team@@\"><|SQUADRA|></td>\n            <td class=\"class_point@@\"><|PUNTEGGIO|> = 100 + <|VGP|> + <|AA|></td>\n            <td class=\"class_file@@\"><a href=\"<|FILEFOLDER|><|NOMEFILE|>.pdf\">PDF</a></td>\n            <td class=\"class_VGPs@@\"><|VGPSINGOLE|></td>\n        </tr>"]
[null,"Chiusura Squdre",null,"    </tbody>\n</table>\n<br /><br /><br /><br />"]
[null,"Intestazione Giocatori",null,"<div class=\"subtitle\">Classifica giocatori nel ruolo di <|NOMEPG|><br /></div>\nQuesta &egrave; la classifica finale dei migliori <|NOMEPG|> del nostro torneo.<br /><br />\n<table cellspacing=\"0\" cellpadding=\"0\" border=\"0\">\n    <tbody>\n        <tr>\n            <td class=\"class_title\">Pos.</td>\n            <td class=\"class_title\">ID</td>\n            <td class=\"class_title\">Giocatore</td>\n            <td class=\"class_title\">Squadra</td>\n            <td class=\"class_title\">Punteggio</td>\n            <td class=\"class_title\">VGP</td>\n\n        </tr>"]
[null,"Corpo del testo Giocatori",null,"        <tr>\n            <td class=\"class_position@@\"><|POSIZIONE|></td>\n            <td class=\"class_id@@\"><|ID|></td>\n            <td class=\"class_player@@\"><|GIOCATORE|></td>\n            <td class=\"class_team@@\"><|SQUADRA|></td>\n            <td class=\"class_point@@\"><|PUNTEGGIO|> = 100 + <|VSP|>+<|QB|>+<|AA|></td>\n            <td class=\"class_vgp@@\"><|VGP|></td>\n        </tr>"]
[null,"Chiusura Giocatori",null,"    </tbody>\n</table>\n<br /><br /><br /><br />"]
[]
[]
[]
[null,"Parole chiave legate alla squadra",null,"Spiegazione"]
[]
[null,"<|POSIZIONE|>",null,"Posizione di ciascuna squadra"]
[null,"<|SQUADRA|>",null,"Nome della squadra"]
[null,"<|PUNTEGGIO|>",null,"Punteggio della squadra"]
[null,"<|VGP|>",null,"VPG media utile della squadra"]
[null,"<|AA|>",null,"AA utile della squadra"]
[null,"<|FILEFOLDER|>",null,"Cartella internet nel quale vengono salvati i valutativi di ciascuna squadra"]
[null,"<|NOMEFILE|>",null,"Nome del file su cui è salvato il valutativo di ciascuna squadra. L'estensione \".xls\" viene rimossa"]
[null,"<|VGPSINGOLE|>",null,"Valori singoli delle VGP - ex: (12, 67, 6, - ,100)"]
[null,"@@",null,"Quantità che assume valore 1 o 2 a seconda che la riga della classifica sia pari o dispari"]
[]
[]
[null,"Parole chiave legate ai giocatori",null,"Spiegazione"]
[]
[null,"<|POSIZIONE|>",null,"Posizione di ciascun giocatore"]
[null,"<|ID|>",null,"ID del giocatore"]
[null,"<|PUNTEGGIO|>",null,"Punteggio totale di ciascun giocatore"]
[null,"<|GIOCATORE|>",null,"Nome e cognome del giocatore"]
[null,"<|VSP|>",null,"VSG utile del giocatore"]
[null,"<|AA|>",null,"AA utile del giocatore"]
[null,"<|QB|>",null,"QB utile del giocatore"]
[null,"<|VGP|>",null,"VGP totale del giocatore"]
[null,"@@",null,"Quantità che assume valore 1 o 2 a seconda che la riga della classifica sia pari o dispari"]
[]
[]
[]
[]
[]
[null,"Altri parametri di supporto",null,"Attenzione: si sconsiglia la modifica dei seguenti parametri senza averli completamente compresi! Forse è meglio rinascondere queste celle e fare finta di non averle viste…"]
[]
[]
[null,"Riga iniziale delle classifiche",null,9]
[null,null,null,{"$f":"ROW(D64)","v":64}]
[null,"Riga di partenza lettura classifica Giocatori",null,{"$f":"ROW(D64)","v":64}]
[null,"Riga di fine lettura classifica Giocatori",null,{"$f":"ROW(D64) + Riepilogo_Organizzazione!D18","v":64}]
[]
[]
[null,null,null,"Foglio di Calcolo","TIPO",null,null,"Cella con Nome"]
[]
[null,"Classifica Squadre",null,"Classifica_Squadre","SQUADRE",null,null,"D4"]
[null,"Classifica Giocatore 1",null,"Classifica_PG_1","GIOCATORI",null,null,"D11"]
[null,"Classifica Giocatore 2",null,"Classifica_PG_2","GIOCATORI",null,null,"D12"]
[null,"Classifica Giocatore 3",null,"Classifica_PG_3","GIOCATORI",null,null,"D13"]
[null,"Classifica Giocatore 4",null,"Classifica_PG_4","GIOCATORI",null,null,"D14"]
[null,"Classifica Giocatore 5",null,"Classifica_PG_5","GIOCATORI",null,null,"D15"]
[null,"Classifica Giocatore 6",null,"Classifica_PG_6","GIOCATORI",null,null,"D16"]

{"sheet":"Riepilogo_Organizzazione","index":17,"n_rows":55,"n_cols":4,"rows_kept":55,"cut":false,"hidden":false,"merged":[[20,3,20,5],[17,3,17,5],[10,3,10,5],[11,3,11,5],[12,3,12,5],[3,3,3,5],[4,3,4,5],[5,3,5,5],[6,3,6,5],[19,3,19,5],[13,3,13,5],[14,3,14,5],[15,3,15,5],[26,3,26,5],[27,3,27,5],[28,3,28,5],[29,3,29,5],[41,3,41,5],[22,3,22,5],[23,3,23,5],[24,3,24,5],[25,3,25,5],[45,3,45,5],[42,3,42,5],[30,3,30,5],[31,3,31,5],[32,3,32,5],[33,3,33,5],[34,3,34,5],[35,3,35,5],[36,3,36,5],[37,3,37,5],[38,3,38,5],[39,3,39,5],[51,3,51,5],[52,3,52,5],[43,3,43,5],[44,3,44,5],[47,3,47,5],[48,3,48,5],[49,3,49,5],[50,3,50,5],[46,3,46,5]]}
[]
[null,"Riepilogo dei dati importanti"]
[]
[null,"Titolo dell'avventura"]
[null,"Gruppo organizzatore"]
[null,"Località"]
[null,"Range di date"]
[null,"Esplicitazione del turno (tick)"]
[null,"Presenza del comaster (tick)"]
[]
[null,"Nome PG 1"]
[null,"Nome PG 2"]
[null,"Nome PG 3"]
[null,"Nome PG 4"]
[null,"Nome PG 5"]
[null,"Nome PG 6"]
[]
[null,"Numero PG",null,{"$f":"COUNTA(D11:F16)","v":0}]
[]
[null,"Peso AA (per squadra)"]
[null,"Peso VPG media (per squadra)"]
[]
[null,"Peso VSP per giocatore 1"]
[null,"Peso QB per giocatore 1"]
[null,"Peso AA per giocatore 1"]
[null,"Peso VSP per giocatore 2"]
[null,"Peso QB per giocatore 2"]
[null,"Peso AA per giocatore 2"]
[null,"Peso VSP per giocatore 3"]
[null,"Peso QB per giocatore 3"]
[null,"Peso AA per giocatore 3"]
[null,"Peso VSP per giocatore 4"]
[null,"Peso QB per giocatore 4"]
[null,"Peso AA per giocatore 4"]
[null,"Peso VSP per giocatore 5"]
[null,"Peso QB per giocatore 5"]
[null,"Peso AA per giocatore 5"]
[null,"Peso VSP per giocatore 6"]
[null,"Peso QB per giocatore 6"]
[null,"Peso AA per giocatore 6"]
[]
[null,"Peso VSP per VPG 1"]
[null,"Peso QB per VPG 1"]
[null,"Peso VSP per VPG 2"]
[null,"Peso QB per VPG 2"]
[null,"Peso VSP per VPG 3"]
[null,"Peso QB per VPG 3"]
[null,"Peso VSP per VPG 4"]
[null,"Peso QB per VPG 4"]
[null,"Peso VSP per VPG 5"]
[null,"Peso QB per VPG 5"]
[null,"Peso VSP per VPG 6"]
[null,"Peso QB per VPG 6"]
[]
[null,"Torneo già inizializzato"]